Workbook

Sheet Front Sheet
F7: Network Innovation Competition Full Submission
F8: Spreadsheet
F10: (2020 version 1.0)
F11: Appendix A
C15: Licensee Name: | D15: South Eastern Power Networks Plc
C17: Submission Date: | D17: 2020-10-15
B21: Input cells
B22: Totals cells (of formula within worksheet)
B23: Referencing to other worksheets
B24: Check cells
B25: No Input
B26: Descriptions and pack data
B27: Ofgem Input cells

Sheet NIC Funding Request
A1: NIC Funding Request
C2: 2020/21 | D2: 2021/22 | E2: 2022/23 | F2: 2023/24 | G2: 2024/25 | H2: 2025/26 | I2: 2026/27 | J2: Total
A3: Total Project Cost | B3: From Project Cost Summary sheet
B4: Labour | C4: 0 | D4: 576.8 | E4: 573 | F4: 449.9 | G4: 328.4 | H4: 185.8 | I4: 0 | J4: =SUM(C4:I4) -> 2113.9
B5: Equipment | C5: 0 | D5: 644.57583 | E5: 1283.46721 | F5: 266.75 | G5: 10.5 | H5: 10.5 | I5: 0 | J5: 2215.79304
B6: Contractors | C6: 0 | D6: 466.5475893 | E6: 3221.442834 | F6: 613.7198036 | G6: 222.1201786 | H6: 278.2552143 | I6: 0 | J6: 4802.08562
B7: IT | C7: 0 | D7: 1551.661 | E7: 3368.748 | F7: 1392.974 | G7: 325.7435 | H7: 325.7435 | I7: 0 | J7: 6964.87
B8: IPR Costs | C8: 0 | D8: 0 | E8: 0 | F8: 0 | G8: 0 | H8: 0 | I8: 0 | J8: 0
B9: Travel & Expenses | C9: 0 | D9: 20.72777778 | E9: 61.22777778 | F9: 34.22777778 | G9: 20.72777778 | H9: 10.36388889 | I9: 0 | J9: 147.275
A10: Payments to users & Contingency | C10: 0 | D10: 279.9228 | E10: 305.0193 | F10: 305.0193 | G10: 305.0193 | H10: 305.0193 | I10: 0 | J10: 1500
B11: Decommissioning | C11: 0 | D11: 0 | E11: 0 | F11: 0 | G11: 0 | H11: 0 | I11: 0 | J11: 0
B12: Other | C12: 0 | D12: 16 | E12: 16 | F12: 16 | G12: 16 | H12: 16 | I12: 0 | J12: 80
B13: Total | C13: =SUM(C4:C12) -> 0 | D13: 3556.234997 | E13: 8828.905122 | F13: 3078.590881 | G13: 1228.510756 | H13: =SUM(H4:H12) -> 1131.681903 | I13: 0 | J13: 17823.92366
A15: External funding | B15: Any funding that will be received from Project Partners and/or External Funders - from Project Cost Summary sheet
B16: Labour | C16: 0 | D16: 50.1823327 | E16: 49.85172788 | F16: 39.1418715 | G16: 28.57121716 | H16: 16.16483602 | I16: 0 | J16: =SUM(C16:I16) -> 183.9119853
B17: Equipment | C17: 0 | D17: 56.07891601 | E17: 111.6632776 | F17: 23.20758885 | G17: 0.9135133381 | H17: 0.9135133381 | I17: 0 | J17: 192.7768092
B18: Contractors | C18: 0 | D18: 40.59023292 | E18: 280.2696188 | F18: 53.39440251 | G18: 19.32473769 | H18: 24.20855711 | I18: 0 | J18: 417.787549
B19: IT | C19: 0 | D19: 134.9964781 | E19: 293.0853553 | F19: 121.1905075 | G19: 28.34009829 | H19: 28.34009829 | I19: 0 | J19: 605.9525374
B20: IPR Costs | C20: 0 | D20: 0 | E20: 0 | F20: 0 | G20: 0 | H20: 0 | I20: 0 | J20: 0
B21: Travel & Expenses | C21: 0 | D21: 1.803342997 | E21: 5.326894444 | F21: 2.977860146 | G21: 1.803342997 | H21: 0.9016714985 | I21: 0 | J21: 12.81311208
A22: Payments to users & Contingency | C22: 0 | D22: 24.35363918 | E22: 26.53706656 | F22: 26.53706656 | G22: 26.53706656 | H22: 26.53706656 | I22: 0 | J22: 130.5019054
B23: Decommissioning | C23: 0 | D23: 0 | E23: 0 | F23: 0 | G23: 0 | H23: 0 | I23: 0 | J23: 0
B24: Other | C24: 0 | D24: 1.392020325 | E24: 1.392020325 | F24: 1.392020325 | G24: 1.392020325 | H24: 1.392020325 | I24: 0 | J24: 6.960101623
B25: Total | C25: =SUM(C16:C24) -> 0 | D25: 309.3969622 | E25: 768.1259609 | F25: 267.8413174 | G25: 106.8819964 | H25: =SUM(H16:H24) -> 98.45776314 | I25: 0 | J25: 1550.704
A27: Licensee extra contribution | B27: Any funding from the Licensee which is in excess of the Licensee Compulsory Contribution - from Project Cost Summary sheet
B28: Labour | C28: 0 | D28: 0 | E28: 0 | F28: 0 | G28: 0 | H28: 0 | I28: 0 | J28: =SUM(C28:I28) -> 0
B29: Equipment | C29: 0 | D29: 0 | E29: 0 | F29: 0 | G29: 0 | H29: 0 | I29: 0 | J29: 0
B30: Contractors | C30: 0 | D30: 0 | E30: 0 | F30: 0 | G30: 0 | H30: 0 | I30: 0 | J30: 0
B31: IT | C31: 0 | D31: 0 | E31: 0 | F31: 0 | G31: 0 | H31: 0 | I31: 0 | J31: 0
B32: IPR Costs | C32: 0 | D32: 0 | E32: 0 | F32: 0 | G32: 0 | H32: 0 | I32: 0 | J32: 0
B33: Travel & Expenses | C33: 0 | D33: 0 | E33: 0 | F33: 0 | G33: 0 | H33: 0 | I33: 0 | J33: 0
A34: Payments to users & Contingency | C34: 0 | D34: 0 | E34: 0 | F34: 0 | G34: 0 | H34: 0 | I34: 0 | J34: 0
B35: Decommissioning | C35: 0 | D35: 0 | E35: 0 | F35: 0 | G35: 0 | H35: 0 | I35: 0 | J35: 0
B36: Other | C36: 0 | D36: 0 | E36: 0 | F36: 0 | G36: 0 | H36: 0 | I36: 0 | J36: 0
B37: Total | C37: =SUM(C28:C36) -> 0 | D37: 0 | E37: 0 | F37: 0 | G37: 0 | H37: =SUM(H28:H36) -> 0 | I37: 0 | J37: 0
A39: Initial Net Funding Required
B40: Labour | C40: 0 | D40: 526.6176673 | E40: 523.1482721 | F40: 410.7581285 | G40: 299.8287828 | H40: 169.635164 | I40: 0 | J40: =J4-J16-J28 -> 1929.988015
B41: Equipment | C41: 0 | D41: 588.496914 | E41: 1171.803932 | F41: 243.5424111 | G41: 9.586486662 | H41: 9.586486662 | I41: 0 | J41: 2023.016231
B42: Contractors | C42: 0 | D42: 425.9573564 | E42: 2941.173216 | F42: 560.3254011 | G42: 202.7954409 | H42: 254.0466572 | I42: 0 | J42: 4384.298071
B43: IT | C43: 0 | D43: 1416.664522 | E43: 3075.662645 | F43: 1271.783493 | G43: 297.4034017 | H43: 297.4034017 | I43: 0 | J43: 6358.917463
B44: IPR Costs | C44: 0 | D44: 0 | E44: 0 | F44: 0 | G44: 0 | H44: 0 | I44: 0 | J44: 0
B45: Travel & Expenses | C45: 0 | D45: 18.92443478 | E45: 55.90088333 | F45: 31.24991763 | G45: 18.92443478 | H45: 9.46221739 | I45: 0 | J45: 134.4618879
A46: Payments to users & Contingency | C46: 0 | D46: 255.5691608 | E46: 278.4822334 | F46: 278.4822334 | G46: 278.4822334 | H46: 278.4822334 | I46: 0 | J46: 1369.498095
B47: Decommissioning | C47: 0 | D47: 0 | E47: 0 | F47: 0 | G47: 0 | H47: 0 | I47: 0 | J47: 0 | K47: Check Total = to Initial Net Funding request
B48: Other | C48: 0 | D48: 14.60797968 | E48: 14.60797968 | F48: 14.60797968 | G48: 14.60797968 | H48: 14.60797968 | I48: 0 | J48: 73.03989838 | K48: in Project Cost Summary
B49: Total | C49: =C13-C25-C37 -> 0 | D49: 3246.838035 | E49: 8060.779161 | F49: 2810.749564 | G49: 1121.62876 | H49: =H13-H25-H37 -> 1033.22414 | I49: 0 | J49: =J13-J25-J37 -> 16273.21966 | K49: =IF(J49='Project Cost Summary'!M13,"OK","ERROR") -> ERROR
A51: Direct Benefits | B51: from Direct Benefits sheet
B52: Total | C52: 0 | D52: 0 | E52: 0 | F52: 0 | G52: 0 | H52: 0 | I52: 0 | J52: =SUM(C52:I52) -> 0
A56: Licensee Compulsory Contribution / Direct Benefits | C56: from Project Cost Summary sheet
B57: Labour | C57: 0 | D57: 52.66176673 | E57: 52.31482721 | F57: 41.07581285 | G57: 29.98287828 | H57: 16.9635164 | I57: 0 | J57: =SUM(C57:I57) -> 192.9988015
B58: Equipment | C58: 0 | D58: 58.8496914 | E58: 117.1803932 | F58: 24.35424111 | G58: 0.9586486662 | H58: 0.9586486662 | I58: 0 | J58: 202.3016231
B59: Contractors | C59: 0 | D59: 42.59573564 | E59: 294.1173216 | F59: 56.03254011 | G59: 20.27954409 | H59: 25.40466572 | I59: 0 | J59: 438.4298071
B60: IT | C60: 0 | D60: 141.6664522 | E60: 307.5662645 | F60: 127.1783493 | G60: 29.74034017 | H60: 29.74034017 | I60: 0 | J60: 635.8917463
B61: IPR Costs | C61: 0 | D61: 0 | E61: 0 | F61: 0 | G61: 0 | H61: 0 | I61: 0 | J61: 0
B62: Travel & Expenses | C62: 0 | D62: 1.892443478 | E62: 5.590088333 | F62: 3.124991763 | G62: 1.892443478 | H62: 0.946221739 | I62: 0 | J62: 13.44618879
A63: Payments to users & Contingency | C63: 0 | D63: 25.55691608 | E63: 27.84822334 | F63: 27.84822334 | G63: 27.84822334 | H63: 27.84822334 | I63: 0 | J63: 136.9498095
B64: Decommissioning | C64: 0 | D64: 0 | E64: 0 | F64: 0 | G64: 0 | H64: 0 | I64: 0 | J64: 0 | K64: of Total Initial Net Funding Required
B65: Other | C65: 0 | D65: 1.460797968 | E65: 1.460797968 | F65: 1.460797968 | G65: 1.460797968 | H65: 1.460797968 | I65: 0 | J65: 7.303989838 | K65: =IF(J66>=J49*0.1,"OK","ERROR") -> OK
B66: Total | C66: =SUM(C57:C65) -> 0 | D66: 324.6838035 | E66: 806.0779161 | F66: 281.0749564 | G66: 112.162876 | H66: =SUM(H57:H65) -> 103.322414 | I66: =SUM(I57:I65) -> 0 | J66: =SUM(C66:I66) -> 1627.321966 | K66: Check that Total is = or > than
K67: Total Direct Benefits
K68: =IF(J66>=J52,"OK","ERROR") -> OK
A69: Outstanding Funding required
B70: Labour | C70: 0 | D70: 473.9559006 | E70: 470.8334449 | F70: 369.6823156 | G70: 269.8459046 | H70: 152.6716476 | I70: 0 | J70: =SUM(C70:I70) -> 1736.989213
B71: Equipment | C71: 0 | D71: 529.6472226 | E71: 1054.623539 | F71: 219.18817 | G71: 8.627837996 | H71: 8.627837996 | I71: 0 | J71: 1820.714608
B72: Contractors | C72: 0 | D72: 383.3616207 | E72: 2647.055894 | F72: 504.292861 | G72: 182.5158968 | H72: 228.6419915 | I72: 0 | J72: 3945.868264
B73: IT | C73: 0 | D73: 1274.99807 | E73: 2768.09638 | F73: 1144.605143 | G73: 267.6630615 | H73: 267.6630615 | I73: 0 | J73: 5723.025716
B74: IPR Costs | C74: 0 | D74: 0 | E74: 0 | F74: 0 | G74: 0 | H74: 0 | I74: 0 | J74: 0
B75: Travel & Expenses | C75: 0 | D75: 17.0319913 | E75: 50.310795 | F75: 28.12492587 | G75: 17.0319913 | H75: 8.515995651 | I75: 0 | J75: 121.0156991
A76: Payments to users & Contingency | C76: 0 | D76: 230.0122447 | E76: 250.6340101 | F76: 250.6340101 | G76: 250.6340101 | H76: 250.6340101 | I76: 0 | J76: 1232.548285
B77: Decommissioning | C77: 0 | D77: 0 | E77: 0 | F77: 0 | G77: 0 | H77: 0 | I77: 0 | J77: 0 | K77: Check that Total is =to
B78: Other | C78: 0 | D78: 13.14718171 | E78: 13.14718171 | F78: 13.14718171 | G78: 13.14718171 | H78: 13.14718171 | I78: 0 | J78: 65.73590854 | K78: Total Outstanding Funding required
B79: Total | C79: =C49-C66 -> 0 | D79: 2922.154231 | E79: 7254.701245 | F79: 2529.674608 | G79: =G49-G66 -> 1009.465884 | H79: 929.901726 | I79: 0 | J79: 14645.89769 | K79: =IF(J79='Project Cost Summary'!M15, "OK","ERROR") -> ERROR
A81: balance | B81: 14384.07089 | C81: 0 | D81: 11461.91666 | E81: 4336.445352 | F81: 1885.762554 | G81: 907.4077097 | H81: -8.528164996 | I81: -4.033767272 | J81: =G81-G79+G82 -> -88.09232295 | K81: =B81 -> 14384.07089
A82: interest | C82: 0 | D82: 129.2299377 | E82: 78.99181005 | F82: 31.11103953 | G82: 13.96585132 | H82: 4.494397724 | I82: -0.06280966134 | J82: =((G81+J81)/2)*$D86 -> 4.096576934 | K82: =SUM(D82:J82) -> 261.8268036
K83: =K81+K82 -> 14645.89769 | L83: =J79-K83 -> 0
B85: Bank of England interest rate | D85: 0.005 | G85: NIC FUNDING REQUEST £ | I85: =K81 -> 14384.07089
B86: interest rate used in calculation | D86: =D85+0.5% -> 0.01
B87: RPI adjustment | C87: 2020/21 | D87: 2021/22 | E87: 2022/23 | F87: 2023/24 | G87: 2024/25 | H87: 2025/26 | I87: 2026/27
B88: Annual inflation | C88: 0.017 | D88: 0.0213 | E88: 0.0258 | F88: 0.028 | G88: 0.028 | H88: 0.028 | I88: 0.021
A89: n.b the NIC Funding Request calculation should use the Bank of England Base rate plus 0.5% on 30 June of the year in which the Full Submission is made.
D92: Bank of England Base Rate: https://www.bankofengland.co.uk/boeapps/iadb/Repo.asp
D93: RPI Forecast 2020/21 - 2026/27 : https://www.gov.uk/government/statistics/forecasts-for-the-uk-economy-may-2020
D94: RPI for 2025/26 and thereafter is an extension from 2024/25 as no further consistent forecast is available.

Sheet Direct Benefits
A1: Direct Benefits
A3: Direct Benefit: Any benefits of the Project accruing to the Licensee during the Project Implementation, comprising any expenditure included within the Network Lincesee Business plan for RIIO-T1 or ED1 that will be saved as a result of undertaking the project
B7: Description of Direct Benefit
C8: 2020/21 | D8: 2021/22 | E8: 2022/23 | F8: 2023/24 | G8: 2024/25 | H8: 2025/26 | I8: 2026/27 | J8: Total
J9: =SUM(C9:I9) -> 0
J10: =SUM(C10:I10) -> 0
B11: Total Direct Benefits | C11: =SUM(C9:C10) -> 0 | D11: 0 | E11: 0 | F11: 0 | G11: 0 | H11: 0 | I11: 0 | J11: 0
B14: n.b. These are Direct Benefits associated with the Project itself, not the wider deployment of the Solution and therefore should not extend beyond the Project period.

Sheet Project Cost Summary
A1: Project Cost Summary
C2: Total
C3: Cost type
C4: Labour | D4: Equipment | E4: Contractors | F4: IT | G4: IPR Costs | H4: Travel & Expenses | I4: Payments to users | J4: Contingency | K4: Decommissioning | L4: Other | M4: Total
B5: Total Project Cost | O5: Check Total Initial Net Funding Required matches that on the Second Tier Funding Request tab
B6: ABB
B7: Siemens
B8: GE
B9: Vodafone
B10: PNDC
B11: External Funding
B12: Licensee extra contribution
B13: Initial Net Funding Required
B14: Licensee Compulsory Contribution / Direct Benefits | O14: =IF(ABS(M13-'NIC Funding Request'!J49)<0.01,"OK","ERROR") -> ERROR
B15: Outstanding Funding Required
C17: 2020/21
C18: Cost type
C19: Labour | D19: Equipment | E19: Contractors | F19: IT | G19: IPR Costs | H19: Travel & Expenses | I19: Payments to users | J19: Contingency | K19: Decommissioning | L19: Other | M19: Total
B20: Total Project Cost
B21: ABB
B22: Siemens
B23: GE
B24: Vodafone
B25: PNDC
B26: External Funding
B27: Licensee extra contribution
B28: Initial Net Funding Required
B29: Licensee Compulsory Contribution / Direct Benefits
B30: Outstanding Funding Required
C32: 2021/22
C33: Cost type
C34: Labour | D34: Equipment | E34: Contractors | F34: IT | G34: IPR Costs | H34: Travel & Expenses | I34: Payments to users | J34: Contingency | K34: Decommissioning | L34: Other | M34: Total
B35: Total Project Cost
B36: ABB
B37: Siemens
B38: GE
B39: Vodafone
B40: PNDC
B41: External Funding
B42: Licensee extra contribution
B43: Initial Net Funding Required
B44: Licensee Compulsory Contribution / Direct Benefits
B45: Outstanding Funding Required
C47: 2022/23
C48: Cost type
C49: Labour | D49: Equipment | E49: Contractors | F49: IT | G49: IPR Costs | H49: Travel & Expenses | I49: Payments to users | J49: Contingency | K49: Decommissioning | L49: Other | M49: Total
B50: Total Project Cost
B51: ABB
B52: Siemens
B53: GE
B54: Vodafone
B55: PNDC
B56: External Funding
B57: Licensee extra contribution
B58: Initial Net Funding Required
B59: Licensee Compulsory Contribution / Direct Benefits
B60: Outstanding Funding Required
C62: 2023/24
C63: Cost type
C64: Labour | D64: Equipment | E64: Contractors | F64: IT | G64: IPR Costs | H64: Travel & Expenses | I64: Payments to users | J64: Contingency | K64: Decommissioning | L64: Other | M64: Total
B65: Total Project Cost
B66: ABB
B67: Siemens
B68: GE
B69: Vodafone
B70: PNDC
B71: External Funding
B72: Licensee extra contribution
B73: Initial Net Funding Required
B74: Licensee Compulsory Contribution
B75: Outstanding Funding Required
C77: 2024/25
C78: Cost type
C79: Labour | D79: Equipment | E79: Contractors | F79: IT | G79: IPR Costs | H79: Travel & Expenses | I79: Payments to users | J79: Contingency | K79: Decommissioning | L79: Other | M79: Total
B80: Total Project Cost
B81: ABB
B82: Siemens
B83: GE
B84: Vodafone
B85: PNDC
B86: External Funding
B87: Licensee extra contribution
B88: Initial Net Funding Required
B89: Licensee Compulsory Contribution
B90: Outstanding Funding Required
C92: 2025/26
C93: Cost type
C94: Labour | D94: Equipment | E94: Contractors | F94: IT | G94: IPR Costs | H94: Travel & Expenses | I94: Payments to users | J94: Contingency | K94: Decommissioning | L94: Other | M94: Total
B95: Total Project Cost
B96: ABB
B97: Siemens
B98: GE
B99: Vodafone
B100: PNDC
B101: External Funding
B102: Licensee extra contribution
B103: Initial Net Funding Required
B104: Licensee Compulsory Contribution
B105: Outstanding Funding Required
C107: 2026/27
C108: Cost type
C109: Labour | D109: Equipment | E109: Contractors | F109: IT | G109: IPR Costs | H109: Travel & Expenses | I109: Payments to users | J109: Contingency | K109: Decommissioning | L109: Other | M109: Total
B110: Total Project Cost
B111: ABB
B112: Siemens
B113: GE
B114: Vodafone
B115: PNDC
B116: Initial Net Funding Required
B117: Licensee Compulsory Contribution
B118: Outstanding Funding Required

Sheet 2020-2021
B1: Project Costs in 2020-2021
AM3: ABB | AX3: GE | BI3: PNDC | BT3: Siemens | CE3: Vodafone
G4: Total Cost £K | R4: Funding source % | AB4: Licensee Compulsory Contribution/Direct Benefits | AM4: Project Partner 1 | AX4: Project Partner 2 | BI4: Project Partner 3 | BT4: Project Partner 4 | CE4: Project Partner 5 | CP4: Licensee Extra Contribution | DA4: Outstanding Funding Required
G5: Labour | H5: Equipment | I5: Contractors | J5: IT | K5: IPR Costs | L5: Travel & Expenses | M5: Payments to users | N5: Contingency | O5: Decommissioning | P5: Other | R5: Licensee Compulsory Contribution /Direct Benefits | S5: Project Partner 1 | T5: Project Partner 2 | U5: Project Partner 3 | V5: Project Partner 4 | W5: Project Partner 5 | X5: Licensee Extra Contribution | Y5: Oustanding Funding Required | Z5: Total | AB5: Labour | AC5: Equipment | AD5: Contractors | AE5: IT | AF5: IPR Costs | AG5: Travel & Expenses | AH5: Payments to users | AI5: Contingency | AJ5: Decommissioning | AK5: Other | AM5: Labour | AN5: Equipment | AO5: Contractors | AP5: IT | AQ5: IPR Costs | AR5: Travel & Expenses | AS5: Payments to users | AT5: Contingency | AU5: Decommissioning | AV5: Other | AX5: Labour | AY5: Equipment | AZ5: Contractors | BA5: IT | BB5: IPR Costs | BC5: Travel & Expenses | BD5: Payments to users | BE5: Contingency | BF5: Decommissioning | BG5: Other | BI5: Labour | BJ5: Equipment | BK5: Contractors | BL5: IT | BM5: IPR Costs | BN5: Travel & Expenses | BO5: Payments to users | BP5: Contingency | BQ5: Decommissioning | BR5: Other | BT5: Labour | BU5: Equipment | BV5: Contractors | BW5: IT | BX5: IPR Costs | BY5: Travel & Expenses | BZ5: Payments to users | CA5: Contingency | CB5: Decommissioning | CC5: Other | CE5: Labour | CF5: Equipment | CG5: Contractors | CH5: IT | CI5: IPR Costs | CJ5: Travel & Expenses | CK5: Payments to users | CL5: Contingency | CM5: Decommissioning | CN5: Other | CP5: Labour | CQ5: Equipment | CR5: Contractors | CS5: IT | CT5: IPR Costs | CU5: Travel & Expenses | CV5: Payments to users | CW5: Contingency | CX5: Decommissioning | CY5: Other | DA5: Labour | DB5: Equipment | DC5: Contractors | DD5: IT | DE5: IPR Costs | DF5: Travel & Expenses | DG5: Payments to users | DH5: Contingency | DI5: Decommissioning | DJ5: Other
B6: Description | C6: Task | D6: Project Workstream | R6: UKPN | S6: ABB | T6: GE | U6: PNDC | V6: Siemens | W6: Vodafone | X6: UKPN | Y6: NIC
A7: Example | B7: Stage 1 - Agreement from customers to proceed | C7: Complete spreadsheet | D7: Workstream 1 | Z7: =SUM(R7:Y7) -> 0 | AB7: =$R7*G7 -> 0 | AC7: 0 | AD7: 0 | AE7: 0 | AF7: 0 | AG7: 0 | AH7: 0 | AI7: 0 | AJ7: 0 | AK7: 0 | AM7: =$S7*G7 -> 0 | AN7: 0 | AO7: 0 | AP7: 0 | AQ7: 0 | AR7: 0 | AS7: 0 | AT7: 0 | AU7: 0 | AV7: 0 | AX7: =$T7*G7 -> 0 | AY7: 0 | AZ7: 0 | BA7: 0 | BB7: 0 | BC7: 0 | BD7: 0 | BE7: 0 | BF7: 0 | BG7: 0 | BI7: =$U7*G7 -> 0 | BJ7: 0 | BK7: 0 | BL7: 0 | BM7: 0 | BN7: 0 | BO7: 0 | BP7: 0 | BQ7: 0 | BR7: 0 | BT7: =$V7*G7 -> 0 | BU7: =$V7*H7 -> 0 | BV7: 0 | BW7: 0 | BX7: 0 | BY7: 0 | BZ7: 0 | CA7: 0 | CB7: 0 | CC7: 0 | CE7: =$W7*G7 -> 0 | CF7: =$W7*H7 -> 0 | CG7: 0 | CH7: 0 | CI7: 0 | CJ7: 0 | CK7: 0 | CL7: 0 | CM7: 0 | CN7: 0 | CP7: =$X7*G7 -> 0 | CQ7: 0 | CR7: 0 | CS7: 0 | CT7: 0 | CU7: 0 | CV7: 0 | CW7: 0 | CX7: 0 | CY7: 0 | DA7: =$Y7*G7 -> 0 | DB7: 0 | DC7: 0 | DD7: 0 | DE7: 0 | DF7: 0 | DG7: 0 | DH7: 0 | DI7: 0 | DJ7: 0
B8: Solution design and approval | C8: Details of the system design and architecture for protection and control on a substation with local intelligence | D8: Workstreams 1 and 2 | Z8: =SUM(R8:Y8) -> 0 | AB8: =$R8*G8 -> 0 | AC8: =$R8*H8 -> 0 | AD8: =$R8*I8 -> 0 | AE8: =$R8*J8 -> 0 | AF8: =$R8*K8 -> 0 | AG8: =$R8*L8 -> 0 | AH8: =$R8*M8 -> 0 | AI8: =$R8*N8 -> 0 | AJ8: =$R8*O8 -> 0 | AK8: =$R8*P8 -> 0 | AM8: =$S8*G8 -> 0 | AN8: =$S8*H8 -> 0 | AO8: =$S8*I8 -> 0 | AP8: =$S8*J8 -> 0 | AQ8: =$S8*K8 -> 0 | AR8: =$S8*L8 -> 0 | AS8: =$S8*M8 -> 0 | AT8: =$S8*N8 -> 0 | AU8: =$S8*O8 -> 0 | AV8: =$S8*P8 -> 0 | AX8: =$T8*G8 -> 0 | AY8: =$T8*H8 -> 0 | AZ8: =$T8*I8 -> 0 | BA8: =$T8*J8 -> 0 | BB8: =$T8*K8 -> 0 | BC8: =$T8*L8 -> 0 | BD8: =$T8*M8 -> 0 | BE8: =$T8*N8 -> 0 | BF8: =$T8*O8 -> 0 | BG8: =$T8*P8 -> 0 | BI8: =$U8*G8 -> 0 | BJ8: =$U8*H8 -> 0 | BK8: =$U8*I8 -> 0 | BL8: =$U8*J8 -> 0 | BM8: =$U8*K8 -> 0 | BN8: =$U8*L8 -> 0 | BO8: =$U8*M8 -> 0 | BP8: =$U8*N8 -> 0 | BQ8: =$U8*O8 -> 0 | BR8: =$U8*P8 -> 0 | BT8: =$V8*G8 -> 0 | BU8: =$V8*H8 -> 0 | BV8: =$V8*I8 -> 0 | BW8: =$V8*J8 -> 0 | BX8: =$V8*K8 -> 0 | BY8: =$V8*L8 -> 0 | BZ8: =$V8*M8 -> 0 | CA8: =$V8*N8 -> 0 | CB8: =$V8*O8 -> 0 | CC8: =$V8*P8 -> 0 | CE8: =$W8*G8 -> 0 | CF8: =$W8*H8 -> 0 | CG8: =$W8*I8 -> 0 | CH8: =$W8*J8 -> 0 | CI8: =$W8*K8 -> 0 | CJ8: =$W8*L8 -> 0 | CK8: =$W8*M8 -> 0 | CL8: =$W8*N8 -> 0 | CM8: =$W8*O8 -> 0 | CN8: =$W8*P8 -> 0 | CP8: =$X8*G8 -> 0 | CQ8: =$X8*H8 -> 0 | CR8: =$X8*I8 -> 0 | CS8: =$X8*J8 -> 0 | CT8: =$X8*K8 -> 0 | CU8: =$X8*L8 -> 0 | CV8: =$X8*M8 -> 0 | CW8: =$X8*N8 -> 0 | CX8: =$X8*O8 -> 0 | CY8: =$X8*P8 -> 0 | DA8: =$Y8*G8 -> 0 | DB8: =$Y8*H8 -> 0 | DC8: =$Y8*I8 -> 0 | DD8: =$Y8*J8 -> 0 | DE8: =$Y8*K8 -> 0 | DF8: =$Y8*L8 -> 0 | DG8: =$Y8*M8 -> 0 | DH8: =$Y8*N8 -> 0 | DI8: =$Y8*O8 -> 0 | DJ8: =$Y8*P8 -> 0
B9: Trial design and site selection | C9: Description of the trial design and site selection criteria process | D9: Workstreams 2 and 3 | Z9: 0 | AB9: 0 | AC9: 0 | AD9: 0 | AE9: 0 | AF9: 0 | AG9: 0 | AH9: 0 | AI9: 0 | AJ9: 0 | AK9: 0 | AM9: 0 | AN9: 0 | AO9: 0 | AP9: 0 | AQ9: 0 | AR9: 0 | AS9: 0 | AT9: 0 | AU9: 0 | AV9: 0 | AX9: 0 | AY9: 0 | AZ9: 0 | BA9: 0 | BB9: 0 | BC9: 0 | BD9: 0 | BE9: 0 | BF9: 0 | BG9: 0 | BI9: 0 | BJ9: 0 | BK9: 0 | BL9: 0 | BM9: 0 | BN9: 0 | BO9: 0 | BP9: 0 | BQ9: 0 | BR9: 0 | BT9: 0 | BU9: 0 | BV9: 0 | BW9: 0 | BX9: 0 | BY9: 0 | BZ9: 0 | CA9: 0 | CB9: 0 | CC9: 0 | CE9: 0 | CF9: 0 | CG9: 0 | CH9: 0 | CI9: 0 | CJ9: 0 | CK9: 0 | CL9: 0 | CM9: 0 | CN9: 0 | CP9: 0 | CQ9: 0 | CR9: 0 | CS9: 0 | CT9: 0 | CU9: 0 | CV9: 0 | CW9: 0 | CX9: 0 | CY9: 0 | DA9: 0 | DB9: 0 | DC9: 0 | DD9: 0 | DE9: 0 | DF9: 0 | DG9: 0 | DH9: 0 | DI9: 0 | DJ9: 0
B10: Equipment specification and purchase | C10: Description of the trial design and site selection criteria process | D10: Workstream 2 | Z10: 0 | AB10: 0 | AC10: 0 | AD10: 0 | AE10: 0 | AF10: 0 | AG10: 0 | AH10: 0 | AI10: 0 | AJ10: 0 | AK10: 0 | AM10: 0 | AN10: 0 | AO10: 0 | AP10: 0 | AQ10: 0 | AR10: 0 | AS10: 0 | AT10: 0 | AU10: 0 | AV10: 0 | AX10: 0 | AY10: 0 | AZ10: 0 | BA10: 0 | BB10: 0 | BC10: 0 | BD10: 0 | BE10: 0 | BF10: 0 | BG10: 0 | BI10: 0 | BJ10: 0 | BK10: 0 | BL10: 0 | BM10: 0 | BN10: 0 | BO10: 0 | BP10: 0 | BQ10: 0 | BR10: 0 | BT10: 0 | BU10: 0 | BV10: 0 | BW10: 0 | BX10: 0 | BY10: 0 | BZ10: 0 | CA10: 0 | CB10: 0 | CC10: 0 | CE10: 0 | CF10: 0 | CG10: 0 | CH10: 0 | CI10: 0 | CJ10: 0 | CK10: 0 | CL10: 0 | CM10: 0 | CN10: 0 | CP10: 0 | CQ10: 0 | CR10: 0 | CS10: 0 | CT10: 0 | CU10: 0 | CV10: 0 | CW10: 0 | CX10: 0 | CY10: 0 | DA10: 0 | DB10: 0 | DC10: 0 | DD10: 0 | DE10: 0 | DF10: 0 | DG10: 0 | DH10: 0 | DI10: 0 | DJ10: 0
B11: Solution development and approval | C11: Initial learning from off-network PNDC trial, and learning from functionality development, virtualisation | D11: Workstreams 1 and 2 | Z11: 0 | AB11: 0 | AC11: 0 | AD11: 0 | AE11: 0 | AF11: 0 | AG11: 0 | AH11: 0 | AI11: 0 | AJ11: 0 | AK11: 0 | AM11: 0 | AN11: 0 | AO11: 0 | AP11: 0 | AQ11: 0 | AR11: 0 | AS11: 0 | AT11: 0 | AU11: 0 | AV11: 0 | AX11: 0 | AY11: 0 | AZ11: 0 | BA11: 0 | BB11: 0 | BC11: 0 | BD11: 0 | BE11: 0 | BF11: 0 | BG11: 0 | BI11: 0 | BJ11: 0 | BK11: 0 | BL11: 0 | BM11: 0 | BN11: 0 | BO11: 0 | BP11: 0 | BQ11: 0 | BR11: 0 | BT11: 0 | BU11: 0 | BV11: 0 | BW11: 0 | BX11: 0 | BY11: 0 | BZ11: 0 | CA11: 0 | CB11: 0 | CC11: 0 | CE11: 0 | CF11: 0 | CG11: 0 | CH11: 0 | CI11: 0 | CJ11: 0 | CK11: 0 | CL11: 0 | CM11: 0 | CN11: 0 | CP11: 0 | CQ11: 0 | CR11: 0 | CS11: 0 | CT11: 0 | CU11: 0 | CV11: 0 | CW11: 0 | CX11: 0 | CY11: 0 | DA11: 0 | DB11: 0 | DC11: 0 | DD11: 0 | DE11: 0 | DF11: 0 | DG11: 0 | DH11: 0 | DI11: 0 | DJ11: 0
B12: Initial validation and off-network installation and testing | C12: Initial learning from off-network PNDC trial, and learning from functionality development, virtualisation | D12: Workstream 3 | Z12: 0 | AB12: 0 | AC12: 0 | AD12: 0 | AE12: 0 | AF12: 0 | AG12: 0 | AH12: 0 | AI12: 0 | AJ12: 0 | AK12: 0 | AM12: 0 | AN12: 0 | AO12: 0 | AP12: 0 | AQ12: 0 | AR12: 0 | AS12: 0 | AT12: 0 | AU12: 0 | AV12: 0 | AX12: 0 | AY12: 0 | AZ12: 0 | BA12: 0 | BB12: 0 | BC12: 0 | BD12: 0 | BE12: 0 | BF12: 0 | BG12: 0 | BI12: 0 | BJ12: 0 | BK12: 0 | BL12: 0 | BM12: 0 | BN12: 0 | BO12: 0 | BP12: 0 | BQ12: 0 | BR12: 0 | BT12: 0 | BU12: 0 | BV12: 0 | BW12: 0 | BX12: 0 | BY12: 0 | BZ12: 0 | CA12: 0 | CB12: 0 | CC12: 0 | CE12: 0 | CF12: 0 | CG12: 0 | CH12: 0 | CI12: 0 | CJ12: 0 | CK12: 0 | CL12: 0 | CM12: 0 | CN12: 0 | CP12: 0 | CQ12: 0 | CR12: 0 | CS12: 0 | CT12: 0 | CU12: 0 | CV12: 0 | CW12: 0 | CX12: 0 | CY12: 0 | DA12: 0 | DB12: 0 | DC12: 0 | DD12: 0 | DE12: 0 | DF12: 0 | DG12: 0 | DH12: 0 | DI12: 0 | DJ12: 0
B13: Trial site preparation: design, installation and commissioning | C13: Review of site installation and learning from mid trial passive network demonstration | D13: Workstream 2 | Z13: 0 | AB13: 0 | AC13: 0 | AD13: 0 | AE13: 0 | AF13: 0 | AG13: 0 | AH13: 0 | AI13: 0 | AJ13: 0 | AK13: 0 | AM13: 0 | AN13: 0 | AO13: 0 | AP13: 0 | AQ13: 0 | AR13: 0 | AS13: 0 | AT13: 0 | AU13: 0 | AV13: 0 | AX13: 0 | AY13: 0 | AZ13: 0 | BA13: 0 | BB13: 0 | BC13: 0 | BD13: 0 | BE13: 0 | BF13: 0 | BG13: 0 | BI13: 0 | BJ13: 0 | BK13: 0 | BL13: 0 | BM13: 0 | BN13: 0 | BO13: 0 | BP13: 0 | BQ13: 0 | BR13: 0 | BT13: 0 | BU13: 0 | BV13: 0 | BW13: 0 | BX13: 0 | BY13: 0 | BZ13: 0 | CA13: 0 | CB13: 0 | CC13: 0 | CE13: 0 | CF13: 0 | CG13: 0 | CH13: 0 | CI13: 0 | CJ13: 0 | CK13: 0 | CL13: 0 | CM13: 0 | CN13: 0 | CP13: 0 | CQ13: 0 | CR13: 0 | CS13: 0 | CT13: 0 | CU13: 0 | CV13: 0 | CW13: 0 | CX13: 0 | CY13: 0 | DA13: 0 | DB13: 0 | DC13: 0 | DD13: 0 | DE13: 0 | DF13: 0 | DG13: 0 | DH13: 0 | DI13: 0 | DJ13: 0
B14: Site acceptance testing and solution reiterations | C14: Review of site installation and learning from mid trial passive network demonstration | D14: Workstream 3 | Z14: 0 | AB14: 0 | AC14: 0 | AD14: 0 | AE14: 0 | AF14: 0 | AG14: 0 | AH14: 0 | AI14: 0 | AJ14: 0 | AK14: 0 | AM14: 0 | AN14: 0 | AO14: 0 | AP14: 0 | AQ14: 0 | AR14: 0 | AS14: 0 | AT14: 0 | AU14: 0 | AV14: 0 | AX14: 0 | AY14: 0 | AZ14: 0 | BA14: 0 | BB14: 0 | BC14: 0 | BD14: 0 | BE14: 0 | BF14: 0 | BG14: 0 | BI14: 0 | BJ14: 0 | BK14: 0 | BL14: 0 | BM14: 0 | BN14: 0 | BO14: 0 | BP14: 0 | BQ14: 0 | BR14: 0 | BT14: 0 | BU14: 0 | BV14: 0 | BW14: 0 | BX14: 0 | BY14: 0 | BZ14: 0 | CA14: 0 | CB14: 0 | CC14: 0 | CE14: 0 | CF14: 0 | CG14: 0 | CH14: 0 | CI14: 0 | CJ14: 0 | CK14: 0 | CL14: 0 | CM14: 0 | CN14: 0 | CP14: 0 | CQ14: 0 | CR14: 0 | CS14: 0 | CT14: 0 | CU14: 0 | CV14: 0 | CW14: 0 | CX14: 0 | CY14: 0 | DA14: 0 | DB14: 0 | DC14: 0 | DD14: 0 | DE14: 0 | DF14: 0 | DG14: 0 | DH14: 0 | DI14: 0 | DJ14: 0
B15: Transition from PNDC to live network | C15: Review of site installation and learning from mid trial passive network demonstration | D15: Workstream 3 | Z15: 0 | AB15: 0 | AC15: 0 | AD15: 0 | AE15: 0 | AF15: 0 | AG15: 0 | AH15: 0 | AI15: 0 | AJ15: 0 | AK15: 0 | AM15: 0 | AN15: 0 | AO15: 0 | AP15: 0 | AQ15: 0 | AR15: 0 | AS15: 0 | AT15: 0 | AU15: 0 | AV15: 0 | AX15: 0 | AY15: 0 | AZ15: 0 | BA15: 0 | BB15: 0 | BC15: 0 | BD15: 0 | BE15: 0 | BF15: 0 | BG15: 0 | BI15: 0 | BJ15: 0 | BK15: 0 | BL15: 0 | BM15: 0 | BN15: 0 | BO15: 0 | BP15: 0 | BQ15: 0 | BR15: 0 | BT15: 0 | BU15: 0 | BV15: 0 | BW15: 0 | BX15: 0 | BY15: 0 | BZ15: 0 | CA15: 0 | CB15: 0 | CC15: 0 | CE15: 0 | CF15: 0 | CG15: 0 | CH15: 0 | CI15: 0 | CJ15: 0 | CK15: 0 | CL15: 0 | CM15: 0 | CN15: 0 | CP15: 0 | CQ15: 0 | CR15: 0 | CS15: 0 | CT15: 0 | CU15: 0 | CV15: 0 | CW15: 0 | CX15: 0 | CY15: 0 | DA15: 0 | DB15: 0 | DC15: 0 | DD15: 0 | DE15: 0 | DF15: 0 | DG15: 0 | DH15: 0 | DI15: 0 | DJ15: 0
B16: Plan, launch, publicise and select OIC participants | C16: Learning from the innovation competition process | D16: Workstream 4 | Z16: 0 | AB16: 0 | AC16: 0 | AD16: 0 | AE16: 0 | AF16: 0 | AG16: 0 | AH16: 0 | AI16: 0 | AJ16: 0 | AK16: 0 | AM16: 0 | AN16: 0 | AO16: 0 | AP16: 0 | AQ16: 0 | AR16: 0 | AS16: 0 | AT16: 0 | AU16: 0 | AV16: 0 | AX16: 0 | AY16: 0 | AZ16: 0 | BA16: 0 | BB16: 0 | BC16: 0 | BD16: 0 | BE16: 0 | BF16: 0 | BG16: 0 | BI16: 0 | BJ16: 0 | BK16: 0 | BL16: 0 | BM16: 0 | BN16: 0 | BO16: 0 | BP16: 0 | BQ16: 0 | BR16: 0 | BT16: 0 | BU16: 0 | BV16: 0 | BW16: 0 | BX16: 0 | BY16: 0 | BZ16: 0 | CA16: 0 | CB16: 0 | CC16: 0 | CE16: 0 | CF16: 0 | CG16: 0 | CH16: 0 | CI16: 0 | CJ16: 0 | CK16: 0 | CL16: 0 | CM16: 0 | CN16: 0 | CP16: 0 | CQ16: 0 | CR16: 0 | CS16: 0 | CT16: 0 | CU16: 0 | CV16: 0 | CW16: 0 | CX16: 0 | CY16: 0 | DA16: 0 | DB16: 0 | DC16: 0 | DD16: 0 | DE16: 0 | DF16: 0 | DG16: 0 | DH16: 0 | DI16: 0 | DJ16: 0
B17: Incubate, test and deploy as network trial | C17: Learning from the innovation competition process | D17: Workstream 4 | Z17: 0 | AB17: 0 | AC17: 0 | AD17: 0 | AE17: 0 | AF17: 0 | AG17: 0 | AH17: 0 | AI17: 0 | AJ17: 0 | AK17: 0 | AM17: 0 | AN17: 0 | AO17: 0 | AP17: 0 | AQ17: 0 | AR17: 0 | AS17: 0 | AT17: 0 | AU17: 0 | AV17: 0 | AX17: 0 | AY17: 0 | AZ17: 0 | BA17: 0 | BB17: 0 | BC17: 0 | BD17: 0 | BE17: 0 | BF17: 0 | BG17: 0 | BI17: 0 | BJ17: 0 | BK17: 0 | BL17: 0 | BM17: 0 | BN17: 0 | BO17: 0 | BP17: 0 | BQ17: 0 | BR17: 0 | BT17: 0 | BU17: 0 | BV17: 0 | BW17: 0 | BX17: 0 | BY17: 0 | BZ17: 0 | CA17: 0 | CB17: 0 | CC17: 0 | CE17: 0 | CF17: 0 | CG17: 0 | CH17: 0 | CI17: 0 | CJ17: 0 | CK17: 0 | CL17: 0 | CM17: 0 | CN17: 0 | CP17: 0 | CQ17: 0 | CR17: 0 | CS17: 0 | CT17: 0 | CU17: 0 | CV17: 0 | CW17: 0 | CX17: 0 | CY17: 0 | DA17: 0 | DB17: 0 | DC17: 0 | DD17: 0 | DE17: 0 | DF17: 0 | DG17: 0 | DH17: 0 | DI17: 0 | DJ17: 0
B18: Launch academic research and review deliverables | C18: Learning from academic insights and the governance required to prepare for the future world of distributed & autonomous network operation | D18: Workstream 5 | Z18: 0 | AB18: 0 | AC18: 0 | AD18: 0 | AE18: 0 | AF18: 0 | AG18: 0 | AH18: 0 | AI18: 0 | AJ18: 0 | AK18: 0 | AM18: 0 | AN18: 0 | AO18: 0 | AP18: 0 | AQ18: 0 | AR18: 0 | AS18: 0 | AT18: 0 | AU18: 0 | AV18: 0 | AX18: 0 | AY18: 0 | AZ18: 0 | BA18: 0 | BB18: 0 | BC18: 0 | BD18: 0 | BE18: 0 | BF18: 0 | BG18: 0 | BI18: 0 | BJ18: 0 | BK18: 0 | BL18: 0 | BM18: 0 | BN18: 0 | BO18: 0 | BP18: 0 | BQ18: 0 | BR18: 0 | BT18: 0 | BU18: 0 | BV18: 0 | BW18: 0 | BX18: 0 | BY18: 0 | BZ18: 0 | CA18: 0 | CB18: 0 | CC18: 0 | CE18: 0 | CF18: 0 | CG18: 0 | CH18: 0 | CI18: 0 | CJ18: 0 | CK18: 0 | CL18: 0 | CM18: 0 | CN18: 0 | CP18: 0 | CQ18: 0 | CR18: 0 | CS18: 0 | CT18: 0 | CU18: 0 | CV18: 0 | CW18: 0 | CX18: 0 | CY18: 0 | DA18: 0 | DB18: 0 | DC18: 0 | DD18: 0 | DE18: 0 | DF18: 0 | DG18: 0 | DH18: 0 | DI18: 0 | DJ18: 0
B19: Data gathering and engineering support for network trials | C19: Presentation of findings from project trials and innovation competition trial | D19: Workstream 3 | Z19: 0 | AB19: 0 | AC19: 0 | AD19: 0 | AE19: 0 | AF19: 0 | AG19: 0 | AH19: 0 | AI19: 0 | AJ19: 0 | AK19: 0 | AM19: 0 | AN19: 0 | AO19: 0 | AP19: 0 | AQ19: 0 | AR19: 0 | AS19: 0 | AT19: 0 | AU19: 0 | AV19: 0 | AX19: 0 | AY19: 0 | AZ19: 0 | BA19: 0 | BB19: 0 | BC19: 0 | BD19: 0 | BE19: 0 | BF19: 0 | BG19: 0 | BI19: 0 | BJ19: 0 | BK19: 0 | BL19: 0 | BM19: 0 | BN19: 0 | BO19: 0 | BP19: 0 | BQ19: 0 | BR19: 0 | BT19: 0 | BU19: 0 | BV19: 0 | BW19: 0 | BX19: 0 | BY19: 0 | BZ19: 0 | CA19: 0 | CB19: 0 | CC19: 0 | CE19: 0 | CF19: 0 | CG19: 0 | CH19: 0 | CI19: 0 | CJ19: 0 | CK19: 0 | CL19: 0 | CM19: 0 | CN19: 0 | CP19: 0 | CQ19: 0 | CR19: 0 | CS19: 0 | CT19: 0 | CU19: 0 | CV19: 0 | CW19: 0 | CX19: 0 | CY19: 0 | DA19: 0 | DB19: 0 | DC19: 0 | DD19: 0 | DE19: 0 | DF19: 0 | DG19: 0 | DH19: 0 | DI19: 0 | DJ19: 0
B20: Communications, training, dissemination and events | C20: Presentation of findings from project trials and innovation competition trial | D20: Workstream 6 | Z20: 0 | AB20: 0 | AC20: 0 | AD20: 0 | AE20: 0 | AF20: 0 | AG20: 0 | AH20: 0 | AI20: 0 | AJ20: 0 | AK20: 0 | AM20: 0 | AN20: 0 | AO20: 0 | AP20: 0 | AQ20: 0 | AR20: 0 | AS20: 0 | AT20: 0 | AU20: 0 | AV20: 0 | AX20: 0 | AY20: 0 | AZ20: 0 | BA20: 0 | BB20: 0 | BC20: 0 | BD20: 0 | BE20: 0 | BF20: 0 | BG20: 0 | BI20: 0 | BJ20: 0 | BK20: 0 | BL20: 0 | BM20: 0 | BN20: 0 | BO20: 0 | BP20: 0 | BQ20: 0 | BR20: 0 | BT20: 0 | BU20: 0 | BV20: 0 | BW20: 0 | BX20: 0 | BY20: 0 | BZ20: 0 | CA20: 0 | CB20: 0 | CC20: 0 | CE20: 0 | CF20: 0 | CG20: 0 | CH20: 0 | CI20: 0 | CJ20: 0 | CK20: 0 | CL20: 0 | CM20: 0 | CN20: 0 | CP20: 0 | CQ20: 0 | CR20: 0 | CS20: 0 | CT20: 0 | CU20: 0 | CV20: 0 | CW20: 0 | CX20: 0 | CY20: 0 | DA20: 0 | DB20: 0 | DC20: 0 | DD20: 0 | DE20: 0 | DF20: 0 | DG20: 0 | DH20: 0 | DI20: 0 | DJ20: 0
B21: Project management and contingency | C21: Presentation of findings from project trials and innovation competition trial | D21: PM | Z21: 0 | AB21: 0 | AC21: 0 | AD21: 0 | AE21: 0 | AF21: 0 | AG21: 0 | AH21: 0 | AI21: 0 | AJ21: 0 | AK21: 0 | AM21: 0 | AN21: 0 | AO21: 0 | AP21: 0 | AQ21: 0 | AR21: 0 | AS21: 0 | AT21: 0 | AU21: 0 | AV21: 0 | AX21: 0 | AY21: 0 | AZ21: 0 | BA21: 0 | BB21: 0 | BC21: 0 | BD21: 0 | BE21: 0 | BF21: 0 | BG21: 0 | BI21: 0 | BJ21: 0 | BK21: 0 | BL21: 0 | BM21: 0 | BN21: 0 | BO21: 0 | BP21: 0 | BQ21: 0 | BR21: 0 | BT21: 0 | BU21: 0 | BV21: 0 | BW21: 0 | BX21: 0 | BY21: 0 | BZ21: 0 | CA21: 0 | CB21: 0 | CC21: 0 | CE21: 0 | CF21: 0 | CG21: 0 | CH21: 0 | CI21: 0 | CJ21: 0 | CK21: 0 | CL21: 0 | CM21: 0 | CN21: 0 | CP21: 0 | CQ21: 0 | CR21: 0 | CS21: 0 | CT21: 0 | CU21: 0 | CV21: 0 | CW21: 0 | CX21: 0 | CY21: 0 | DA21: 0 | DB21: 0 | DC21: 0 | DD21: 0 | DE21: 0 | DF21: 0 | DG21: 0 | DH21: 0 | DI21: 0 | DJ21: 0
Q22: Total Cost | Z22: =SUM(R22:Y22) -> 0 | AB22: =$R22*G22 -> 0 | AC22: 0 | AD22: 0 | AE22: 0 | AF22: 0 | AG22: 0 | AH22: 0 | AI22: 0 | AJ22: 0 | AK22: 0 | AM22: =$S22*G22 -> 0 | AN22: 0 | AO22: 0 | AP22: 0 | AQ22: 0 | AR22: 0 | AS22: 0 | AT22: 0 | AU22: 0 | AV22: 0 | AX22: =$T22*G22 -> 0 | AY22: 0 | AZ22: 0 | BA22: 0 | BB22: 0 | BC22: 0 | BD22: 0 | BE22: 0 | BF22: 0 | BG22: 0 | BI22: =$U22*G22 -> 0 | BJ22: 0 | BK22: 0 | BL22: 0 | BM22: 0 | BN22: 0 | BO22: 0 | BP22: 0 | BQ22: 0 | BR22: 0 | BT22: =$U22*R22 -> 0 | BU22: 0 | BV22: 0 | BW22: 0 | BX22: 0 | BY22: 0 | BZ22: 0 | CA22: 0 | CB22: 0 | CC22: 0 | CE22: =$U22*AC22 -> 0 | CF22: 0 | CG22: 0 | CH22: 0 | CI22: 0 | CJ22: 0 | CK22: 0 | CL22: 0 | CM22: 0 | CN22: 0 | CP22: =$X22*G22 -> 0 | CQ22: 0 | CR22: 0 | CS22: 0 | CT22: 0 | CU22: 0 | CV22: 0 | CW22: 0 | CX22: 0 | CY22: 0 | DA22: =$Y22*G22 -> 0 | DB22: 0 | DC22: 0 | DD22: 0 | DE22: 0 | DF22: 0 | DG22: 0 | DH22: 0 | DI22: 0 | DJ22: 0
B23: Total | G23: =SUM(G7:G22) -> 0 | H23: 0 | I23: 0 | J23: 0 | K23: 0 | L23: 0 | M23: 0 | N23: 0 | O23: 0 | P23: 0 | Q23: =SUM(G23:P23) -> 0 | AB23: =SUM(AB7:AB22) -> 0 | AC23: 0 | AD23: 0 | AE23: 0 | AF23: 0 | AG23: 0 | AH23: 0 | AI23: 0 | AJ23: 0 | AK23: 0 | AM23: =SUM(AM7:AM22) -> 0 | AN23: 0 | AO23: 0 | AP23: 0 | AQ23: 0 | AR23: 0 | AS23: 0 | AT23: 0 | AU23: 0 | AV23: 0 | AX23: =SUM(AX7:AX22) -> 0 | AY23: 0 | AZ23: 0 | BA23: 0 | BB23: 0 | BC23: 0 | BD23: 0 | BE23: 0 | BF23: 0 | BG23: 0 | BI23: =SUM(BI7:BI22) -> 0 | BJ23: 0 | BK23: 0 | BL23: 0 | BM23: 0 | BN23: 0 | BO23: 0 | BP23: 0 | BQ23: 0 | BR23: 0 | BT23: =SUM(BT7:BT22) -> 0 | BU23: 0 | BV23: 0 | BW23: 0 | BX23: 0 | BY23: 0 | BZ23: 0 | CA23: 0 | CB23: 0 | CC23: 0 | CE23: =SUM(CE7:CE22) -> 0 | CF23: 0 | CG23: 0 | CH23: 0 | CI23: 0 | CJ23: 0 | CK23: 0 | CL23: 0 | CM23: 0 | CN23: 0 | CP23: =SUM(CP7:CP22) -> 0 | CQ23: 0 | CR23: 0 | CS23: 0 | CT23: 0 | CU23: 0 | CV23: 0 | CW23: 0 | CX23: 0 | CY23: 0 | DA23: =SUM(DA7:DA22) -> 0 | DB23: 0 | DC23: 0 | DD23: 0 | DE23: 0 | DF23: 0 | DG23: 0 | DH23: 0 | DI23: 0 | DJ23: 0
D269: Totals

Sheet 2021-2022
B1: Project Costs in 2021-2022
G4: Total Cost £K | R4: Funding source % | AB4: Licensee Compulsory Contribution/Direct Benefits | AM4: ABB | AX4: Siemens | BI4: GE | BT4: Vodafone | CE4: PNDC | CP4: Licensee Extra Contribution | DA4: Outstanding Funding Required
G5: Labour | H5: Equipment | I5: Contractors | J5: IT | K5: IPR Costs | L5: Travel & Expenses | M5: Payments to users | N5: Contingency | O5: Decommissioning | P5: Other | R5: Licensee Compulsory Contribution /Direct Benefits | S5: ABB | T5: Siemens | U5: GE | V5: Vodafone | W5: PNDC | X5: Licensee Extra Contribution | Y5: Oustanding Funding Required | Z5: Total | AB5: Labour | AC5: Equipment | AD5: Contractors | AE5: IT | AF5: IPR Costs | AG5: Travel & Expenses | AH5: Payments to users | AI5: Contingency | AJ5: Decommissioning | AK5: Other | AM5: Labour | AN5: Equipment | AO5: Contractors | AP5: IT | AQ5: IPR Costs | AR5: Travel & Expenses | AS5: Payments to users | AT5: Contingency | AU5: Decommissioning | AV5: Other | AX5: Labour | AY5: Equipment | AZ5: Contractors | BA5: IT | BB5: IPR Costs | BC5: Travel & Expenses | BD5: Payments to users | BE5: Contingency | BF5: Decommissioning | BG5: Other | BI5: Labour | BJ5: Equipment | BK5: Contractors | BL5: IT | BM5: IPR Costs | BN5: Travel & Expenses | BO5: Payments to users | BP5: Contingency | BQ5: Decommissioning | BR5: Other | BT5: Labour | BU5: Equipment | BV5: Contractors | BW5: IT | BX5: IPR Costs | BY5: Travel & Expenses | BZ5: Payments to users | CA5: Contingency | CB5: Decommissioning | CC5: Other | CE5: Labour | CF5: Equipment | CG5: Contractors | CH5: IT | CI5: IPR Costs | CJ5: Travel & Expenses | CK5: Payments to users | CL5: Contingency | CM5: Decommissioning | CN5: Other | CP5: Labour | CQ5: Equipment | CR5: Contractors | CS5: IT | CT5: IPR Costs | CU5: Travel & Expenses | CV5: Payments to users | CW5: Contingency | CX5: Decommissioning | CY5: Other | DA5: Labour | DB5: Equipment | DC5: Contractors | DD5: IT | DE5: IPR Costs | DF5: Travel & Expenses | DG5: Payments to users | DH5: Contingency | DI5: Decommissioning | DJ5: Other
B6: Description | C6: Task | D6: Project Workstream
B7: Solution design and approval | C7: Details of the system design and architecture for protection and control on a substation with local intelligence | D7: Workstreams 1 and 2 | Z7: =SUM(R7:Y7) -> 0 | AB7: =$R7*G7 -> 0 | AC7: 0 | AD7: 0 | AE7: 0 | AF7: 0 | AG7: 0 | AH7: 0 | AI7: 0 | AJ7: 0 | AK7: 0 | AM7: =$S7*G7 -> 0 | AN7: 0 | AO7: 0 | AP7: 0 | AQ7: 0 | AR7: 0 | AS7: 0 | AT7: 0 | AU7: 0 | AV7: 0 | AX7: =$T7*G7 -> 0 | AY7: 0 | AZ7: 0 | BA7: 0 | BB7: 0 | BC7: 0 | BD7: 0 | BE7: 0 | BF7: 0 | BG7: 0 | BI7: =$U7*G7 -> 0 | BJ7: 0 | BK7: 0 | BL7: 0 | BM7: 0 | BN7: 0 | BO7: 0 | BP7: 0 | BQ7: 0 | BR7: 0 | BT7: =$V7*G7 -> 0 | BU7: =$V7*H7 -> 0 | BV7: 0 | BW7: 0 | BX7: 0 | BY7: 0 | BZ7: 0 | CA7: 0 | CB7: 0 | CC7: 0 | CE7: =$W7*G7 -> 0 | CF7: =$W7*H7 -> 0 | CG7: 0 | CH7: 0 | CI7: 0 | CJ7: 0 | CK7: 0 | CL7: 0 | CM7: 0 | CN7: 0 | CP7: =$X7*G7 -> 0 | CQ7: 0 | CR7: 0 | CS7: 0 | CT7: 0 | CU7: 0 | CV7: 0 | CW7: 0 | CX7: 0 | CY7: 0 | DA7: =$Y7*G7 -> 0 | DB7: 0 | DC7: 0 | DD7: 0 | DE7: 0 | DF7: 0 | DG7: 0 | DH7: 0 | DI7: 0 | DJ7: 0
B8: Trial design and site selection | C8: Description of the trial design and site selection criteria process | D8: Workstreams 2 and 3 | Z8: =SUM(R8:Y8) -> 0 | AB8: =$R8*G8 -> 0 | AC8: =$R8*H8 -> 0 | AD8: =$R8*I8 -> 0 | AE8: =$R8*J8 -> 0 | AF8: =$R8*K8 -> 0 | AG8: =$R8*L8 -> 0 | AH8: =$R8*M8 -> 0 | AI8: =$R8*N8 -> 0 | AJ8: =$R8*O8 -> 0 | AK8: =$R8*P8 -> 0 | AM8: =$S8*G8 -> 0 | AN8: =$S8*H8 -> 0 | AO8: =$S8*I8 -> 0 | AP8: =$S8*J8 -> 0 | AQ8: =$S8*K8 -> 0 | AR8: =$S8*L8 -> 0 | AS8: =$S8*M8 -> 0 | AT8: =$S8*N8 -> 0 | AU8: =$S8*O8 -> 0 | AV8: =$S8*P8 -> 0 | AX8: =$T8*G8 -> 0 | AY8: =$T8*H8 -> 0 | AZ8: =$T8*I8 -> 0 | BA8: =$T8*J8 -> 0 | BB8: =$T8*K8 -> 0 | BC8: =$T8*L8 -> 0 | BD8: =$T8*M8 -> 0 | BE8: =$T8*N8 -> 0 | BF8: =$T8*O8 -> 0 | BG8: =$T8*P8 -> 0 | BI8: =$U8*G8 -> 0 | BJ8: =$U8*H8 -> 0 | BK8: =$U8*I8 -> 0 | BL8: =$U8*J8 -> 0 | BM8: =$U8*K8 -> 0 | BN8: =$U8*L8 -> 0 | BO8: =$U8*M8 -> 0 | BP8: =$U8*N8 -> 0 | BQ8: =$U8*O8 -> 0 | BR8: =$U8*P8 -> 0 | BT8: =$V8*G8 -> 0 | BU8: =$V8*H8 -> 0 | BV8: =$V8*I8 -> 0 | BW8: =$V8*J8 -> 0 | BX8: =$V8*K8 -> 0 | BY8: =$V8*L8 -> 0 | BZ8: =$V8*M8 -> 0 | CA8: =$V8*N8 -> 0 | CB8: =$V8*O8 -> 0 | CC8: =$V8*P8 -> 0 | CE8: =$W8*G8 -> 0 | CF8: =$W8*H8 -> 0 | CG8: =$W8*I8 -> 0 | CH8: =$W8*J8 -> 0 | CI8: =$W8*K8 -> 0 | CJ8: =$W8*L8 -> 0 | CK8: =$W8*M8 -> 0 | CL8: =$W8*N8 -> 0 | CM8: =$W8*O8 -> 0 | CN8: =$W8*P8 -> 0 | CP8: =$X8*G8 -> 0 | CQ8: =$X8*H8 -> 0 | CR8: =$X8*I8 -> 0 | CS8: =$X8*J8 -> 0 | CT8: =$X8*K8 -> 0 | CU8: =$X8*L8 -> 0 | CV8: =$X8*M8 -> 0 | CW8: =$X8*N8 -> 0 | CX8: =$X8*O8 -> 0 | CY8: =$X8*P8 -> 0 | DA8: =$Y8*G8 -> 0 | DB8: =$Y8*H8 -> 0 | DC8: =$Y8*I8 -> 0 | DD8: =$Y8*J8 -> 0 | DE8: =$Y8*K8 -> 0 | DF8: =$Y8*L8 -> 0 | DG8: =$Y8*M8 -> 0 | DH8: =$Y8*N8 -> 0 | DI8: =$Y8*O8 -> 0 | DJ8: =$Y8*P8 -> 0
B9: Equipment specification and purchase | C9: Description of the trial design and site selection criteria process | D9: Workstream 2 | Z9: 0 | AB9: 0 | AC9: 0 | AD9: 0 | AE9: 0 | AF9: 0 | AG9: 0 | AH9: 0 | AI9: 0 | AJ9: 0 | AK9: 0 | AM9: 0 | AN9: 0 | AO9: 0 | AP9: 0 | AQ9: 0 | AR9: 0 | AS9: 0 | AT9: 0 | AU9: 0 | AV9: 0 | AX9: 0 | AY9: 0 | AZ9: 0 | BA9: 0 | BB9: 0 | BC9: 0 | BD9: 0 | BE9: 0 | BF9: 0 | BG9: 0 | BI9: 0 | BJ9: 0 | BK9: 0 | BL9: 0 | BM9: 0 | BN9: 0 | BO9: 0 | BP9: 0 | BQ9: 0 | BR9: 0 | BT9: 0 | BU9: 0 | BV9: 0 | BW9: 0 | BX9: 0 | BY9: 0 | BZ9: 0 | CA9: 0 | CB9: 0 | CC9: 0 | CE9: 0 | CF9: 0 | CG9: 0 | CH9: 0 | CI9: 0 | CJ9: 0 | CK9: 0 | CL9: 0 | CM9: 0 | CN9: 0 | CP9: 0 | CQ9: 0 | CR9: 0 | CS9: 0 | CT9: 0 | CU9: 0 | CV9: 0 | CW9: 0 | CX9: 0 | CY9: 0 | DA9: 0 | DB9: 0 | DC9: 0 | DD9: 0 | DE9: 0 | DF9: 0 | DG9: 0 | DH9: 0 | DI9: 0 | DJ9: 0
B10: Solution development and approval | C10: Initial learning from off-network PNDC trial, and learning from functionality development, virtualisation | D10: Workstreams 1 and 2 | Z10: 0 | AB10: 0 | AC10: 0 | AD10: 0 | AE10: 0 | AF10: 0 | AG10: 0 | AH10: 0 | AI10: 0 | AJ10: 0 | AK10: 0 | AM10: 0 | AN10: 0 | AO10: 0 | AP10: 0 | AQ10: 0 | AR10: 0 | AS10: 0 | AT10: 0 | AU10: 0 | AV10: 0 | AX10: 0 | AY10: 0 | AZ10: 0 | BA10: 0 | BB10: 0 | BC10: 0 | BD10: 0 | BE10: 0 | BF10: 0 | BG10: 0 | BI10: 0 | BJ10: 0 | BK10: 0 | BL10: 0 | BM10: 0 | BN10: 0 | BO10: 0 | BP10: 0 | BQ10: 0 | BR10: 0 | BT10: 0 | BU10: 0 | BV10: 0 | BW10: 0 | BX10: 0 | BY10: 0 | BZ10: 0 | CA10: 0 | CB10: 0 | CC10: 0 | CE10: 0 | CF10: 0 | CG10: 0 | CH10: 0 | CI10: 0 | CJ10: 0 | CK10: 0 | CL10: 0 | CM10: 0 | CN10: 0 | CP10: 0 | CQ10: 0 | CR10: 0 | CS10: 0 | CT10: 0 | CU10: 0 | CV10: 0 | CW10: 0 | CX10: 0 | CY10: 0 | DA10: 0 | DB10: 0 | DC10: 0 | DD10: 0 | DE10: 0 | DF10: 0 | DG10: 0 | DH10: 0 | DI10: 0 | DJ10: 0
B11: Initial validation and off-network installation and testing | C11: Initial learning from off-network PNDC trial, and learning from functionality development, virtualisation | D11: Workstream 3 | Z11: 0 | AB11: 0 | AC11: 0 | AD11: 0 | AE11: 0 | AF11: 0 | AG11: 0 | AH11: 0 | AI11: 0 | AJ11: 0 | AK11: 0 | AM11: 0 | AN11: 0 | AO11: 0 | AP11: 0 | AQ11: 0 | AR11: 0 | AS11: 0 | AT11: 0 | AU11: 0 | AV11: 0 | AX11: 0 | AY11: 0 | AZ11: 0 | BA11: 0 | BB11: 0 | BC11: 0 | BD11: 0 | BE11: 0 | BF11: 0 | BG11: 0 | BI11: 0 | BJ11: 0 | BK11: 0 | BL11: 0 | BM11: 0 | BN11: 0 | BO11: 0 | BP11: 0 | BQ11: 0 | BR11: 0 | BT11: 0 | BU11: 0 | BV11: 0 | BW11: 0 | BX11: 0 | BY11: 0 | BZ11: 0 | CA11: 0 | CB11: 0 | CC11: 0 | CE11: 0 | CF11: 0 | CG11: 0 | CH11: 0 | CI11: 0 | CJ11: 0 | CK11: 0 | CL11: 0 | CM11: 0 | CN11: 0 | CP11: 0 | CQ11: 0 | CR11: 0 | CS11: 0 | CT11: 0 | CU11: 0 | CV11: 0 | CW11: 0 | CX11: 0 | CY11: 0 | DA11: 0 | DB11: 0 | DC11: 0 | DD11: 0 | DE11: 0 | DF11: 0 | DG11: 0 | DH11: 0 | DI11: 0 | DJ11: 0
B12: Trial site preparation: design, installation and commissioning | C12: Review of site installation and learning from mid trial passive network demonstration | D12: Workstream 2 | Z12: 0 | AB12: 0 | AC12: 0 | AD12: 0 | AE12: 0 | AF12: 0 | AG12: 0 | AH12: 0 | AI12: 0 | AJ12: 0 | AK12: 0 | AM12: 0 | AN12: 0 | AO12: 0 | AP12: 0 | AQ12: 0 | AR12: 0 | AS12: 0 | AT12: 0 | AU12: 0 | AV12: 0 | AX12: 0 | AY12: 0 | AZ12: 0 | BA12: 0 | BB12: 0 | BC12: 0 | BD12: 0 | BE12: 0 | BF12: 0 | BG12: 0 | BI12: 0 | BJ12: 0 | BK12: 0 | BL12: 0 | BM12: 0 | BN12: 0 | BO12: 0 | BP12: 0 | BQ12: 0 | BR12: 0 | BT12: 0 | BU12: 0 | BV12: 0 | BW12: 0 | BX12: 0 | BY12: 0 | BZ12: 0 | CA12: 0 | CB12: 0 | CC12: 0 | CE12: 0 | CF12: 0 | CG12: 0 | CH12: 0 | CI12: 0 | CJ12: 0 | CK12: 0 | CL12: 0 | CM12: 0 | CN12: 0 | CP12: 0 | CQ12: 0 | CR12: 0 | CS12: 0 | CT12: 0 | CU12: 0 | CV12: 0 | CW12: 0 | CX12: 0 | CY12: 0 | DA12: 0 | DB12: 0 | DC12: 0 | DD12: 0 | DE12: 0 | DF12: 0 | DG12: 0 | DH12: 0 | DI12: 0 | DJ12: 0
B13: Site acceptance testing and solution reiterations | C13: Review of site installation and learning from mid trial passive network demonstration | D13: Workstream 3 | Z13: 0 | AB13: 0 | AC13: 0 | AD13: 0 | AE13: 0 | AF13: 0 | AG13: 0 | AH13: 0 | AI13: 0 | AJ13: 0 | AK13: 0 | AM13: 0 | AN13: 0 | AO13: 0 | AP13: 0 | AQ13: 0 | AR13: 0 | AS13: 0 | AT13: 0 | AU13: 0 | AV13: 0 | AX13: 0 | AY13: 0 | AZ13: 0 | BA13: 0 | BB13: 0 | BC13: 0 | BD13: 0 | BE13: 0 | BF13: 0 | BG13: 0 | BI13: 0 | BJ13: 0 | BK13: 0 | BL13: 0 | BM13: 0 | BN13: 0 | BO13: 0 | BP13: 0 | BQ13: 0 | BR13: 0 | BT13: 0 | BU13: 0 | BV13: 0 | BW13: 0 | BX13: 0 | BY13: 0 | BZ13: 0 | CA13: 0 | CB13: 0 | CC13: 0 | CE13: 0 | CF13: 0 | CG13: 0 | CH13: 0 | CI13: 0 | CJ13: 0 | CK13: 0 | CL13: 0 | CM13: 0 | CN13: 0 | CP13: 0 | CQ13: 0 | CR13: 0 | CS13: 0 | CT13: 0 | CU13: 0 | CV13: 0 | CW13: 0 | CX13: 0 | CY13: 0 | DA13: 0 | DB13: 0 | DC13: 0 | DD13: 0 | DE13: 0 | DF13: 0 | DG13: 0 | DH13: 0 | DI13: 0 | DJ13: 0
B14: Transition from PNDC to live network | C14: Review of site installation and learning from mid trial passive network demonstration | D14: Workstream 3 | Z14: 0 | AB14: 0 | AC14: 0 | AD14: 0 | AE14: 0 | AF14: 0 | AG14: 0 | AH14: 0 | AI14: 0 | AJ14: 0 | AK14: 0 | AM14: 0 | AN14: 0 | AO14: 0 | AP14: 0 | AQ14: 0 | AR14: 0 | AS14: 0 | AT14: 0 | AU14: 0 | AV14: 0 | AX14: 0 | AY14: 0 | AZ14: 0 | BA14: 0 | BB14: 0 | BC14: 0 | BD14: 0 | BE14: 0 | BF14: 0 | BG14: 0 | BI14: 0 | BJ14: 0 | BK14: 0 | BL14: 0 | BM14: 0 | BN14: 0 | BO14: 0 | BP14: 0 | BQ14: 0 | BR14: 0 | BT14: 0 | BU14: 0 | BV14: 0 | BW14: 0 | BX14: 0 | BY14: 0 | BZ14: 0 | CA14: 0 | CB14: 0 | CC14: 0 | CE14: 0 | CF14: 0 | CG14: 0 | CH14: 0 | CI14: 0 | CJ14: 0 | CK14: 0 | CL14: 0 | CM14: 0 | CN14: 0 | CP14: 0 | CQ14: 0 | CR14: 0 | CS14: 0 | CT14: 0 | CU14: 0 | CV14: 0 | CW14: 0 | CX14: 0 | CY14: 0 | DA14: 0 | DB14: 0 | DC14: 0 | DD14: 0 | DE14: 0 | DF14: 0 | DG14: 0 | DH14: 0 | DI14: 0 | DJ14: 0
B15: Plan, launch, publicise and select OIC participants | C15: Learning from the innovation competition process | D15: Workstream 4 | Z15: 0 | AB15: 0 | AC15: 0 | AD15: 0 | AE15: 0 | AF15: 0 | AG15: 0 | AH15: 0 | AI15: 0 | AJ15: 0 | AK15: 0 | AM15: 0 | AN15: 0 | AO15: 0 | AP15: 0 | AQ15: 0 | AR15: 0 | AS15: 0 | AT15: 0 | AU15: 0 | AV15: 0 | AX15: 0 | AY15: 0 | AZ15: 0 | BA15: 0 | BB15: 0 | BC15: 0 | BD15: 0 | BE15: 0 | BF15: 0 | BG15: 0 | BI15: 0 | BJ15: 0 | BK15: 0 | BL15: 0 | BM15: 0 | BN15: 0 | BO15: 0 | BP15: 0 | BQ15: 0 | BR15: 0 | BT15: 0 | BU15: 0 | BV15: 0 | BW15: 0 | BX15: 0 | BY15: 0 | BZ15: 0 | CA15: 0 | CB15: 0 | CC15: 0 | CE15: 0 | CF15: 0 | CG15: 0 | CH15: 0 | CI15: 0 | CJ15: 0 | CK15: 0 | CL15: 0 | CM15: 0 | CN15: 0 | CP15: 0 | CQ15: 0 | CR15: 0 | CS15: 0 | CT15: 0 | CU15: 0 | CV15: 0 | CW15: 0 | CX15: 0 | CY15: 0 | DA15: 0 | DB15: 0 | DC15: 0 | DD15: 0 | DE15: 0 | DF15: 0 | DG15: 0 | DH15: 0 | DI15: 0 | DJ15: 0
B16: Incubate, test and deploy as network trial | C16: Learning from the innovation competition process | D16: Workstream 4 | Z16: 0 | AB16: 0 | AC16: 0 | AD16: 0 | AE16: 0 | AF16: 0 | AG16: 0 | AH16: 0 | AI16: 0 | AJ16: 0 | AK16: 0 | AM16: 0 | AN16: 0 | AO16: 0 | AP16: 0 | AQ16: 0 | AR16: 0 | AS16: 0 | AT16: 0 | AU16: 0 | AV16: 0 | AX16: 0 | AY16: 0 | AZ16: 0 | BA16: 0 | BB16: 0 | BC16: 0 | BD16: 0 | BE16: 0 | BF16: 0 | BG16: 0 | BI16: 0 | BJ16: 0 | BK16: 0 | BL16: 0 | BM16: 0 | BN16: 0 | BO16: 0 | BP16: 0 | BQ16: 0 | BR16: 0 | BT16: 0 | BU16: 0 | BV16: 0 | BW16: 0 | BX16: 0 | BY16: 0 | BZ16: 0 | CA16: 0 | CB16: 0 | CC16: 0 | CE16: 0 | CF16: 0 | CG16: 0 | CH16: 0 | CI16: 0 | CJ16: 0 | CK16: 0 | CL16: 0 | CM16: 0 | CN16: 0 | CP16: 0 | CQ16: 0 | CR16: 0 | CS16: 0 | CT16: 0 | CU16: 0 | CV16: 0 | CW16: 0 | CX16: 0 | CY16: 0 | DA16: 0 | DB16: 0 | DC16: 0 | DD16: 0 | DE16: 0 | DF16: 0 | DG16: 0 | DH16: 0 | DI16: 0 | DJ16: 0
B17: Launch academic research and review deliverables | C17: Learning from academic insights and the governance required to prepare for the future world of distributed & autonomous network operation | D17: Workstream 5 | Z17: 0 | AB17: 0 | AC17: 0 | AD17: 0 | AE17: 0 | AF17: 0 | AG17: 0 | AH17: 0 | AI17: 0 | AJ17: 0 | AK17: 0 | AM17: 0 | AN17: 0 | AO17: 0 | AP17: 0 | AQ17: 0 | AR17: 0 | AS17: 0 | AT17: 0 | AU17: 0 | AV17: 0 | AX17: 0 | AY17: 0 | AZ17: 0 | BA17: 0 | BB17: 0 | BC17: 0 | BD17: 0 | BE17: 0 | BF17: 0 | BG17: 0 | BI17: 0 | BJ17: 0 | BK17: 0 | BL17: 0 | BM17: 0 | BN17: 0 | BO17: 0 | BP17: 0 | BQ17: 0 | BR17: 0 | BT17: 0 | BU17: 0 | BV17: 0 | BW17: 0 | BX17: 0 | BY17: 0 | BZ17: 0 | CA17: 0 | CB17: 0 | CC17: 0 | CE17: 0 | CF17: 0 | CG17: 0 | CH17: 0 | CI17: 0 | CJ17: 0 | CK17: 0 | CL17: 0 | CM17: 0 | CN17: 0 | CP17: 0 | CQ17: 0 | CR17: 0 | CS17: 0 | CT17: 0 | CU17: 0 | CV17: 0 | CW17: 0 | CX17: 0 | CY17: 0 | DA17: 0 | DB17: 0 | DC17: 0 | DD17: 0 | DE17: 0 | DF17: 0 | DG17: 0 | DH17: 0 | DI17: 0 | DJ17: 0
B18: Data gathering and engineering support for network trials | C18: Presentation of findings from project trials and innovation competition trial | D18: Workstream 3 | Z18: 0 | AB18: 0 | AC18: 0 | AD18: 0 | AE18: 0 | AF18: 0 | AG18: 0 | AH18: 0 | AI18: 0 | AJ18: 0 | AK18: 0 | AM18: 0 | AN18: 0 | AO18: 0 | AP18: 0 | AQ18: 0 | AR18: 0 | AS18: 0 | AT18: 0 | AU18: 0 | AV18: 0 | AX18: 0 | AY18: 0 | AZ18: 0 | BA18: 0 | BB18: 0 | BC18: 0 | BD18: 0 | BE18: 0 | BF18: 0 | BG18: 0 | BI18: 0 | BJ18: 0 | BK18: 0 | BL18: 0 | BM18: 0 | BN18: 0 | BO18: 0 | BP18: 0 | BQ18: 0 | BR18: 0 | BT18: 0 | BU18: 0 | BV18: 0 | BW18: 0 | BX18: 0 | BY18: 0 | BZ18: 0 | CA18: 0 | CB18: 0 | CC18: 0 | CE18: 0 | CF18: 0 | CG18: 0 | CH18: 0 | CI18: 0 | CJ18: 0 | CK18: 0 | CL18: 0 | CM18: 0 | CN18: 0 | CP18: 0 | CQ18: 0 | CR18: 0 | CS18: 0 | CT18: 0 | CU18: 0 | CV18: 0 | CW18: 0 | CX18: 0 | CY18: 0 | DA18: 0 | DB18: 0 | DC18: 0 | DD18: 0 | DE18: 0 | DF18: 0 | DG18: 0 | DH18: 0 | DI18: 0 | DJ18: 0
B19: Communications, training, dissemination and events | C19: Presentation of findings from project trials and innovation competition trial | D19: Workstream 6 | Z19: 0 | AB19: 0 | AC19: 0 | AD19: 0 | AE19: 0 | AF19: 0 | AG19: 0 | AH19: 0 | AI19: 0 | AJ19: 0 | AK19: 0 | AM19: 0 | AN19: 0 | AO19: 0 | AP19: 0 | AQ19: 0 | AR19: 0 | AS19: 0 | AT19: 0 | AU19: 0 | AV19: 0 | AX19: 0 | AY19: 0 | AZ19: 0 | BA19: 0 | BB19: 0 | BC19: 0 | BD19: 0 | BE19: 0 | BF19: 0 | BG19: 0 | BI19: 0 | BJ19: 0 | BK19: 0 | BL19: 0 | BM19: 0 | BN19: 0 | BO19: 0 | BP19: 0 | BQ19: 0 | BR19: 0 | BT19: 0 | BU19: 0 | BV19: 0 | BW19: 0 | BX19: 0 | BY19: 0 | BZ19: 0 | CA19: 0 | CB19: 0 | CC19: 0 | CE19: 0 | CF19: 0 | CG19: 0 | CH19: 0 | CI19: 0 | CJ19: 0 | CK19: 0 | CL19: 0 | CM19: 0 | CN19: 0 | CP19: 0 | CQ19: 0 | CR19: 0 | CS19: 0 | CT19: 0 | CU19: 0 | CV19: 0 | CW19: 0 | CX19: 0 | CY19: 0 | DA19: 0 | DB19: 0 | DC19: 0 | DD19: 0 | DE19: 0 | DF19: 0 | DG19: 0 | DH19: 0 | DI19: 0 | DJ19: 0
B20: Project management and contingency | C20: Presentation of findings from project trials and innovation competition trial | D20: PM | Z20: 0 | AB20: 0 | AC20: 0 | AD20: 0 | AE20: 0 | AF20: 0 | AG20: 0 | AH20: 0 | AI20: 0 | AJ20: 0 | AK20: 0 | AM20: 0 | AN20: 0 | AO20: 0 | AP20: 0 | AQ20: 0 | AR20: 0 | AS20: 0 | AT20: 0 | AU20: 0 | AV20: 0 | AX20: 0 | AY20: 0 | AZ20: 0 | BA20: 0 | BB20: 0 | BC20: 0 | BD20: 0 | BE20: 0 | BF20: 0 | BG20: 0 | BI20: 0 | BJ20: 0 | BK20: 0 | BL20: 0 | BM20: 0 | BN20: 0 | BO20: 0 | BP20: 0 | BQ20: 0 | BR20: 0 | BT20: 0 | BU20: 0 | BV20: 0 | BW20: 0 | BX20: 0 | BY20: 0 | BZ20: 0 | CA20: 0 | CB20: 0 | CC20: 0 | CE20: 0 | CF20: 0 | CG20: 0 | CH20: 0 | CI20: 0 | CJ20: 0 | CK20: 0 | CL20: 0 | CM20: 0 | CN20: 0 | CP20: 0 | CQ20: 0 | CR20: 0 | CS20: 0 | CT20: 0 | CU20: 0 | CV20: 0 | CW20: 0 | CX20: 0 | CY20: 0 | DA20: 0 | DB20: 0 | DC20: 0 | DD20: 0 | DE20: 0 | DF20: 0 | DG20: 0 | DH20: 0 | DI20: 0 | DJ20: 0
Q21: Total Cost | Z21: =SUM(R21:Y21) -> 0 | AB21: =$R21*G21 -> 0 | AC21: 0 | AD21: 0 | AE21: 0 | AF21: 0 | AG21: 0 | AH21: 0 | AI21: 0 | AJ21: 0 | AK21: 0 | AM21: =$S21*G21 -> 0 | AN21: 0 | AO21: 0 | AP21: 0 | AQ21: 0 | AR21: 0 | AS21: 0 | AT21: 0 | AU21: 0 | AV21: 0 | AX21: =$T21*G21 -> 0 | AY21: 0 | AZ21: 0 | BA21: 0 | BB21: 0 | BC21: 0 | BD21: 0 | BE21: 0 | BF21: 0 | BG21: 0 | BI21: =$U21*G21 -> 0 | BJ21: 0 | BK21: 0 | BL21: 0 | BM21: 0 | BN21: 0 | BO21: 0 | BP21: 0 | BQ21: 0 | BR21: 0 | BT21: =$V21*G21 -> 0 | BU21: =$V21*H21 -> 0 | BV21: =$V21*I21 -> 0 | BW21: =$V21*J21 -> 0 | BX21: =$V21*K21 -> 0 | BY21: =$V21*L21 -> 0 | BZ21: =$V21*M21 -> 0 | CA21: =$V21*N21 -> 0 | CB21: =$V21*O21 -> 0 | CC21: =$V21*P21 -> 0 | CE21: =$W21*G21 -> 0 | CF21: =$W21*H21 -> 0 | CG21: =$W21*I21 -> 0 | CH21: =$W21*J21 -> 0 | CI21: =$W21*K21 -> 0 | CJ21: =$W21*L21 -> 0 | CK21: =$W21*M21 -> 0 | CL21: =$W21*N21 -> 0 | CM21: =$W21*O21 -> 0 | CN21: =$W21*P21 -> 0 | CP21: =$X21*G21 -> 0 | CQ21: 0 | CR21: 0 | CS21: 0 | CT21: 0 | CU21: 0 | CV21: 0 | CW21: 0 | CX21: 0 | CY21: 0 | DA21: =$Y21*G21 -> 0 | DB21: 0 | DC21: 0 | DD21: 0 | DE21: 0 | DF21: 0 | DG21: 0 | DH21: 0 | DI21: 0 | DJ21: 0
B22: Total | G22: =SUM(G7:G21) -> 0 | H22: 0 | I22: 0 | J22: 0 | K22: 0 | L22: 0 | M22: 0 | N22: 0 | O22: 0 | P22: 0 | Q22: =SUM(G22:P22) -> 0 | AB22: =SUM(AB7:AB21) -> 0 | AC22: 0 | AD22: 0 | AE22: 0 | AF22: 0 | AG22: 0 | AH22: 0 | AI22: 0 | AJ22: 0 | AK22: 0 | AM22: =SUM(AM7:AM21) -> 0 | AN22: 0 | AO22: 0 | AP22: 0 | AQ22: 0 | AR22: 0 | AS22: 0 | AT22: 0 | AU22: 0 | AV22: 0 | AX22: =SUM(AX7:AX21) -> 0 | AY22: 0 | AZ22: 0 | BA22: 0 | BB22: 0 | BC22: 0 | BD22: 0 | BE22: 0 | BF22: 0 | BG22: 0 | BI22: =SUM(BI7:BI21) -> 0 | BJ22: 0 | BK22: 0 | BL22: 0 | BM22: 0 | BN22: 0 | BO22: 0 | BP22: 0 | BQ22: 0 | BR22: 0 | BT22: =SUM(BT7:BT21) -> 0 | BU22: =SUM(BU7:BU21) -> 0 | BV22: 0 | BW22: 0 | BX22: 0 | BY22: 0 | BZ22: 0 | CA22: 0 | CB22: 0 | CC22: 0 | CE22: =SUM(CE7:CE21) -> 0 | CF22: 0 | CG22: 0 | CH22: 0 | CI22: 0 | CJ22: 0 | CK22: 0 | CL22: 0 | CM22: 0 | CN22: 0 | CP22: =SUM(CP7:CP21) -> 0 | CQ22: 0 | CR22: 0 | CS22: 0 | CT22: 0 | CU22: 0 | CV22: 0 | CW22: 0 | CX22: 0 | CY22: 0 | DA22: =SUM(DA7:DA21) -> 0 | DB22: 0 | DC22: 0 | DD22: 0 | DE22: 0 | DF22: 0 | DG22: 0 | DH22: 0 | DI22: 0 | DJ22: 0
D268: Totals

Sheet 2022-2023
B1: Project Costs in 2022-2023
G4: Total Cost £K | R4: Funding source % | AB4: Licensee Compulsory Contribution/Direct Benefits | AM4: ABB | AX4: Siemens | BI4: GE | BT4: Vodafone | CE4: PNDC | CP4: Licensee Extra Contribution | DA4: Outstanding Funding Required
G5: Labour | H5: Equipment | I5: Contractors | J5: IT | K5: IPR Costs | L5: Travel & Expenses | M5: Payments to users | N5: Contingency | O5: Decommissioning | P5: Other | R5: Licensee Compulsory Contribution /Direct Benefits | S5: ABB | T5: Siemens | U5: GE | V5: Vodafone | W5: PNDC | X5: Licensee Extra Contribution | Y5: Oustanding Funding Required | Z5: Total | AB5: Labour | AC5: Equipment | AD5: Contractors | AE5: IT | AF5: IPR Costs | AG5: Travel & Expenses | AH5: Payments to users | AI5: Contingency | AJ5: Decommissioning | AK5: Other | AM5: Labour | AN5: Equipment | AO5: Contractors | AP5: IT | AQ5: IPR Costs | AR5: Travel & Expenses | AS5: Payments to users | AT5: Contingency | AU5: Decommissioning | AV5: Other | AX5: Labour | AY5: Equipment | AZ5: Contractors | BA5: IT | BB5: IPR Costs | BC5: Travel & Expenses | BD5: Payments to users | BE5: Contingency | BF5: Decommissioning | BG5: Other | BI5: Labour | BJ5: Equipment | BK5: Contractors | BL5: IT | BM5: IPR Costs | BN5: Travel & Expenses | BO5: Payments to users | BP5: Contingency | BQ5: Decommissioning | BR5: Other | BT5: Labour | BU5: Equipment | BV5: Contractors | BW5: IT | BX5: IPR Costs | BY5: Travel & Expenses | BZ5: Payments to users | CA5: Contingency | CB5: Decommissioning | CC5: Other | CE5: Labour | CF5: Equipment | CG5: Contractors | CH5: IT | CI5: IPR Costs | CJ5: Travel & Expenses | CK5: Payments to users | CL5: Contingency | CM5: Decommissioning | CN5: Other | CP5: Labour | CQ5: Equipment | CR5: Contractors | CS5: IT | CT5: IPR Costs | CU5: Travel & Expenses | CV5: Payments to users | CW5: Contingency | CX5: Decommissioning | CY5: Other | DA5: Labour | DB5: Equipment | DC5: Contractors | DD5: IT | DE5: IPR Costs | DF5: Travel & Expenses | DG5: Payments to users | DH5: Contingency | DI5: Decommissioning | DJ5: Other
B6: Description | C6: Task | D6: Project Workstream
B7: Solution design and approval | C7: Details of the system design and architecture for protection and control on a substation with local intelligence | D7: Workstreams 1 and 2 | Z7: =SUM(R7:Y7) -> 0 | AB7: =$R7*G7 -> 0 | AC7: 0 | AD7: 0 | AE7: 0 | AF7: 0 | AG7: 0 | AH7: 0 | AI7: 0 | AJ7: 0 | AK7: 0 | AM7: =$S7*G7 -> 0 | AN7: 0 | AO7: 0 | AP7: 0 | AQ7: 0 | AR7: 0 | AS7: 0 | AT7: 0 | AU7: 0 | AV7: 0 | AX7: =$T7*G7 -> 0 | AY7: 0 | AZ7: 0 | BA7: 0 | BB7: 0 | BC7: 0 | BD7: 0 | BE7: 0 | BF7: 0 | BG7: 0 | BI7: =$U7*G7 -> 0 | BJ7: 0 | BK7: 0 | BL7: 0 | BM7: 0 | BN7: 0 | BO7: 0 | BP7: 0 | BQ7: 0 | BR7: 0 | BT7: =$V7*G7 -> 0 | BU7: =$V7*H7 -> 0 | BV7: 0 | BW7: 0 | BX7: 0 | BY7: 0 | BZ7: 0 | CA7: 0 | CB7: 0 | CC7: 0 | CE7: =$W7*G7 -> 0 | CF7: =$W7*H7 -> 0 | CG7: 0 | CH7: 0 | CI7: 0 | CJ7: 0 | CK7: 0 | CL7: 0 | CM7: 0 | CN7: 0 | CP7: =$X7*G7 -> 0 | CQ7: 0 | CR7: 0 | CS7: 0 | CT7: 0 | CU7: 0 | CV7: 0 | CW7: 0 | CX7: 0 | CY7: 0 | DA7: =$Y7*G7 -> 0 | DB7: 0 | DC7: 0 | DD7: 0 | DE7: 0 | DF7: 0 | DG7: 0 | DH7: 0 | DI7: 0 | DJ7: 0
B8: Trial design and site selection | C8: Description of the trial design and site selection criteria process | D8: Workstreams 2 and 3 | Z8: =SUM(R8:Y8) -> 0 | AB8: =$R8*G8 -> 0 | AC8: =$R8*H8 -> 0 | AD8: =$R8*I8 -> 0 | AE8: =$R8*J8 -> 0 | AF8: =$R8*K8 -> 0 | AG8: =$R8*L8 -> 0 | AH8: =$R8*M8 -> 0 | AI8: =$R8*N8 -> 0 | AJ8: =$R8*O8 -> 0 | AK8: =$R8*P8 -> 0 | AM8: =$S8*G8 -> 0 | AN8: =$S8*H8 -> 0 | AO8: =$S8*I8 -> 0 | AP8: =$S8*J8 -> 0 | AQ8: =$S8*K8 -> 0 | AR8: =$S8*L8 -> 0 | AS8: =$S8*M8 -> 0 | AT8: =$S8*N8 -> 0 | AU8: =$S8*O8 -> 0 | AV8: =$S8*P8 -> 0 | AX8: =$T8*G8 -> 0 | AY8: =$T8*H8 -> 0 | AZ8: =$T8*I8 -> 0 | BA8: =$T8*J8 -> 0 | BB8: =$T8*K8 -> 0 | BC8: =$T8*L8 -> 0 | BD8: =$T8*M8 -> 0 | BE8: =$T8*N8 -> 0 | BF8: =$T8*O8 -> 0 | BG8: =$T8*P8 -> 0 | BI8: =$U8*G8 -> 0 | BJ8: =$U8*H8 -> 0 | BK8: =$U8*I8 -> 0 | BL8: =$U8*J8 -> 0 | BM8: =$U8*K8 -> 0 | BN8: =$U8*L8 -> 0 | BO8: =$U8*M8 -> 0 | BP8: =$U8*N8 -> 0 | BQ8: =$U8*O8 -> 0 | BR8: =$U8*P8 -> 0 | BT8: =$V8*G8 -> 0 | BU8: =$V8*H8 -> 0 | BV8: =$V8*I8 -> 0 | BW8: =$V8*J8 -> 0 | BX8: =$V8*K8 -> 0 | BY8: =$V8*L8 -> 0 | BZ8: =$V8*M8 -> 0 | CA8: =$V8*N8 -> 0 | CB8: =$V8*O8 -> 0 | CC8: =$V8*P8 -> 0 | CE8: =$W8*G8 -> 0 | CF8: =$W8*H8 -> 0 | CG8: =$W8*I8 -> 0 | CH8: =$W8*J8 -> 0 | CI8: =$W8*K8 -> 0 | CJ8: =$W8*L8 -> 0 | CK8: =$W8*M8 -> 0 | CL8: =$W8*N8 -> 0 | CM8: =$W8*O8 -> 0 | CN8: =$W8*P8 -> 0 | CP8: =$X8*G8 -> 0 | CQ8: =$X8*H8 -> 0 | CR8: =$X8*I8 -> 0 | CS8: =$X8*J8 -> 0 | CT8: =$X8*K8 -> 0 | CU8: =$X8*L8 -> 0 | CV8: =$X8*M8 -> 0 | CW8: =$X8*N8 -> 0 | CX8: =$X8*O8 -> 0 | CY8: =$X8*P8 -> 0 | DA8: =$Y8*G8 -> 0 | DB8: =$Y8*H8 -> 0 | DC8: =$Y8*I8 -> 0 | DD8: =$Y8*J8 -> 0 | DE8: =$Y8*K8 -> 0 | DF8: =$Y8*L8 -> 0 | DG8: =$Y8*M8 -> 0 | DH8: =$Y8*N8 -> 0 | DI8: =$Y8*O8 -> 0 | DJ8: =$Y8*P8 -> 0
B9: Equipment specification and purchase | C9: Description of the trial design and site selection criteria process | D9: Workstream 2 | Z9: 0 | AB9: 0 | AC9: 0 | AD9: 0 | AE9: 0 | AF9: 0 | AG9: 0 | AH9: 0 | AI9: 0 | AJ9: 0 | AK9: 0 | AM9: 0 | AN9: 0 | AO9: 0 | AP9: 0 | AQ9: 0 | AR9: 0 | AS9: 0 | AT9: 0 | AU9: 0 | AV9: 0 | AX9: 0 | AY9: 0 | AZ9: 0 | BA9: 0 | BB9: 0 | BC9: 0 | BD9: 0 | BE9: 0 | BF9: 0 | BG9: 0 | BI9: 0 | BJ9: 0 | BK9: 0 | BL9: 0 | BM9: 0 | BN9: 0 | BO9: 0 | BP9: 0 | BQ9: 0 | BR9: 0 | BT9: 0 | BU9: 0 | BV9: 0 | BW9: 0 | BX9: 0 | BY9: 0 | BZ9: 0 | CA9: 0 | CB9: 0 | CC9: 0 | CE9: 0 | CF9: 0 | CG9: 0 | CH9: 0 | CI9: 0 | CJ9: 0 | CK9: 0 | CL9: 0 | CM9: 0 | CN9: 0 | CP9: 0 | CQ9: 0 | CR9: 0 | CS9: 0 | CT9: 0 | CU9: 0 | CV9: 0 | CW9: 0 | CX9: 0 | CY9: 0 | DA9: 0 | DB9: 0 | DC9: 0 | DD9: 0 | DE9: 0 | DF9: 0 | DG9: 0 | DH9: 0 | DI9: 0 | DJ9: 0
B10: Solution development and approval | C10: Initial learning from off-network PNDC trial, and learning from functionality development, virtualisation | D10: Workstreams 1 and 2 | Z10: 0 | AB10: 0 | AC10: 0 | AD10: 0 | AE10: 0 | AF10: 0 | AG10: 0 | AH10: 0 | AI10: 0 | AJ10: 0 | AK10: 0 | AM10: 0 | AN10: 0 | AO10: 0 | AP10: 0 | AQ10: 0 | AR10: 0 | AS10: 0 | AT10: 0 | AU10: 0 | AV10: 0 | AX10: 0 | AY10: 0 | AZ10: 0 | BA10: 0 | BB10: 0 | BC10: 0 | BD10: 0 | BE10: 0 | BF10: 0 | BG10: 0 | BI10: 0 | BJ10: 0 | BK10: 0 | BL10: 0 | BM10: 0 | BN10: 0 | BO10: 0 | BP10: 0 | BQ10: 0 | BR10: 0 | BT10: 0 | BU10: 0 | BV10: 0 | BW10: 0 | BX10: 0 | BY10: 0 | BZ10: 0 | CA10: 0 | CB10: 0 | CC10: 0 | CE10: 0 | CF10: 0 | CG10: 0 | CH10: 0 | CI10: 0 | CJ10: 0 | CK10: 0 | CL10: 0 | CM10: 0 | CN10: 0 | CP10: 0 | CQ10: 0 | CR10: 0 | CS10: 0 | CT10: 0 | CU10: 0 | CV10: 0 | CW10: 0 | CX10: 0 | CY10: 0 | DA10: 0 | DB10: 0 | DC10: 0 | DD10: 0 | DE10: 0 | DF10: 0 | DG10: 0 | DH10: 0 | DI10: 0 | DJ10: 0
B11: Initial validation and off-network installation and testing | C11: Initial learning from off-network PNDC trial, and learning from functionality development, virtualisation | D11: Workstream 3 | Z11: 0 | AB11: 0 | AC11: 0 | AD11: 0 | AE11: 0 | AF11: 0 | AG11: 0 | AH11: 0 | AI11: 0 | AJ11: 0 | AK11: 0 | AM11: 0 | AN11: 0 | AO11: 0 | AP11: 0 | AQ11: 0 | AR11: 0 | AS11: 0 | AT11: 0 | AU11: 0 | AV11: 0 | AX11: 0 | AY11: 0 | AZ11: 0 | BA11: 0 | BB11: 0 | BC11: 0 | BD11: 0 | BE11: 0 | BF11: 0 | BG11: 0 | BI11: 0 | BJ11: 0 | BK11: 0 | BL11: 0 | BM11: 0 | BN11: 0 | BO11: 0 | BP11: 0 | BQ11: 0 | BR11: 0 | BT11: 0 | BU11: 0 | BV11: 0 | BW11: 0 | BX11: 0 | BY11: 0 | BZ11: 0 | CA11: 0 | CB11: 0 | CC11: 0 | CE11: 0 | CF11: 0 | CG11: 0 | CH11: 0 | CI11: 0 | CJ11: 0 | CK11: 0 | CL11: 0 | CM11: 0 | CN11: 0 | CP11: 0 | CQ11: 0 | CR11: 0 | CS11: 0 | CT11: 0 | CU11: 0 | CV11: 0 | CW11: 0 | CX11: 0 | CY11: 0 | DA11: 0 | DB11: 0 | DC11: 0 | DD11: 0 | DE11: 0 | DF11: 0 | DG11: 0 | DH11: 0 | DI11: 0 | DJ11: 0
B12: Trial site preparation: design, installation and commissioning | C12: Review of site installation and learning from mid trial passive network demonstration | D12: Workstream 2 | Z12: 0 | AB12: 0 | AC12: 0 | AD12: 0 | AE12: 0 | AF12: 0 | AG12: 0 | AH12: 0 | AI12: 0 | AJ12: 0 | AK12: 0 | AM12: 0 | AN12: 0 | AO12: 0 | AP12: 0 | AQ12: 0 | AR12: 0 | AS12: 0 | AT12: 0 | AU12: 0 | AV12: 0 | AX12: 0 | AY12: 0 | AZ12: 0 | BA12: 0 | BB12: 0 | BC12: 0 | BD12: 0 | BE12: 0 | BF12: 0 | BG12: 0 | BI12: 0 | BJ12: 0 | BK12: 0 | BL12: 0 | BM12: 0 | BN12: 0 | BO12: 0 | BP12: 0 | BQ12: 0 | BR12: 0 | BT12: 0 | BU12: 0 | BV12: 0 | BW12: 0 | BX12: 0 | BY12: 0 | BZ12: 0 | CA12: 0 | CB12: 0 | CC12: 0 | CE12: 0 | CF12: 0 | CG12: 0 | CH12: 0 | CI12: 0 | CJ12: 0 | CK12: 0 | CL12: 0 | CM12: 0 | CN12: 0 | CP12: 0 | CQ12: 0 | CR12: 0 | CS12: 0 | CT12: 0 | CU12: 0 | CV12: 0 | CW12: 0 | CX12: 0 | CY12: 0 | DA12: 0 | DB12: 0 | DC12: 0 | DD12: 0 | DE12: 0 | DF12: 0 | DG12: 0 | DH12: 0 | DI12: 0 | DJ12: 0
B13: Site acceptance testing and solution reiterations | C13: Review of site installation and learning from mid trial passive network demonstration | D13: Workstream 3 | Z13: 0 | AB13: 0 | AC13: 0 | AD13: 0 | AE13: 0 | AF13: 0 | AG13: 0 | AH13: 0 | AI13: 0 | AJ13: 0 | AK13: 0 | AM13: 0 | AN13: 0 | AO13: 0 | AP13: 0 | AQ13: 0 | AR13: 0 | AS13: 0 | AT13: 0 | AU13: 0 | AV13: 0 | AX13: 0 | AY13: 0 | AZ13: 0 | BA13: 0 | BB13: 0 | BC13: 0 | BD13: 0 | BE13: 0 | BF13: 0 | BG13: 0 | BI13: 0 | BJ13: 0 | BK13: 0 | BL13: 0 | BM13: 0 | BN13: 0 | BO13: 0 | BP13: 0 | BQ13: 0 | BR13: 0 | BT13: 0 | BU13: 0 | BV13: 0 | BW13: 0 | BX13: 0 | BY13: 0 | BZ13: 0 | CA13: 0 | CB13: 0 | CC13: 0 | CE13: 0 | CF13: 0 | CG13: 0 | CH13: 0 | CI13: 0 | CJ13: 0 | CK13: 0 | CL13: 0 | CM13: 0 | CN13: 0 | CP13: 0 | CQ13: 0 | CR13: 0 | CS13: 0 | CT13: 0 | CU13: 0 | CV13: 0 | CW13: 0 | CX13: 0 | CY13: 0 | DA13: 0 | DB13: 0 | DC13: 0 | DD13: 0 | DE13: 0 | DF13: 0 | DG13: 0 | DH13: 0 | DI13: 0 | DJ13: 0
B14: Transition from PNDC to live network | C14: Review of site installation and learning from mid trial passive network demonstration | D14: Workstream 3 | Z14: 0 | AB14: 0 | AC14: 0 | AD14: 0 | AE14: 0 | AF14: 0 | AG14: 0 | AH14: 0 | AI14: 0 | AJ14: 0 | AK14: 0 | AM14: 0 | AN14: 0 | AO14: 0 | AP14: 0 | AQ14: 0 | AR14: 0 | AS14: 0 | AT14: 0 | AU14: 0 | AV14: 0 | AX14: 0 | AY14: 0 | AZ14: 0 | BA14: 0 | BB14: 0 | BC14: 0 | BD14: 0 | BE14: 0 | BF14: 0 | BG14: 0 | BI14: 0 | BJ14: 0 | BK14: 0 | BL14: 0 | BM14: 0 | BN14: 0 | BO14: 0 | BP14: 0 | BQ14: 0 | BR14: 0 | BT14: 0 | BU14: 0 | BV14: 0 | BW14: 0 | BX14: 0 | BY14: 0 | BZ14: 0 | CA14: 0 | CB14: 0 | CC14: 0 | CE14: 0 | CF14: 0 | CG14: 0 | CH14: 0 | CI14: 0 | CJ14: 0 | CK14: 0 | CL14: 0 | CM14: 0 | CN14: 0 | CP14: 0 | CQ14: 0 | CR14: 0 | CS14: 0 | CT14: 0 | CU14: 0 | CV14: 0 | CW14: 0 | CX14: 0 | CY14: 0 | DA14: 0 | DB14: 0 | DC14: 0 | DD14: 0 | DE14: 0 | DF14: 0 | DG14: 0 | DH14: 0 | DI14: 0 | DJ14: 0
B15: Plan, launch, publicise and select OIC participants | C15: Learning from the innovation competition process | D15: Workstream 4 | Z15: 0 | AB15: 0 | AC15: 0 | AD15: 0 | AE15: 0 | AF15: 0 | AG15: 0 | AH15: 0 | AI15: 0 | AJ15: 0 | AK15: 0 | AM15: 0 | AN15: 0 | AO15: 0 | AP15: 0 | AQ15: 0 | AR15: 0 | AS15: 0 | AT15: 0 | AU15: 0 | AV15: 0 | AX15: 0 | AY15: 0 | AZ15: 0 | BA15: 0 | BB15: 0 | BC15: 0 | BD15: 0 | BE15: 0 | BF15: 0 | BG15: 0 | BI15: 0 | BJ15: 0 | BK15: 0 | BL15: 0 | BM15: 0 | BN15: 0 | BO15: 0 | BP15: 0 | BQ15: 0 | BR15: 0 | BT15: 0 | BU15: 0 | BV15: 0 | BW15: 0 | BX15: 0 | BY15: 0 | BZ15: 0 | CA15: 0 | CB15: 0 | CC15: 0 | CE15: 0 | CF15: 0 | CG15: 0 | CH15: 0 | CI15: 0 | CJ15: 0 | CK15: 0 | CL15: 0 | CM15: 0 | CN15: 0 | CP15: 0 | CQ15: 0 | CR15: 0 | CS15: 0 | CT15: 0 | CU15: 0 | CV15: 0 | CW15: 0 | CX15: 0 | CY15: 0 | DA15: 0 | DB15: 0 | DC15: 0 | DD15: 0 | DE15: 0 | DF15: 0 | DG15: 0 | DH15: 0 | DI15: 0 | DJ15: 0
B16: Incubate, test and deploy as network trial | C16: Learning from the innovation competition process | D16: Workstream 4 | Z16: 0 | AB16: 0 | AC16: 0 | AD16: 0 | AE16: 0 | AF16: 0 | AG16: 0 | AH16: 0 | AI16: 0 | AJ16: 0 | AK16: 0 | AM16: 0 | AN16: 0 | AO16: 0 | AP16: 0 | AQ16: 0 | AR16: 0 | AS16: 0 | AT16: 0 | AU16: 0 | AV16: 0 | AX16: 0 | AY16: 0 | AZ16: 0 | BA16: 0 | BB16: 0 | BC16: 0 | BD16: 0 | BE16: 0 | BF16: 0 | BG16: 0 | BI16: 0 | BJ16: 0 | BK16: 0 | BL16: 0 | BM16: 0 | BN16: 0 | BO16: 0 | BP16: 0 | BQ16: 0 | BR16: 0 | BT16: 0 | BU16: 0 | BV16: 0 | BW16: 0 | BX16: 0 | BY16: 0 | BZ16: 0 | CA16: 0 | CB16: 0 | CC16: 0 | CE16: 0 | CF16: 0 | CG16: 0 | CH16: 0 | CI16: 0 | CJ16: 0 | CK16: 0 | CL16: 0 | CM16: 0 | CN16: 0 | CP16: 0 | CQ16: 0 | CR16: 0 | CS16: 0 | CT16: 0 | CU16: 0 | CV16: 0 | CW16: 0 | CX16: 0 | CY16: 0 | DA16: 0 | DB16: 0 | DC16: 0 | DD16: 0 | DE16: 0 | DF16: 0 | DG16: 0 | DH16: 0 | DI16: 0 | DJ16: 0
B17: Launch academic research and review deliverables | C17: Learning from academic insights and the governance required to prepare for the future world of distributed & autonomous network operation | D17: Workstream 5 | Z17: 0 | AB17: 0 | AC17: 0 | AD17: 0 | AE17: 0 | AF17: 0 | AG17: 0 | AH17: 0 | AI17: 0 | AJ17: 0 | AK17: 0 | AM17: 0 | AN17: 0 | AO17: 0 | AP17: 0 | AQ17: 0 | AR17: 0 | AS17: 0 | AT17: 0 | AU17: 0 | AV17: 0 | AX17: 0 | AY17: 0 | AZ17: 0 | BA17: 0 | BB17: 0 | BC17: 0 | BD17: 0 | BE17: 0 | BF17: 0 | BG17: 0 | BI17: 0 | BJ17: 0 | BK17: 0 | BL17: 0 | BM17: 0 | BN17: 0 | BO17: 0 | BP17: 0 | BQ17: 0 | BR17: 0 | BT17: 0 | BU17: 0 | BV17: 0 | BW17: 0 | BX17: 0 | BY17: 0 | BZ17: 0 | CA17: 0 | CB17: 0 | CC17: 0 | CE17: 0 | CF17: 0 | CG17: 0 | CH17: 0 | CI17: 0 | CJ17: 0 | CK17: 0 | CL17: 0 | CM17: 0 | CN17: 0 | CP17: 0 | CQ17: 0 | CR17: 0 | CS17: 0 | CT17: 0 | CU17: 0 | CV17: 0 | CW17: 0 | CX17: 0 | CY17: 0 | DA17: 0 | DB17: 0 | DC17: 0 | DD17: 0 | DE17: 0 | DF17: 0 | DG17: 0 | DH17: 0 | DI17: 0 | DJ17: 0
B18: Data gathering and engineering support for network trials | C18: Presentation of findings from project trials and innovation competition trial | D18: Workstream 3 | Z18: 0 | AB18: 0 | AC18: 0 | AD18: 0 | AE18: 0 | AF18: 0 | AG18: 0 | AH18: 0 | AI18: 0 | AJ18: 0 | AK18: 0 | AM18: 0 | AN18: 0 | AO18: 0 | AP18: 0 | AQ18: 0 | AR18: 0 | AS18: 0 | AT18: 0 | AU18: 0 | AV18: 0 | AX18: 0 | AY18: 0 | AZ18: 0 | BA18: 0 | BB18: 0 | BC18: 0 | BD18: 0 | BE18: 0 | BF18: 0 | BG18: 0 | BI18: 0 | BJ18: 0 | BK18: 0 | BL18: 0 | BM18: 0 | BN18: 0 | BO18: 0 | BP18: 0 | BQ18: 0 | BR18: 0 | BT18: 0 | BU18: 0 | BV18: 0 | BW18: 0 | BX18: 0 | BY18: 0 | BZ18: 0 | CA18: 0 | CB18: 0 | CC18: 0 | CE18: 0 | CF18: 0 | CG18: 0 | CH18: 0 | CI18: 0 | CJ18: 0 | CK18: 0 | CL18: 0 | CM18: 0 | CN18: 0 | CP18: 0 | CQ18: 0 | CR18: 0 | CS18: 0 | CT18: 0 | CU18: 0 | CV18: 0 | CW18: 0 | CX18: 0 | CY18: 0 | DA18: 0 | DB18: 0 | DC18: 0 | DD18: 0 | DE18: 0 | DF18: 0 | DG18: 0 | DH18: 0 | DI18: 0 | DJ18: 0
B19: Communications, training, dissemination and events | C19: Presentation of findings from project trials and innovation competition trial | D19: Workstream 6 | Z19: 0 | AB19: 0 | AC19: 0 | AD19: 0 | AE19: 0 | AF19: 0 | AG19: 0 | AH19: 0 | AI19: 0 | AJ19: 0 | AK19: 0 | AM19: 0 | AN19: 0 | AO19: 0 | AP19: 0 | AQ19: 0 | AR19: 0 | AS19: 0 | AT19: 0 | AU19: 0 | AV19: 0 | AX19: 0 | AY19: 0 | AZ19: 0 | BA19: 0 | BB19: 0 | BC19: 0 | BD19: 0 | BE19: 0 | BF19: 0 | BG19: 0 | BI19: 0 | BJ19: 0 | BK19: 0 | BL19: 0 | BM19: 0 | BN19: 0 | BO19: 0 | BP19: 0 | BQ19: 0 | BR19: 0 | BT19: 0 | BU19: 0 | BV19: 0 | BW19: 0 | BX19: 0 | BY19: 0 | BZ19: 0 | CA19: 0 | CB19: 0 | CC19: 0 | CE19: 0 | CF19: 0 | CG19: 0 | CH19: 0 | CI19: 0 | CJ19: 0 | CK19: 0 | CL19: 0 | CM19: 0 | CN19: 0 | CP19: 0 | CQ19: 0 | CR19: 0 | CS19: 0 | CT19: 0 | CU19: 0 | CV19: 0 | CW19: 0 | CX19: 0 | CY19: 0 | DA19: 0 | DB19: 0 | DC19: 0 | DD19: 0 | DE19: 0 | DF19: 0 | DG19: 0 | DH19: 0 | DI19: 0 | DJ19: 0
B20: Project management and contingency | C20: Presentation of findings from project trials and innovation competition trial | D20: PM | Z20: 0 | AB20: 0 | AC20: 0 | AD20: 0 | AE20: 0 | AF20: 0 | AG20: 0 | AH20: 0 | AI20: 0 | AJ20: 0 | AK20: 0 | AM20: 0 | AN20: 0 | AO20: 0 | AP20: 0 | AQ20: 0 | AR20: 0 | AS20: 0 | AT20: 0 | AU20: 0 | AV20: 0 | AX20: 0 | AY20: 0 | AZ20: 0 | BA20: 0 | BB20: 0 | BC20: 0 | BD20: 0 | BE20: 0 | BF20: 0 | BG20: 0 | BI20: 0 | BJ20: 0 | BK20: 0 | BL20: 0 | BM20: 0 | BN20: 0 | BO20: 0 | BP20: 0 | BQ20: 0 | BR20: 0 | BT20: 0 | BU20: 0 | BV20: 0 | BW20: 0 | BX20: 0 | BY20: 0 | BZ20: 0 | CA20: 0 | CB20: 0 | CC20: 0 | CE20: 0 | CF20: 0 | CG20: 0 | CH20: 0 | CI20: 0 | CJ20: 0 | CK20: 0 | CL20: 0 | CM20: 0 | CN20: 0 | CP20: 0 | CQ20: 0 | CR20: 0 | CS20: 0 | CT20: 0 | CU20: 0 | CV20: 0 | CW20: 0 | CX20: 0 | CY20: 0 | DA20: 0 | DB20: 0 | DC20: 0 | DD20: 0 | DE20: 0 | DF20: 0 | DG20: 0 | DH20: 0 | DI20: 0 | DJ20: 0
Q21: Total Cost | Z21: =SUM(R21:Y21) -> 0 | AB21: =$R21*G21 -> 0 | AC21: 0 | AD21: 0 | AE21: 0 | AF21: 0 | AG21: 0 | AH21: 0 | AI21: 0 | AJ21: 0 | AK21: 0 | AM21: =$S21*G21 -> 0 | AN21: 0 | AO21: 0 | AP21: 0 | AQ21: 0 | AR21: 0 | AS21: 0 | AT21: 0 | AU21: 0 | AV21: 0 | AX21: =$T21*G21 -> 0 | AY21: 0 | AZ21: 0 | BA21: 0 | BB21: 0 | BC21: 0 | BD21: 0 | BE21: 0 | BF21: 0 | BG21: 0 | BI21: =$U21*G21 -> 0 | BJ21: 0 | BK21: 0 | BL21: 0 | BM21: 0 | BN21: 0 | BO21: 0 | BP21: 0 | BQ21: 0 | BR21: 0 | BT21: =$V21*G21 -> 0 | BU21: =$V21*H21 -> 0 | BV21: =$V21*I21 -> 0 | BW21: =$V21*J21 -> 0 | BX21: =$V21*K21 -> 0 | BY21: =$V21*L21 -> 0 | BZ21: =$V21*M21 -> 0 | CA21: =$V21*N21 -> 0 | CB21: =$V21*O21 -> 0 | CC21: =$V21*P21 -> 0 | CE21: =$W21*G21 -> 0 | CF21: =$W21*H21 -> 0 | CG21: =$W21*I21 -> 0 | CH21: =$W21*J21 -> 0 | CI21: =$W21*K21 -> 0 | CJ21: =$W21*L21 -> 0 | CK21: =$W21*M21 -> 0 | CL21: =$W21*N21 -> 0 | CM21: =$W21*O21 -> 0 | CN21: =$W21*P21 -> 0 | CP21: =$X21*G21 -> 0 | CQ21: 0 | CR21: 0 | CS21: 0 | CT21: 0 | CU21: 0 | CV21: 0 | CW21: 0 | CX21: 0 | CY21: 0 | DA21: =$Y21*G21 -> 0 | DB21: 0 | DC21: 0 | DD21: 0 | DE21: 0 | DF21: 0 | DG21: 0 | DH21: 0 | DI21: 0 | DJ21: 0
B22: Total | G22: =SUM(G7:G21) -> 0 | H22: 0 | I22: 0 | J22: 0 | K22: 0 | L22: 0 | M22: 0 | N22: 0 | O22: 0 | P22: 0 | Q22: =SUM(G22:P22) -> 0 | AB22: =SUM(AB7:AB21) -> 0 | AC22: 0 | AD22: 0 | AE22: 0 | AF22: 0 | AG22: 0 | AH22: 0 | AI22: 0 | AJ22: 0 | AK22: 0 | AM22: =SUM(AM7:AM21) -> 0 | AN22: 0 | AO22: 0 | AP22: 0 | AQ22: 0 | AR22: 0 | AS22: 0 | AT22: 0 | AU22: 0 | AV22: 0 | AX22: =SUM(AX7:AX21) -> 0 | AY22: 0 | AZ22: 0 | BA22: 0 | BB22: 0 | BC22: 0 | BD22: 0 | BE22: 0 | BF22: 0 | BG22: 0 | BI22: =SUM(BI7:BI21) -> 0 | BJ22: =SUM(BJ7:BJ21) -> 0 | BK22: 0 | BL22: 0 | BM22: 0 | BN22: 0 | BO22: 0 | BP22: 0 | BQ22: 0 | BR22: 0 | BT22: =SUM(BT7:BT21) -> 0 | BU22: =SUM(BU7:BU21) -> 0 | BV22: =SUM(BV7:BV21) -> 0 | BW22: =SUM(BW7:BW21) -> 0 | BX22: =SUM(BX7:BX21) -> 0 | BY22: =SUM(BY7:BY21) -> 0 | BZ22: =SUM(BZ7:BZ21) -> 0 | CA22: =SUM(CA7:CA21) -> 0 | CB22: =SUM(CB7:CB21) -> 0 | CC22: =SUM(CC7:CC21) -> 0 | CE22: =SUM(CE7:CE21) -> 0 | CF22: =SUM(CF7:CF21) -> 0 | CG22: =SUM(CG7:CG21) -> 0 | CH22: =SUM(CH7:CH21) -> 0 | CI22: =SUM(CI7:CI21) -> 0 | CJ22: =SUM(CJ7:CJ21) -> 0 | CK22: =SUM(CK7:CK21) -> 0 | CL22: =SUM(CL7:CL21) -> 0 | CM22: =SUM(CM7:CM21) -> 0 | CN22: =SUM(CN7:CN21) -> 0 | CP22: =SUM(CP7:CP21) -> 0 | CQ22: 0 | CR22: 0 | CS22: 0 | CT22: 0 | CU22: 0 | CV22: 0 | CW22: 0 | CX22: 0 | CY22: 0 | DA22: =SUM(DA7:DA21) -> 0 | DB22: 0 | DC22: 0 | DD22: 0 | DE22: 0 | DF22: 0 | DG22: 0 | DH22: 0 | DI22: 0 | DJ22: 0
D268: Totals

Sheet 2023-2024
B1: Project Costs in 2023-2024
G4: Total Cost £K | R4: Funding source % | AB4: Licensee Compulsory Contribution/Direct Benefits | AM4: ABB | AX4: Siemens | BI4: GE | BT4: Vodafone | CE4: PNDC | CP4: Licensee Extra Contribution | DA4: Outstanding Funding Required
G5: Labour | H5: Equipment | I5: Contractors | J5: IT | K5: IPR Costs | L5: Travel & Expenses | M5: Payments to users | N5: Contingency | O5: Decommissioning | P5: Other | R5: Licensee Compulsory Contribution /Direct Benefits | S5: ABB | T5: Siemens | U5: GE | V5: Vodafone | W5: PNDC | X5: Licensee Extra Contribution | Y5: Oustanding Funding Required | Z5: Total | AB5: Labour | AC5: Equipment | AD5: Contractors | AE5: IT | AF5: IPR Costs | AG5: Travel & Expenses | AH5: Payments to users | AI5: Contingency | AJ5: Decommissioning | AK5: Other | AM5: Labour | AN5: Equipment | AO5: Contractors | AP5: IT | AQ5: IPR Costs | AR5: Travel & Expenses | AS5: Payments to users | AT5: Contingency | AU5: Decommissioning | AV5: Other | AX5: Labour | AY5: Equipment | AZ5: Contractors | BA5: IT | BB5: IPR Costs | BC5: Travel & Expenses | BD5: Payments to users | BE5: Contingency | BF5: Decommissioning | BG5: Other | BI5: Labour | BJ5: Equipment | BK5: Contractors | BL5: IT | BM5: IPR Costs | BN5: Travel & Expenses | BO5: Payments to users | BP5: Contingency | BQ5: Decommissioning | BR5: Other | BT5: Labour | BU5: Equipment | BV5: Contractors | BW5: IT | BX5: IPR Costs | BY5: Travel & Expenses | BZ5: Payments to users | CA5: Contingency | CB5: Decommissioning | CC5: Other | CE5: Labour | CF5: Equipment | CG5: Contractors | CH5: IT | CI5: IPR Costs | CJ5: Travel & Expenses | CK5: Payments to users | CL5: Contingency | CM5: Decommissioning | CN5: Other | CP5: Labour | CQ5: Equipment | CR5: Contractors | CS5: IT | CT5: IPR Costs | CU5: Travel & Expenses | CV5: Payments to users | CW5: Contingency | CX5: Decommissioning | CY5: Other | DA5: Labour | DB5: Equipment | DC5: Contractors | DD5: IT | DE5: IPR Costs | DF5: Travel & Expenses | DG5: Payments to users | DH5: Contingency | DI5: Decommissioning | DJ5: Other
B6: Description | C6: Task | D6: Project Workstream
B7: Solution design and approval | C7: Details of the system design and architecture for protection and control on a substation with local intelligence | D7: Workstreams 1 and 2 | Z7: =SUM(R7:Y7) -> 0 | AB7: =$R7*G7 -> 0 | AC7: 0 | AD7: 0 | AE7: 0 | AF7: 0 | AG7: 0 | AH7: 0 | AI7: 0 | AJ7: 0 | AK7: 0 | AM7: =$S7*G7 -> 0 | AN7: 0 | AO7: 0 | AP7: 0 | AQ7: 0 | AR7: 0 | AS7: 0 | AT7: 0 | AU7: 0 | AV7: 0 | AX7: =$T7*G7 -> 0 | AY7: 0 | AZ7: 0 | BA7: 0 | BB7: 0 | BC7: 0 | BD7: 0 | BE7: 0 | BF7: 0 | BG7: 0 | BI7: =$U7*G7 -> 0 | BJ7: 0 | BK7: 0 | BL7: 0 | BM7: 0 | BN7: 0 | BO7: 0 | BP7: 0 | BQ7: 0 | BR7: 0 | BT7: =$V7*G7 -> 0 | BU7: =$V7*H7 -> 0 | BV7: 0 | BW7: 0 | BX7: 0 | BY7: 0 | BZ7: 0 | CA7: 0 | CB7: 0 | CC7: 0 | CE7: =$W7*G7 -> 0 | CF7: =$W7*H7 -> 0 | CG7: 0 | CH7: 0 | CI7: 0 | CJ7: 0 | CK7: 0 | CL7: 0 | CM7: 0 | CN7: 0 | CP7: =$X7*G7 -> 0 | CQ7: 0 | CR7: 0 | CS7: 0 | CT7: 0 | CU7: 0 | CV7: 0 | CW7: 0 | CX7: 0 | CY7: 0 | DA7: =$Y7*G7 -> 0 | DB7: 0 | DC7: 0 | DD7: 0 | DE7: 0 | DF7: 0 | DG7: 0 | DH7: 0 | DI7: 0 | DJ7: 0
B8: Trial design and site selection | C8: Description of the trial design and site selection criteria process | D8: Workstreams 2 and 3 | Z8: =SUM(R8:Y8) -> 0 | AB8: =$R8*G8 -> 0 | AC8: =$R8*H8 -> 0 | AD8: =$R8*I8 -> 0 | AE8: =$R8*J8 -> 0 | AF8: =$R8*K8 -> 0 | AG8: =$R8*L8 -> 0 | AH8: =$R8*M8 -> 0 | AI8: =$R8*N8 -> 0 | AJ8: =$R8*O8 -> 0 | AK8: =$R8*P8 -> 0 | AM8: =$S8*G8 -> 0 | AN8: =$S8*H8 -> 0 | AO8: =$S8*I8 -> 0 | AP8: =$S8*J8 -> 0 | AQ8: =$S8*K8 -> 0 | AR8: =$S8*L8 -> 0 | AS8: =$S8*M8 -> 0 | AT8: =$S8*N8 -> 0 | AU8: =$S8*O8 -> 0 | AV8: =$S8*P8 -> 0 | AX8: =$T8*G8 -> 0 | AY8: =$T8*H8 -> 0 | AZ8: =$T8*I8 -> 0 | BA8: =$T8*J8 -> 0 | BB8: =$T8*K8 -> 0 | BC8: =$T8*L8 -> 0 | BD8: =$T8*M8 -> 0 | BE8: =$T8*N8 -> 0 | BF8: =$T8*O8 -> 0 | BG8: =$T8*P8 -> 0 | BI8: =$U8*G8 -> 0 | BJ8: =$U8*H8 -> 0 | BK8: =$U8*I8 -> 0 | BL8: =$U8*J8 -> 0 | BM8: =$U8*K8 -> 0 | BN8: =$U8*L8 -> 0 | BO8: =$U8*M8 -> 0 | BP8: =$U8*N8 -> 0 | BQ8: =$U8*O8 -> 0 | BR8: =$U8*P8 -> 0 | BT8: =$V8*G8 -> 0 | BU8: =$V8*H8 -> 0 | BV8: =$V8*I8 -> 0 | BW8: =$V8*J8 -> 0 | BX8: =$V8*K8 -> 0 | BY8: =$V8*L8 -> 0 | BZ8: =$V8*M8 -> 0 | CA8: =$V8*N8 -> 0 | CB8: =$V8*O8 -> 0 | CC8: =$V8*P8 -> 0 | CE8: =$W8*G8 -> 0 | CF8: =$W8*H8 -> 0 | CG8: =$W8*I8 -> 0 | CH8: =$W8*J8 -> 0 | CI8: =$W8*K8 -> 0 | CJ8: =$W8*L8 -> 0 | CK8: =$W8*M8 -> 0 | CL8: =$W8*N8 -> 0 | CM8: =$W8*O8 -> 0 | CN8: =$W8*P8 -> 0 | CP8: =$X8*G8 -> 0 | CQ8: =$X8*H8 -> 0 | CR8: =$X8*I8 -> 0 | CS8: =$X8*J8 -> 0 | CT8: =$X8*K8 -> 0 | CU8: =$X8*L8 -> 0 | CV8: =$X8*M8 -> 0 | CW8: =$X8*N8 -> 0 | CX8: =$X8*O8 -> 0 | CY8: =$X8*P8 -> 0 | DA8: =$Y8*G8 -> 0 | DB8: =$Y8*H8 -> 0 | DC8: =$Y8*I8 -> 0 | DD8: =$Y8*J8 -> 0 | DE8: =$Y8*K8 -> 0 | DF8: =$Y8*L8 -> 0 | DG8: =$Y8*M8 -> 0 | DH8: =$Y8*N8 -> 0 | DI8: =$Y8*O8 -> 0 | DJ8: =$Y8*P8 -> 0
B9: Equipment specification and purchase | C9: Description of the trial design and site selection criteria process | D9: Workstream 2 | Z9: 0 | AB9: 0 | AC9: 0 | AD9: 0 | AE9: 0 | AF9: 0 | AG9: 0 | AH9: 0 | AI9: 0 | AJ9: 0 | AK9: 0 | AM9: 0 | AN9: 0 | AO9: 0 | AP9: 0 | AQ9: 0 | AR9: 0 | AS9: 0 | AT9: 0 | AU9: 0 | AV9: 0 | AX9: 0 | AY9: 0 | AZ9: 0 | BA9: 0 | BB9: 0 | BC9: 0 | BD9: 0 | BE9: 0 | BF9: 0 | BG9: 0 | BI9: 0 | BJ9: 0 | BK9: 0 | BL9: 0 | BM9: 0 | BN9: 0 | BO9: 0 | BP9: 0 | BQ9: 0 | BR9: 0 | BT9: 0 | BU9: 0 | BV9: 0 | BW9: 0 | BX9: 0 | BY9: 0 | BZ9: 0 | CA9: 0 | CB9: 0 | CC9: 0 | CE9: 0 | CF9: 0 | CG9: 0 | CH9: 0 | CI9: 0 | CJ9: 0 | CK9: 0 | CL9: 0 | CM9: 0 | CN9: 0 | CP9: 0 | CQ9: 0 | CR9: 0 | CS9: 0 | CT9: 0 | CU9: 0 | CV9: 0 | CW9: 0 | CX9: 0 | CY9: 0 | DA9: 0 | DB9: 0 | DC9: 0 | DD9: 0 | DE9: 0 | DF9: 0 | DG9: 0 | DH9: 0 | DI9: 0 | DJ9: 0
B10: Solution development and approval | C10: Initial learning from off-network PNDC trial, and learning from functionality development, virtualisation | D10: Workstreams 1 and 2 | Z10: 0 | AB10: 0 | AC10: 0 | AD10: 0 | AE10: 0 | AF10: 0 | AG10: 0 | AH10: 0 | AI10: 0 | AJ10: 0 | AK10: 0 | AM10: 0 | AN10: 0 | AO10: 0 | AP10: 0 | AQ10: 0 | AR10: 0 | AS10: 0 | AT10: 0 | AU10: 0 | AV10: 0 | AX10: 0 | AY10: 0 | AZ10: 0 | BA10: 0 | BB10: 0 | BC10: 0 | BD10: 0 | BE10: 0 | BF10: 0 | BG10: 0 | BI10: 0 | BJ10: 0 | BK10: 0 | BL10: 0 | BM10: 0 | BN10: 0 | BO10: 0 | BP10: 0 | BQ10: 0 | BR10: 0 | BT10: 0 | BU10: 0 | BV10: 0 | BW10: 0 | BX10: 0 | BY10: 0 | BZ10: 0 | CA10: 0 | CB10: 0 | CC10: 0 | CE10: 0 | CF10: 0 | CG10: 0 | CH10: 0 | CI10: 0 | CJ10: 0 | CK10: 0 | CL10: 0 | CM10: 0 | CN10: 0 | CP10: 0 | CQ10: 0 | CR10: 0 | CS10: 0 | CT10: 0 | CU10: 0 | CV10: 0 | CW10: 0 | CX10: 0 | CY10: 0 | DA10: 0 | DB10: 0 | DC10: 0 | DD10: 0 | DE10: 0 | DF10: 0 | DG10: 0 | DH10: 0 | DI10: 0 | DJ10: 0
B11: Initial validation and off-network installation and testing | C11: Initial learning from off-network PNDC trial, and learning from functionality development, virtualisation | D11: Workstream 3 | Z11: 0 | AB11: 0 | AC11: 0 | AD11: 0 | AE11: 0 | AF11: 0 | AG11: 0 | AH11: 0 | AI11: 0 | AJ11: 0 | AK11: 0 | AM11: 0 | AN11: 0 | AO11: 0 | AP11: 0 | AQ11: 0 | AR11: 0 | AS11: 0 | AT11: 0 | AU11: 0 | AV11: 0 | AX11: 0 | AY11: 0 | AZ11: 0 | BA11: 0 | BB11: 0 | BC11: 0 | BD11: 0 | BE11: 0 | BF11: 0 | BG11: 0 | BI11: 0 | BJ11: 0 | BK11: 0 | BL11: 0 | BM11: 0 | BN11: 0 | BO11: 0 | BP11: 0 | BQ11: 0 | BR11: 0 | BT11: 0 | BU11: 0 | BV11: 0 | BW11: 0 | BX11: 0 | BY11: 0 | BZ11: 0 | CA11: 0 | CB11: 0 | CC11: 0 | CE11: 0 | CF11: 0 | CG11: 0 | CH11: 0 | CI11: 0 | CJ11: 0 | CK11: 0 | CL11: 0 | CM11: 0 | CN11: 0 | CP11: 0 | CQ11: 0 | CR11: 0 | CS11: 0 | CT11: 0 | CU11: 0 | CV11: 0 | CW11: 0 | CX11: 0 | CY11: 0 | DA11: 0 | DB11: 0 | DC11: 0 | DD11: 0 | DE11: 0 | DF11: 0 | DG11: 0 | DH11: 0 | DI11: 0 | DJ11: 0
B12: Trial site preparation: design, installation and commissioning | C12: Review of site installation and learning from mid trial passive network demonstration | D12: Workstream 2 | Z12: 0 | AB12: 0 | AC12: 0 | AD12: =$R12*I12 -> 0 | AE12: =$R12*J12 -> 0 | AF12: 0 | AG12: 0 | AH12: 0 | AI12: 0 | AJ12: 0 | AK12: 0 | AM12: 0 | AN12: 0 | AO12: =$S12*I12 -> 0 | AP12: =$S12*J12 -> 0 | AQ12: 0 | AR12: 0 | AS12: 0 | AT12: 0 | AU12: 0 | AV12: 0 | AX12: 0 | AY12: 0 | AZ12: =$T12*I12 -> 0 | BA12: =$T12*J12 -> 0 | BB12: 0 | BC12: 0 | BD12: 0 | BE12: 0 | BF12: 0 | BG12: 0 | BI12: 0 | BJ12: 0 | BK12: =$U12*I12 -> 0 | BL12: =$U12*J12 -> 0 | BM12: 0 | BN12: 0 | BO12: 0 | BP12: 0 | BQ12: 0 | BR12: 0 | BT12: 0 | BU12: 0 | BV12: =$V12*I12 -> 0 | BW12: =$V12*J12 -> 0 | BX12: 0 | BY12: 0 | BZ12: 0 | CA12: 0 | CB12: 0 | CC12: 0 | CE12: 0 | CF12: 0 | CG12: =$W12*I12 -> 0 | CH12: =$W12*J12 -> 0 | CI12: 0 | CJ12: 0 | CK12: 0 | CL12: 0 | CM12: 0 | CN12: 0 | CP12: 0 | CQ12: 0 | CR12: =$X12*I12 -> 0 | CS12: =$X12*J12 -> 0 | CT12: 0 | CU12: 0 | CV12: 0 | CW12: 0 | CX12: 0 | CY12: 0 | DA12: 0 | DB12: 0 | DC12: =$Y12*I12 -> 0 | DD12: =$Y12*J12 -> 0 | DE12: 0 | DF12: 0 | DG12: 0 | DH12: 0 | DI12: 0 | DJ12: 0
B13: Site acceptance testing and solution reiterations | C13: Review of site installation and learning from mid trial passive network demonstration | D13: Workstream 3 | Z13: 0 | AB13: 0 | AC13: 0 | AD13: =$R13*I13 -> 0 | AE13: =$R13*J13 -> 0 | AF13: 0 | AG13: 0 | AH13: 0 | AI13: 0 | AJ13: 0 | AK13: 0 | AM13: 0 | AN13: 0 | AO13: =$S13*I13 -> 0 | AP13: =$S13*J13 -> 0 | AQ13: 0 | AR13: 0 | AS13: 0 | AT13: 0 | AU13: 0 | AV13: 0 | AX13: 0 | AY13: 0 | AZ13: =$T13*I13 -> 0 | BA13: =$T13*J13 -> 0 | BB13: 0 | BC13: 0 | BD13: 0 | BE13: 0 | BF13: 0 | BG13: 0 | BI13: 0 | BJ13: 0 | BK13: =$U13*I13 -> 0 | BL13: =$U13*J13 -> 0 | BM13: 0 | BN13: 0 | BO13: 0 | BP13: 0 | BQ13: 0 | BR13: 0 | BT13: 0 | BU13: 0 | BV13: =$V13*I13 -> 0 | BW13: =$V13*J13 -> 0 | BX13: 0 | BY13: 0 | BZ13: 0 | CA13: 0 | CB13: 0 | CC13: 0 | CE13: 0 | CF13: 0 | CG13: =$W13*I13 -> 0 | CH13: =$W13*J13 -> 0 | CI13: 0 | CJ13: 0 | CK13: 0 | CL13: 0 | CM13: 0 | CN13: 0 | CP13: 0 | CQ13: 0 | CR13: =$X13*I13 -> 0 | CS13: =$X13*J13 -> 0 | CT13: 0 | CU13: 0 | CV13: 0 | CW13: 0 | CX13: 0 | CY13: 0 | DA13: 0 | DB13: 0 | DC13: =$Y13*I13 -> 0 | DD13: =$Y13*J13 -> 0 | DE13: 0 | DF13: 0 | DG13: 0 | DH13: 0 | DI13: 0 | DJ13: 0
B14: Transition from PNDC to live network | C14: Review of site installation and learning from mid trial passive network demonstration | D14: Workstream 3 | Z14: 0 | AB14: 0 | AC14: 0 | AD14: 0 | AE14: 0 | AF14: 0 | AG14: 0 | AH14: 0 | AI14: 0 | AJ14: 0 | AK14: 0 | AM14: 0 | AN14: 0 | AO14: 0 | AP14: 0 | AQ14: 0 | AR14: 0 | AS14: 0 | AT14: 0 | AU14: 0 | AV14: 0 | AX14: 0 | AY14: 0 | AZ14: 0 | BA14: 0 | BB14: 0 | BC14: 0 | BD14: 0 | BE14: 0 | BF14: 0 | BG14: 0 | BI14: 0 | BJ14: 0 | BK14: 0 | BL14: 0 | BM14: 0 | BN14: 0 | BO14: 0 | BP14: 0 | BQ14: 0 | BR14: 0 | BT14: 0 | BU14: 0 | BV14: 0 | BW14: 0 | BX14: 0 | BY14: 0 | BZ14: 0 | CA14: 0 | CB14: 0 | CC14: 0 | CE14: 0 | CF14: 0 | CG14: 0 | CH14: 0 | CI14: 0 | CJ14: 0 | CK14: 0 | CL14: 0 | CM14: 0 | CN14: 0 | CP14: 0 | CQ14: 0 | CR14: 0 | CS14: 0 | CT14: 0 | CU14: 0 | CV14: 0 | CW14: 0 | CX14: 0 | CY14: 0 | DA14: 0 | DB14: 0 | DC14: 0 | DD14: 0 | DE14: 0 | DF14: 0 | DG14: 0 | DH14: 0 | DI14: 0 | DJ14: 0
B15: Plan, launch, publicise and select OIC participants | C15: Learning from the innovation competition process | D15: Workstream 4 | Z15: 0 | AB15: 0 | AC15: 0 | AD15: 0 | AE15: 0 | AF15: 0 | AG15: 0 | AH15: 0 | AI15: 0 | AJ15: 0 | AK15: 0 | AM15: 0 | AN15: 0 | AO15: 0 | AP15: 0 | AQ15: 0 | AR15: 0 | AS15: 0 | AT15: 0 | AU15: 0 | AV15: 0 | AX15: 0 | AY15: 0 | AZ15: 0 | BA15: 0 | BB15: 0 | BC15: 0 | BD15: 0 | BE15: 0 | BF15: 0 | BG15: 0 | BI15: 0 | BJ15: 0 | BK15: 0 | BL15: 0 | BM15: 0 | BN15: 0 | BO15: 0 | BP15: 0 | BQ15: 0 | BR15: 0 | BT15: 0 | BU15: 0 | BV15: 0 | BW15: 0 | BX15: 0 | BY15: 0 | BZ15: 0 | CA15: 0 | CB15: 0 | CC15: 0 | CE15: 0 | CF15: 0 | CG15: 0 | CH15: 0 | CI15: 0 | CJ15: 0 | CK15: 0 | CL15: 0 | CM15: 0 | CN15: 0 | CP15: 0 | CQ15: 0 | CR15: 0 | CS15: 0 | CT15: 0 | CU15: 0 | CV15: 0 | CW15: 0 | CX15: 0 | CY15: 0 | DA15: 0 | DB15: 0 | DC15: 0 | DD15: 0 | DE15: 0 | DF15: 0 | DG15: 0 | DH15: 0 | DI15: 0 | DJ15: 0
B16: Incubate, test and deploy as network trial | C16: Learning from the innovation competition process | D16: Workstream 4 | Z16: 0 | AB16: 0 | AC16: 0 | AD16: 0 | AE16: 0 | AF16: 0 | AG16: 0 | AH16: 0 | AI16: 0 | AJ16: 0 | AK16: 0 | AM16: 0 | AN16: 0 | AO16: 0 | AP16: 0 | AQ16: 0 | AR16: 0 | AS16: 0 | AT16: 0 | AU16: 0 | AV16: 0 | AX16: 0 | AY16: 0 | AZ16: 0 | BA16: 0 | BB16: 0 | BC16: 0 | BD16: 0 | BE16: 0 | BF16: 0 | BG16: 0 | BI16: 0 | BJ16: 0 | BK16: 0 | BL16: 0 | BM16: 0 | BN16: 0 | BO16: 0 | BP16: 0 | BQ16: 0 | BR16: 0 | BT16: 0 | BU16: 0 | BV16: 0 | BW16: 0 | BX16: 0 | BY16: 0 | BZ16: 0 | CA16: 0 | CB16: 0 | CC16: 0 | CE16: 0 | CF16: 0 | CG16: 0 | CH16: 0 | CI16: 0 | CJ16: 0 | CK16: 0 | CL16: 0 | CM16: 0 | CN16: 0 | CP16: 0 | CQ16: 0 | CR16: 0 | CS16: 0 | CT16: 0 | CU16: 0 | CV16: 0 | CW16: 0 | CX16: 0 | CY16: 0 | DA16: 0 | DB16: 0 | DC16: 0 | DD16: 0 | DE16: 0 | DF16: 0 | DG16: 0 | DH16: 0 | DI16: 0 | DJ16: 0
B17: Launch academic research and review deliverables | C17: Learning from academic insights and the governance required to prepare for the future world of distributed & autonomous network operation | D17: Workstream 5 | Z17: 0 | AB17: 0 | AC17: 0 | AD17: 0 | AE17: 0 | AF17: 0 | AG17: 0 | AH17: 0 | AI17: 0 | AJ17: 0 | AK17: 0 | AM17: 0 | AN17: 0 | AO17: 0 | AP17: 0 | AQ17: 0 | AR17: 0 | AS17: 0 | AT17: 0 | AU17: 0 | AV17: 0 | AX17: 0 | AY17: 0 | AZ17: 0 | BA17: 0 | BB17: 0 | BC17: 0 | BD17: 0 | BE17: 0 | BF17: 0 | BG17: 0 | BI17: 0 | BJ17: 0 | BK17: 0 | BL17: 0 | BM17: 0 | BN17: 0 | BO17: 0 | BP17: 0 | BQ17: 0 | BR17: 0 | BT17: 0 | BU17: 0 | BV17: 0 | BW17: 0 | BX17: 0 | BY17: 0 | BZ17: 0 | CA17: 0 | CB17: 0 | CC17: 0 | CE17: 0 | CF17: 0 | CG17: 0 | CH17: 0 | CI17: 0 | CJ17: 0 | CK17: 0 | CL17: 0 | CM17: 0 | CN17: 0 | CP17: 0 | CQ17: 0 | CR17: 0 | CS17: 0 | CT17: 0 | CU17: 0 | CV17: 0 | CW17: 0 | CX17: 0 | CY17: 0 | DA17: 0 | DB17: 0 | DC17: 0 | DD17: 0 | DE17: 0 | DF17: 0 | DG17: 0 | DH17: 0 | DI17: 0 | DJ17: 0
B18: Data gathering and engineering support for network trials | C18: Presentation of findings from project trials and innovation competition trial | D18: Workstream 3 | Z18: 0 | AB18: 0 | AC18: 0 | AD18: 0 | AE18: 0 | AF18: 0 | AG18: 0 | AH18: 0 | AI18: 0 | AJ18: 0 | AK18: 0 | AM18: 0 | AN18: 0 | AO18: 0 | AP18: 0 | AQ18: 0 | AR18: 0 | AS18: 0 | AT18: 0 | AU18: 0 | AV18: 0 | AX18: 0 | AY18: 0 | AZ18: 0 | BA18: 0 | BB18: 0 | BC18: 0 | BD18: 0 | BE18: 0 | BF18: 0 | BG18: 0 | BI18: 0 | BJ18: 0 | BK18: 0 | BL18: 0 | BM18: 0 | BN18: 0 | BO18: 0 | BP18: 0 | BQ18: 0 | BR18: 0 | BT18: 0 | BU18: 0 | BV18: 0 | BW18: 0 | BX18: 0 | BY18: 0 | BZ18: 0 | CA18: 0 | CB18: 0 | CC18: 0 | CE18: 0 | CF18: 0 | CG18: 0 | CH18: 0 | CI18: 0 | CJ18: 0 | CK18: 0 | CL18: 0 | CM18: 0 | CN18: 0 | CP18: 0 | CQ18: 0 | CR18: 0 | CS18: 0 | CT18: 0 | CU18: 0 | CV18: 0 | CW18: 0 | CX18: 0 | CY18: 0 | DA18: 0 | DB18: 0 | DC18: 0 | DD18: 0 | DE18: 0 | DF18: 0 | DG18: 0 | DH18: 0 | DI18: 0 | DJ18: 0
B19: Communications, training, dissemination and events | C19: Presentation of findings from project trials and innovation competition trial | D19: Workstream 6 | Z19: 0 | AB19: 0 | AC19: 0 | AD19: 0 | AE19: 0 | AF19: 0 | AG19: 0 | AH19: 0 | AI19: 0 | AJ19: 0 | AK19: 0 | AM19: 0 | AN19: 0 | AO19: 0 | AP19: 0 | AQ19: 0 | AR19: 0 | AS19: 0 | AT19: 0 | AU19: 0 | AV19: 0 | AX19: 0 | AY19: 0 | AZ19: 0 | BA19: 0 | BB19: 0 | BC19: 0 | BD19: 0 | BE19: 0 | BF19: 0 | BG19: 0 | BI19: 0 | BJ19: 0 | BK19: 0 | BL19: 0 | BM19: 0 | BN19: 0 | BO19: 0 | BP19: 0 | BQ19: 0 | BR19: 0 | BT19: 0 | BU19: 0 | BV19: 0 | BW19: 0 | BX19: 0 | BY19: 0 | BZ19: 0 | CA19: 0 | CB19: 0 | CC19: 0 | CE19: 0 | CF19: 0 | CG19: 0 | CH19: 0 | CI19: 0 | CJ19: 0 | CK19: 0 | CL19: 0 | CM19: 0 | CN19: 0 | CP19: 0 | CQ19: 0 | CR19: 0 | CS19: 0 | CT19: 0 | CU19: 0 | CV19: 0 | CW19: 0 | CX19: 0 | CY19: 0 | DA19: 0 | DB19: 0 | DC19: 0 | DD19: 0 | DE19: 0 | DF19: 0 | DG19: 0 | DH19: 0 | DI19: 0 | DJ19: 0
B20: Project management and contingency | C20: Presentation of findings from project trials and innovation competition trial | D20: PM | Z20: 0 | AB20: 0 | AC20: 0 | AD20: 0 | AE20: 0 | AF20: 0 | AG20: 0 | AH20: 0 | AI20: 0 | AJ20: 0 | AK20: 0 | AM20: 0 | AN20: 0 | AO20: 0 | AP20: 0 | AQ20: 0 | AR20: 0 | AS20: 0 | AT20: 0 | AU20: 0 | AV20: 0 | AX20: 0 | AY20: 0 | AZ20: 0 | BA20: 0 | BB20: 0 | BC20: 0 | BD20: 0 | BE20: 0 | BF20: 0 | BG20: 0 | BI20: 0 | BJ20: 0 | BK20: 0 | BL20: 0 | BM20: 0 | BN20: 0 | BO20: 0 | BP20: 0 | BQ20: 0 | BR20: 0 | BT20: 0 | BU20: 0 | BV20: 0 | BW20: 0 | BX20: 0 | BY20: 0 | BZ20: 0 | CA20: 0 | CB20: 0 | CC20: 0 | CE20: 0 | CF20: 0 | CG20: 0 | CH20: 0 | CI20: 0 | CJ20: 0 | CK20: 0 | CL20: 0 | CM20: 0 | CN20: 0 | CP20: 0 | CQ20: 0 | CR20: 0 | CS20: 0 | CT20: 0 | CU20: 0 | CV20: 0 | CW20: 0 | CX20: 0 | CY20: 0 | DA20: 0 | DB20: 0 | DC20: 0 | DD20: 0 | DE20: 0 | DF20: 0 | DG20: 0 | DH20: 0 | DI20: 0 | DJ20: 0
Q21: Total Cost | Z21: =SUM(R21:Y21) -> 0 | AB21: =$R21*G21 -> 0 | AC21: 0 | AD21: 0 | AE21: 0 | AF21: 0 | AG21: 0 | AH21: 0 | AI21: 0 | AJ21: 0 | AK21: 0 | AM21: =$S21*G21 -> 0 | AN21: 0 | AO21: 0 | AP21: 0 | AQ21: 0 | AR21: 0 | AS21: 0 | AT21: 0 | AU21: 0 | AV21: 0 | AX21: =$T21*G21 -> 0 | AY21: 0 | AZ21: 0 | BA21: 0 | BB21: 0 | BC21: 0 | BD21: 0 | BE21: 0 | BF21: 0 | BG21: 0 | BI21: =$U21*G21 -> 0 | BJ21: 0 | BK21: 0 | BL21: 0 | BM21: 0 | BN21: 0 | BO21: 0 | BP21: 0 | BQ21: 0 | BR21: 0 | BT21: =$V21*G21 -> 0 | BU21: =$V21*H21 -> 0 | BV21: =$V21*I21 -> 0 | BW21: =$V21*J21 -> 0 | BX21: =$V21*K21 -> 0 | BY21: =$V21*L21 -> 0 | BZ21: =$V21*M21 -> 0 | CA21: =$V21*N21 -> 0 | CB21: =$V21*O21 -> 0 | CC21: =$V21*P21 -> 0 | CE21: =$W21*G21 -> 0 | CF21: =$W21*H21 -> 0 | CG21: =$W21*I21 -> 0 | CH21: =$W21*J21 -> 0 | CI21: =$W21*K21 -> 0 | CJ21: =$W21*L21 -> 0 | CK21: =$W21*M21 -> 0 | CL21: =$W21*N21 -> 0 | CM21: =$W21*O21 -> 0 | CN21: =$W21*P21 -> 0 | CP21: =$X21*G21 -> 0 | CQ21: 0 | CR21: 0 | CS21: 0 | CT21: 0 | CU21: 0 | CV21: 0 | CW21: 0 | CX21: 0 | CY21: 0 | DA21: =$Y21*G21 -> 0 | DB21: 0 | DC21: 0 | DD21: 0 | DE21: 0 | DF21: 0 | DG21: 0 | DH21: 0 | DI21: 0 | DJ21: 0
B22: Total | G22: =SUM(G7:G21) -> 0 | H22: 0 | I22: 0 | J22: 0 | K22: 0 | L22: 0 | M22: 0 | N22: 0 | O22: 0 | P22: 0 | Q22: =SUM(G22:P22) -> 0 | AB22: =SUM(AB7:AB21) -> 0 | AC22: 0 | AD22: 0 | AE22: 0 | AF22: 0 | AG22: 0 | AH22: 0 | AI22: 0 | AJ22: 0 | AK22: 0 | AM22: =SUM(AM7:AM21) -> 0 | AN22: 0 | AO22: 0 | AP22: 0 | AQ22: 0 | AR22: 0 | AS22: 0 | AT22: 0 | AU22: 0 | AV22: 0 | AX22: =SUM(AX7:AX21) -> 0 | AY22: 0 | AZ22: 0 | BA22: 0 | BB22: 0 | BC22: 0 | BD22: 0 | BE22: 0 | BF22: 0 | BG22: 0 | BI22: =SUM(BI7:BI21) -> 0 | BJ22: 0 | BK22: 0 | BL22: 0 | BM22: 0 | BN22: 0 | BO22: 0 | BP22: 0 | BQ22: 0 | BR22: 0 | BT22: =SUM(BT7:BT21) -> 0 | BU22: =SUM(BU7:BU21) -> 0 | BV22: =SUM(BV7:BV21) -> 0 | BW22: =SUM(BW7:BW21) -> 0 | BX22: =SUM(BX7:BX21) -> 0 | BY22: =SUM(BY7:BY21) -> 0 | BZ22: =SUM(BZ7:BZ21) -> 0 | CA22: =SUM(CA7:CA21) -> 0 | CB22: =SUM(CB7:CB21) -> 0 | CC22: =SUM(CC7:CC21) -> 0 | CE22: =SUM(CE7:CE21) -> 0 | CF22: =SUM(CF7:CF21) -> 0 | CG22: =SUM(CG7:CG21) -> 0 | CH22: =SUM(CH7:CH21) -> 0 | CI22: =SUM(CI7:CI21) -> 0 | CJ22: =SUM(CJ7:CJ21) -> 0 | CK22: =SUM(CK7:CK21) -> 0 | CL22: =SUM(CL7:CL21) -> 0 | CM22: =SUM(CM7:CM21) -> 0 | CN22: =SUM(CN7:CN21) -> 0 | CP22: =SUM(CP7:CP21) -> 0 | CQ22: 0 | CR22: 0 | CS22: 0 | CT22: 0 | CU22: 0 | CV22: 0 | CW22: 0 | CX22: 0 | CY22: 0 | DA22: =SUM(DA7:DA21) -> 0 | DB22: 0 | DC22: 0 | DD22: 0 | DE22: 0 | DF22: 0 | DG22: 0 | DH22: 0 | DI22: 0 | DJ22: 0
D268: Totals

Sheet 2024-2025
B1: Project Costs in 2024-2025
G4: Total Cost £K | R4: Funding source % | AB4: Licensee Compulsory Contribution/Direct Benefits | AM4: ABB | AX4: Siemens | BI4: GE | BT4: Vodafone | CE4: PNDC | CP4: Licensee Extra Contribution | DA4: Outstanding Funding Required
G5: Labour | H5: Equipment | I5: Contractors | J5: IT | K5: IPR Costs | L5: Travel & Expenses | M5: Payments to users | N5: Contingency | O5: Decommissioning | P5: Other | R5: Licensee Compulsory Contribution /Direct Benefits | S5: ABB | T5: Siemens | U5: GE | V5: Vodafone | W5: PNDC | X5: Licensee Extra Contribution | Y5: Oustanding Funding Required | Z5: Total | AB5: Labour | AC5: Equipment | AD5: Contractors | AE5: IT | AF5: IPR Costs | AG5: Travel & Expenses | AH5: Payments to users | AI5: Contingency | AJ5: Decommissioning | AK5: Other | AM5: Labour | AN5: Equipment | AO5: Contractors | AP5: IT | AQ5: IPR Costs | AR5: Travel & Expenses | AS5: Payments to users | AT5: Contingency | AU5: Decommissioning | AV5: Other | AX5: Labour | AY5: Equipment | AZ5: Contractors | BA5: IT | BB5: IPR Costs | BC5: Travel & Expenses | BD5: Payments to users | BE5: Contingency | BF5: Decommissioning | BG5: Other | BI5: Labour | BJ5: Equipment | BK5: Contractors | BL5: IT | BM5: IPR Costs | BN5: Travel & Expenses | BO5: Payments to users | BP5: Contingency | BQ5: Decommissioning | BR5: Other | BT5: Labour | BU5: Equipment | BV5: Contractors | BW5: IT | BX5: IPR Costs | BY5: Travel & Expenses | BZ5: Payments to users | CA5: Contingency | CB5: Decommissioning | CC5: Other | CE5: Labour | CF5: Equipment | CG5: Contractors | CH5: IT | CI5: IPR Costs | CJ5: Travel & Expenses | CK5: Payments to users | CL5: Contingency | CM5: Decommissioning | CN5: Other | CP5: Labour | CQ5: Equipment | CR5: Contractors | CS5: IT | CT5: IPR Costs | CU5: Travel & Expenses | CV5: Payments to users | CW5: Contingency | CX5: Decommissioning | CY5: Other | DA5: Labour | DB5: Equipment | DC5: Contractors | DD5: IT | DE5: IPR Costs | DF5: Travel & Expenses | DG5: Payments to users | DH5: Contingency | DI5: Decommissioning | DJ5: Other
B6: Description | C6: Task | D6: Project Workstream
B7: Solution design and approval | C7: Details of the system design and architecture for protection and control on a substation with local intelligence | D7: Workstreams 1 and 2 | Z7: =SUM(R7:Y7) -> 0 | AB7: =$R7*G7 -> 0 | AC7: 0 | AD7: 0 | AE7: 0 | AF7: 0 | AG7: 0 | AH7: 0 | AI7: 0 | AJ7: 0 | AK7: 0 | AM7: =$S7*G7 -> 0 | AN7: 0 | AO7: 0 | AP7: 0 | AQ7: 0 | AR7: 0 | AS7: 0 | AT7: 0 | AU7: 0 | AV7: 0 | AX7: =$T7*G7 -> 0 | AY7: 0 | AZ7: 0 | BA7: 0 | BB7: 0 | BC7: 0 | BD7: 0 | BE7: 0 | BF7: 0 | BG7: 0 | BI7: =$U7*G7 -> 0 | BJ7: 0 | BK7: 0 | BL7: 0 | BM7: 0 | BN7: 0 | BO7: 0 | BP7: 0 | BQ7: 0 | BR7: 0 | BT7: =$V7*G7 -> 0 | BU7: =$V7*H7 -> 0 | BV7: 0 | BW7: 0 | BX7: 0 | BY7: 0 | BZ7: 0 | CA7: 0 | CB7: 0 | CC7: 0 | CE7: =$W7*G7 -> 0 | CF7: =$W7*H7 -> 0 | CG7: 0 | CH7: 0 | CI7: 0 | CJ7: 0 | CK7: 0 | CL7: 0 | CM7: 0 | CN7: 0 | CP7: =$X7*G7 -> 0 | CQ7: 0 | CR7: 0 | CS7: 0 | CT7: 0 | CU7: 0 | CV7: 0 | CW7: 0 | CX7: 0 | CY7: 0 | DA7: =$Y7*G7 -> 0 | DB7: 0 | DC7: 0 | DD7: 0 | DE7: 0 | DF7: 0 | DG7: 0 | DH7: 0 | DI7: 0 | DJ7: 0
B8: Trial design and site selection | C8: Description of the trial design and site selection criteria process | D8: Workstreams 2 and 3 | Z8: =SUM(R8:Y8) -> 0 | AB8: =$R8*G8 -> 0 | AC8: =$R8*H8 -> 0 | AD8: =$R8*I8 -> 0 | AE8: =$R8*J8 -> 0 | AF8: =$R8*K8 -> 0 | AG8: =$R8*L8 -> 0 | AH8: =$R8*M8 -> 0 | AI8: =$R8*N8 -> 0 | AJ8: =$R8*O8 -> 0 | AK8: =$R8*P8 -> 0 | AM8: =$S8*G8 -> 0 | AN8: =$S8*H8 -> 0 | AO8: =$S8*I8 -> 0 | AP8: =$S8*J8 -> 0 | AQ8: =$S8*K8 -> 0 | AR8: =$S8*L8 -> 0 | AS8: =$S8*M8 -> 0 | AT8: =$S8*N8 -> 0 | AU8: =$S8*O8 -> 0 | AV8: =$S8*P8 -> 0 | AX8: =$T8*G8 -> 0 | AY8: =$T8*H8 -> 0 | AZ8: =$T8*I8 -> 0 | BA8: =$T8*J8 -> 0 | BB8: =$T8*K8 -> 0 | BC8: =$T8*L8 -> 0 | BD8: =$T8*M8 -> 0 | BE8: =$T8*N8 -> 0 | BF8: =$T8*O8 -> 0 | BG8: =$T8*P8 -> 0 | BI8: =$U8*G8 -> 0 | BJ8: =$U8*H8 -> 0 | BK8: =$U8*I8 -> 0 | BL8: =$U8*J8 -> 0 | BM8: =$U8*K8 -> 0 | BN8: =$U8*L8 -> 0 | BO8: =$U8*M8 -> 0 | BP8: =$U8*N8 -> 0 | BQ8: =$U8*O8 -> 0 | BR8: =$U8*P8 -> 0 | BT8: =$V8*G8 -> 0 | BU8: =$V8*H8 -> 0 | BV8: =$V8*I8 -> 0 | BW8: =$V8*J8 -> 0 | BX8: =$V8*K8 -> 0 | BY8: =$V8*L8 -> 0 | BZ8: =$V8*M8 -> 0 | CA8: =$V8*N8 -> 0 | CB8: =$V8*O8 -> 0 | CC8: =$V8*P8 -> 0 | CE8: =$W8*G8 -> 0 | CF8: =$W8*H8 -> 0 | CG8: =$W8*I8 -> 0 | CH8: =$W8*J8 -> 0 | CI8: =$W8*K8 -> 0 | CJ8: =$W8*L8 -> 0 | CK8: =$W8*M8 -> 0 | CL8: =$W8*N8 -> 0 | CM8: =$W8*O8 -> 0 | CN8: =$W8*P8 -> 0 | CP8: =$X8*G8 -> 0 | CQ8: =$X8*H8 -> 0 | CR8: =$X8*I8 -> 0 | CS8: =$X8*J8 -> 0 | CT8: =$X8*K8 -> 0 | CU8: =$X8*L8 -> 0 | CV8: =$X8*M8 -> 0 | CW8: =$X8*N8 -> 0 | CX8: =$X8*O8 -> 0 | CY8: =$X8*P8 -> 0 | DA8: =$Y8*G8 -> 0 | DB8: =$Y8*H8 -> 0 | DC8: =$Y8*I8 -> 0 | DD8: =$Y8*J8 -> 0 | DE8: =$Y8*K8 -> 0 | DF8: =$Y8*L8 -> 0 | DG8: =$Y8*M8 -> 0 | DH8: =$Y8*N8 -> 0 | DI8: =$Y8*O8 -> 0 | DJ8: =$Y8*P8 -> 0
B9: Equipment specification and purchase | C9: Description of the trial design and site selection criteria process | D9: Workstream 2 | Z9: 0 | AB9: 0 | AC9: 0 | AD9: 0 | AE9: 0 | AF9: 0 | AG9: 0 | AH9: 0 | AI9: 0 | AJ9: 0 | AK9: 0 | AM9: 0 | AN9: 0 | AO9: 0 | AP9: 0 | AQ9: 0 | AR9: 0 | AS9: 0 | AT9: 0 | AU9: 0 | AV9: 0 | AX9: 0 | AY9: 0 | AZ9: 0 | BA9: 0 | BB9: 0 | BC9: 0 | BD9: 0 | BE9: 0 | BF9: 0 | BG9: 0 | BI9: 0 | BJ9: 0 | BK9: 0 | BL9: 0 | BM9: 0 | BN9: 0 | BO9: 0 | BP9: 0 | BQ9: 0 | BR9: 0 | BT9: 0 | BU9: 0 | BV9: 0 | BW9: 0 | BX9: 0 | BY9: 0 | BZ9: 0 | CA9: 0 | CB9: 0 | CC9: 0 | CE9: 0 | CF9: 0 | CG9: 0 | CH9: 0 | CI9: 0 | CJ9: 0 | CK9: 0 | CL9: 0 | CM9: 0 | CN9: 0 | CP9: 0 | CQ9: 0 | CR9: 0 | CS9: 0 | CT9: 0 | CU9: 0 | CV9: 0 | CW9: 0 | CX9: 0 | CY9: 0 | DA9: 0 | DB9: 0 | DC9: 0 | DD9: 0 | DE9: 0 | DF9: 0 | DG9: 0 | DH9: 0 | DI9: 0 | DJ9: 0
B10: Solution development and approval | C10: Initial learning from off-network PNDC trial, and learning from functionality development, virtualisation | D10: Workstreams 1 and 2 | Z10: 0 | AB10: 0 | AC10: 0 | AD10: 0 | AE10: 0 | AF10: 0 | AG10: 0 | AH10: 0 | AI10: 0 | AJ10: 0 | AK10: 0 | AM10: 0 | AN10: 0 | AO10: 0 | AP10: 0 | AQ10: 0 | AR10: 0 | AS10: 0 | AT10: 0 | AU10: 0 | AV10: 0 | AX10: 0 | AY10: 0 | AZ10: 0 | BA10: 0 | BB10: 0 | BC10: 0 | BD10: 0 | BE10: 0 | BF10: 0 | BG10: 0 | BI10: 0 | BJ10: 0 | BK10: 0 | BL10: 0 | BM10: 0 | BN10: 0 | BO10: 0 | BP10: 0 | BQ10: 0 | BR10: 0 | BT10: 0 | BU10: 0 | BV10: 0 | BW10: 0 | BX10: 0 | BY10: 0 | BZ10: 0 | CA10: 0 | CB10: 0 | CC10: 0 | CE10: 0 | CF10: 0 | CG10: 0 | CH10: 0 | CI10: 0 | CJ10: 0 | CK10: 0 | CL10: 0 | CM10: 0 | CN10: 0 | CP10: 0 | CQ10: 0 | CR10: 0 | CS10: 0 | CT10: 0 | CU10: 0 | CV10: 0 | CW10: 0 | CX10: 0 | CY10: 0 | DA10: 0 | DB10: 0 | DC10: 0 | DD10: 0 | DE10: 0 | DF10: 0 | DG10: 0 | DH10: 0 | DI10: 0 | DJ10: 0
B11: Initial validation and off-network installation and testing | C11: Initial learning from off-network PNDC trial, and learning from functionality development, virtualisation | D11: Workstream 3 | Z11: 0 | AB11: 0 | AC11: 0 | AD11: 0 | AE11: 0 | AF11: 0 | AG11: 0 | AH11: 0 | AI11: 0 | AJ11: 0 | AK11: 0 | AM11: 0 | AN11: 0 | AO11: 0 | AP11: 0 | AQ11: 0 | AR11: 0 | AS11: 0 | AT11: 0 | AU11: 0 | AV11: 0 | AX11: 0 | AY11: 0 | AZ11: 0 | BA11: 0 | BB11: 0 | BC11: 0 | BD11: 0 | BE11: 0 | BF11: 0 | BG11: 0 | BI11: 0 | BJ11: 0 | BK11: 0 | BL11: 0 | BM11: 0 | BN11: 0 | BO11: 0 | BP11: 0 | BQ11: 0 | BR11: 0 | BT11: 0 | BU11: 0 | BV11: 0 | BW11: 0 | BX11: 0 | BY11: 0 | BZ11: 0 | CA11: 0 | CB11: 0 | CC11: 0 | CE11: 0 | CF11: 0 | CG11: 0 | CH11: 0 | CI11: 0 | CJ11: 0 | CK11: 0 | CL11: 0 | CM11: 0 | CN11: 0 | CP11: 0 | CQ11: 0 | CR11: 0 | CS11: 0 | CT11: 0 | CU11: 0 | CV11: 0 | CW11: 0 | CX11: 0 | CY11: 0 | DA11: 0 | DB11: 0 | DC11: 0 | DD11: 0 | DE11: 0 | DF11: 0 | DG11: 0 | DH11: 0 | DI11: 0 | DJ11: 0
B12: Trial site preparation: design, installation and commissioning | C12: Review of site installation and learning from mid trial passive network demonstration | D12: Workstream 2 | Z12: 0 | AB12: 0 | AC12: 0 | AD12: 0 | AE12: 0 | AF12: 0 | AG12: 0 | AH12: 0 | AI12: 0 | AJ12: 0 | AK12: 0 | AM12: 0 | AN12: 0 | AO12: 0 | AP12: 0 | AQ12: 0 | AR12: 0 | AS12: 0 | AT12: 0 | AU12: 0 | AV12: 0 | AX12: 0 | AY12: 0 | AZ12: 0 | BA12: 0 | BB12: 0 | BC12: 0 | BD12: 0 | BE12: 0 | BF12: 0 | BG12: 0 | BI12: 0 | BJ12: 0 | BK12: 0 | BL12: 0 | BM12: 0 | BN12: 0 | BO12: 0 | BP12: 0 | BQ12: 0 | BR12: 0 | BT12: 0 | BU12: 0 | BV12: 0 | BW12: 0 | BX12: 0 | BY12: 0 | BZ12: 0 | CA12: 0 | CB12: 0 | CC12: 0 | CE12: 0 | CF12: 0 | CG12: 0 | CH12: 0 | CI12: 0 | CJ12: 0 | CK12: 0 | CL12: 0 | CM12: 0 | CN12: 0 | CP12: 0 | CQ12: 0 | CR12: 0 | CS12: 0 | CT12: 0 | CU12: 0 | CV12: 0 | CW12: 0 | CX12: 0 | CY12: 0 | DA12: 0 | DB12: 0 | DC12: 0 | DD12: 0 | DE12: 0 | DF12: 0 | DG12: 0 | DH12: 0 | DI12: 0 | DJ12: 0
B13: Site acceptance testing and solution reiterations | C13: Review of site installation and learning from mid trial passive network demonstration | D13: Workstream 3 | Z13: 0 | AB13: 0 | AC13: 0 | AD13: 0 | AE13: 0 | AF13: 0 | AG13: 0 | AH13: 0 | AI13: 0 | AJ13: 0 | AK13: 0 | AM13: 0 | AN13: 0 | AO13: 0 | AP13: 0 | AQ13: 0 | AR13: 0 | AS13: 0 | AT13: 0 | AU13: 0 | AV13: 0 | AX13: 0 | AY13: 0 | AZ13: 0 | BA13: 0 | BB13: 0 | BC13: 0 | BD13: 0 | BE13: 0 | BF13: 0 | BG13: 0 | BI13: 0 | BJ13: 0 | BK13: 0 | BL13: 0 | BM13: 0 | BN13: 0 | BO13: 0 | BP13: 0 | BQ13: 0 | BR13: 0 | BT13: 0 | BU13: 0 | BV13: 0 | BW13: 0 | BX13: 0 | BY13: 0 | BZ13: 0 | CA13: 0 | CB13: 0 | CC13: 0 | CE13: 0 | CF13: 0 | CG13: 0 | CH13: 0 | CI13: 0 | CJ13: 0 | CK13: 0 | CL13: 0 | CM13: 0 | CN13: 0 | CP13: 0 | CQ13: 0 | CR13: 0 | CS13: 0 | CT13: 0 | CU13: 0 | CV13: 0 | CW13: 0 | CX13: 0 | CY13: 0 | DA13: 0 | DB13: 0 | DC13: 0 | DD13: 0 | DE13: 0 | DF13: 0 | DG13: 0 | DH13: 0 | DI13: 0 | DJ13: 0
B14: Transition from PNDC to live network | C14: Review of site installation and learning from mid trial passive network demonstration | D14: Workstream 3 | Z14: 0 | AB14: 0 | AC14: 0 | AD14: 0 | AE14: 0 | AF14: 0 | AG14: 0 | AH14: 0 | AI14: 0 | AJ14: 0 | AK14: 0 | AM14: 0 | AN14: 0 | AO14: 0 | AP14: 0 | AQ14: 0 | AR14: 0 | AS14: 0 | AT14: 0 | AU14: 0 | AV14: 0 | AX14: 0 | AY14: 0 | AZ14: 0 | BA14: 0 | BB14: 0 | BC14: 0 | BD14: 0 | BE14: 0 | BF14: 0 | BG14: 0 | BI14: 0 | BJ14: 0 | BK14: 0 | BL14: 0 | BM14: 0 | BN14: 0 | BO14: 0 | BP14: 0 | BQ14: 0 | BR14: 0 | BT14: 0 | BU14: 0 | BV14: 0 | BW14: 0 | BX14: 0 | BY14: 0 | BZ14: 0 | CA14: 0 | CB14: 0 | CC14: 0 | CE14: 0 | CF14: 0 | CG14: 0 | CH14: 0 | CI14: 0 | CJ14: 0 | CK14: 0 | CL14: 0 | CM14: 0 | CN14: 0 | CP14: 0 | CQ14: 0 | CR14: 0 | CS14: 0 | CT14: 0 | CU14: 0 | CV14: 0 | CW14: 0 | CX14: 0 | CY14: 0 | DA14: 0 | DB14: 0 | DC14: 0 | DD14: 0 | DE14: 0 | DF14: 0 | DG14: 0 | DH14: 0 | DI14: 0 | DJ14: 0
B15: Plan, launch, publicise and select OIC participants | C15: Learning from the innovation competition process | D15: Workstream 4 | Z15: 0 | AB15: 0 | AC15: 0 | AD15: 0 | AE15: 0 | AF15: 0 | AG15: 0 | AH15: 0 | AI15: 0 | AJ15: 0 | AK15: 0 | AM15: 0 | AN15: 0 | AO15: 0 | AP15: 0 | AQ15: 0 | AR15: 0 | AS15: 0 | AT15: 0 | AU15: 0 | AV15: 0 | AX15: 0 | AY15: 0 | AZ15: 0 | BA15: 0 | BB15: 0 | BC15: 0 | BD15: 0 | BE15: 0 | BF15: 0 | BG15: 0 | BI15: 0 | BJ15: 0 | BK15: 0 | BL15: 0 | BM15: 0 | BN15: 0 | BO15: 0 | BP15: 0 | BQ15: 0 | BR15: 0 | BT15: 0 | BU15: 0 | BV15: 0 | BW15: 0 | BX15: 0 | BY15: 0 | BZ15: 0 | CA15: 0 | CB15: 0 | CC15: 0 | CE15: 0 | CF15: 0 | CG15: 0 | CH15: 0 | CI15: 0 | CJ15: 0 | CK15: 0 | CL15: 0 | CM15: 0 | CN15: 0 | CP15: 0 | CQ15: 0 | CR15: 0 | CS15: 0 | CT15: 0 | CU15: 0 | CV15: 0 | CW15: 0 | CX15: 0 | CY15: 0 | DA15: 0 | DB15: 0 | DC15: 0 | DD15: 0 | DE15: 0 | DF15: 0 | DG15: 0 | DH15: 0 | DI15: 0 | DJ15: 0
B16: Incubate, test and deploy as network trial | C16: Learning from the innovation competition process | D16: Workstream 4 | Z16: 0 | AB16: 0 | AC16: 0 | AD16: 0 | AE16: 0 | AF16: 0 | AG16: 0 | AH16: 0 | AI16: 0 | AJ16: 0 | AK16: 0 | AM16: 0 | AN16: 0 | AO16: 0 | AP16: 0 | AQ16: 0 | AR16: 0 | AS16: 0 | AT16: 0 | AU16: 0 | AV16: 0 | AX16: 0 | AY16: 0 | AZ16: 0 | BA16: 0 | BB16: 0 | BC16: 0 | BD16: 0 | BE16: 0 | BF16: 0 | BG16: 0 | BI16: 0 | BJ16: 0 | BK16: 0 | BL16: 0 | BM16: 0 | BN16: 0 | BO16: 0 | BP16: 0 | BQ16: 0 | BR16: 0 | BT16: 0 | BU16: 0 | BV16: 0 | BW16: 0 | BX16: 0 | BY16: 0 | BZ16: 0 | CA16: 0 | CB16: 0 | CC16: 0 | CE16: 0 | CF16: 0 | CG16: 0 | CH16: 0 | CI16: 0 | CJ16: 0 | CK16: 0 | CL16: 0 | CM16: 0 | CN16: 0 | CP16: 0 | CQ16: 0 | CR16: 0 | CS16: 0 | CT16: 0 | CU16: 0 | CV16: 0 | CW16: 0 | CX16: 0 | CY16: 0 | DA16: 0 | DB16: 0 | DC16: 0 | DD16: 0 | DE16: 0 | DF16: 0 | DG16: 0 | DH16: 0 | DI16: 0 | DJ16: 0
B17: Launch academic research and review deliverables | C17: Learning from academic insights and the governance required to prepare for the future world of distributed & autonomous network operation | D17: Workstream 5 | Z17: 0 | AB17: 0 | AC17: 0 | AD17: 0 | AE17: 0 | AF17: 0 | AG17: 0 | AH17: 0 | AI17: 0 | AJ17: 0 | AK17: 0 | AM17: 0 | AN17: 0 | AO17: 0 | AP17: 0 | AQ17: 0 | AR17: 0 | AS17: 0 | AT17: 0 | AU17: 0 | AV17: 0 | AX17: 0 | AY17: 0 | AZ17: 0 | BA17: 0 | BB17: 0 | BC17: 0 | BD17: 0 | BE17: 0 | BF17: 0 | BG17: 0 | BI17: 0 | BJ17: 0 | BK17: 0 | BL17: 0 | BM17: 0 | BN17: 0 | BO17: 0 | BP17: 0 | BQ17: 0 | BR17: 0 | BT17: 0 | BU17: 0 | BV17: 0 | BW17: 0 | BX17: 0 | BY17: 0 | BZ17: 0 | CA17: 0 | CB17: 0 | CC17: 0 | CE17: 0 | CF17: 0 | CG17: 0 | CH17: 0 | CI17: 0 | CJ17: 0 | CK17: 0 | CL17: 0 | CM17: 0 | CN17: 0 | CP17: 0 | CQ17: 0 | CR17: 0 | CS17: 0 | CT17: 0 | CU17: 0 | CV17: 0 | CW17: 0 | CX17: 0 | CY17: 0 | DA17: 0 | DB17: 0 | DC17: 0 | DD17: 0 | DE17: 0 | DF17: 0 | DG17: 0 | DH17: 0 | DI17: 0 | DJ17: 0
B18: Data gathering and engineering support for network trials | C18: Presentation of findings from project trials and innovation competition trial | D18: Workstream 3 | Z18: 0 | AB18: 0 | AC18: 0 | AD18: 0 | AE18: 0 | AF18: 0 | AG18: 0 | AH18: 0 | AI18: 0 | AJ18: 0 | AK18: 0 | AM18: 0 | AN18: 0 | AO18: 0 | AP18: 0 | AQ18: 0 | AR18: 0 | AS18: 0 | AT18: 0 | AU18: 0 | AV18: 0 | AX18: 0 | AY18: 0 | AZ18: 0 | BA18: 0 | BB18: 0 | BC18: 0 | BD18: 0 | BE18: 0 | BF18: 0 | BG18: 0 | BI18: 0 | BJ18: 0 | BK18: 0 | BL18: 0 | BM18: 0 | BN18: 0 | BO18: 0 | BP18: 0 | BQ18: 0 | BR18: 0 | BT18: 0 | BU18: 0 | BV18: 0 | BW18: 0 | BX18: 0 | BY18: 0 | BZ18: 0 | CA18: 0 | CB18: 0 | CC18: 0 | CE18: 0 | CF18: 0 | CG18: 0 | CH18: 0 | CI18: 0 | CJ18: 0 | CK18: 0 | CL18: 0 | CM18: 0 | CN18: 0 | CP18: 0 | CQ18: 0 | CR18: 0 | CS18: 0 | CT18: 0 | CU18: 0 | CV18: 0 | CW18: 0 | CX18: 0 | CY18: 0 | DA18: 0 | DB18: 0 | DC18: 0 | DD18: 0 | DE18: 0 | DF18: 0 | DG18: 0 | DH18: 0 | DI18: 0 | DJ18: 0
B19: Communications, training, dissemination and events | C19: Presentation of findings from project trials and innovation competition trial | D19: Workstream 6 | Z19: 0 | AB19: 0 | AC19: 0 | AD19: 0 | AE19: 0 | AF19: 0 | AG19: 0 | AH19: 0 | AI19: 0 | AJ19: 0 | AK19: 0 | AM19: 0 | AN19: 0 | AO19: 0 | AP19: 0 | AQ19: 0 | AR19: 0 | AS19: 0 | AT19: 0 | AU19: 0 | AV19: 0 | AX19: 0 | AY19: 0 | AZ19: 0 | BA19: 0 | BB19: 0 | BC19: 0 | BD19: 0 | BE19: 0 | BF19: 0 | BG19: 0 | BI19: 0 | BJ19: 0 | BK19: 0 | BL19: 0 | BM19: 0 | BN19: 0 | BO19: 0 | BP19: 0 | BQ19: 0 | BR19: 0 | BT19: 0 | BU19: 0 | BV19: 0 | BW19: 0 | BX19: 0 | BY19: 0 | BZ19: 0 | CA19: 0 | CB19: 0 | CC19: 0 | CE19: 0 | CF19: 0 | CG19: 0 | CH19: 0 | CI19: 0 | CJ19: 0 | CK19: 0 | CL19: 0 | CM19: 0 | CN19: 0 | CP19: 0 | CQ19: 0 | CR19: 0 | CS19: 0 | CT19: 0 | CU19: 0 | CV19: 0 | CW19: 0 | CX19: 0 | CY19: 0 | DA19: 0 | DB19: 0 | DC19: 0 | DD19: 0 | DE19: 0 | DF19: 0 | DG19: 0 | DH19: 0 | DI19: 0 | DJ19: 0
B20: Project management and contingency | C20: Presentation of findings from project trials and innovation competition trial | D20: PM | Z20: 0 | AB20: 0 | AC20: 0 | AD20: 0 | AE20: 0 | AF20: 0 | AG20: 0 | AH20: 0 | AI20: 0 | AJ20: 0 | AK20: 0 | AM20: 0 | AN20: 0 | AO20: 0 | AP20: 0 | AQ20: 0 | AR20: 0 | AS20: 0 | AT20: 0 | AU20: 0 | AV20: 0 | AX20: 0 | AY20: 0 | AZ20: 0 | BA20: 0 | BB20: 0 | BC20: 0 | BD20: 0 | BE20: 0 | BF20: 0 | BG20: 0 | BI20: 0 | BJ20: 0 | BK20: 0 | BL20: 0 | BM20: 0 | BN20: 0 | BO20: 0 | BP20: 0 | BQ20: 0 | BR20: 0 | BT20: 0 | BU20: 0 | BV20: 0 | BW20: 0 | BX20: 0 | BY20: 0 | BZ20: 0 | CA20: 0 | CB20: 0 | CC20: 0 | CE20: 0 | CF20: 0 | CG20: 0 | CH20: 0 | CI20: 0 | CJ20: 0 | CK20: 0 | CL20: 0 | CM20: 0 | CN20: 0 | CP20: 0 | CQ20: 0 | CR20: 0 | CS20: 0 | CT20: 0 | CU20: 0 | CV20: 0 | CW20: 0 | CX20: 0 | CY20: 0 | DA20: 0 | DB20: 0 | DC20: 0 | DD20: 0 | DE20: 0 | DF20: 0 | DG20: 0 | DH20: 0 | DI20: 0 | DJ20: 0
Q21: Total Cost | Z21: =SUM(R21:Y21) -> 0 | AB21: =$R21*G21 -> 0 | AC21: 0 | AD21: 0 | AE21: 0 | AF21: 0 | AG21: 0 | AH21: 0 | AI21: 0 | AJ21: 0 | AK21: 0 | AM21: =$S21*G21 -> 0 | AN21: 0 | AO21: 0 | AP21: 0 | AQ21: 0 | AR21: 0 | AS21: 0 | AT21: 0 | AU21: 0 | AV21: 0 | AX21: =$T21*G21 -> 0 | AY21: 0 | AZ21: 0 | BA21: 0 | BB21: 0 | BC21: 0 | BD21: 0 | BE21: 0 | BF21: 0 | BG21: 0 | BI21: =$U21*G21 -> 0 | BJ21: 0 | BK21: 0 | BL21: 0 | BM21: 0 | BN21: 0 | BO21: 0 | BP21: 0 | BQ21: 0 | BR21: 0 | BT21: 0 | BU21: 0 | BV21: 0 | BW21: 0 | BX21: 0 | BY21: 0 | BZ21: 0 | CA21: 0 | CB21: 0 | CC21: 0 | CE21: 0 | CF21: 0 | CG21: 0 | CH21: 0 | CI21: 0 | CJ21: 0 | CK21: 0 | CL21: 0 | CM21: 0 | CN21: 0 | CP21: =$X21*G21 -> 0 | CQ21: 0 | CR21: 0 | CS21: 0 | CT21: 0 | CU21: 0 | CV21: 0 | CW21: 0 | CX21: 0 | CY21: 0 | DA21: =$Y21*G21 -> 0 | DB21: 0 | DC21: 0 | DD21: 0 | DE21: 0 | DF21: 0 | DG21: 0 | DH21: 0 | DI21: 0 | DJ21: 0
B22: Total | G22: =SUM(G7:G21) -> 0 | H22: 0 | I22: 0 | J22: 0 | K22: 0 | L22: 0 | M22: 0 | N22: 0 | O22: 0 | P22: 0 | Q22: =SUM(G22:P22) -> 0 | AB22: =SUM(AB7:AB21) -> 0 | AC22: 0 | AD22: 0 | AE22: 0 | AF22: 0 | AG22: 0 | AH22: 0 | AI22: 0 | AJ22: 0 | AK22: 0 | AM22: =SUM(AM7:AM21) -> 0 | AN22: 0 | AO22: 0 | AP22: 0 | AQ22: 0 | AR22: 0 | AS22: 0 | AT22: 0 | AU22: 0 | AV22: 0 | AX22: =SUM(AX7:AX21) -> 0 | AY22: 0 | AZ22: 0 | BA22: 0 | BB22: 0 | BC22: 0 | BD22: 0 | BE22: 0 | BF22: 0 | BG22: 0 | BI22: =SUM(BI7:BI21) -> 0 | BJ22: 0 | BK22: 0 | BL22: =SUM(BL7:BL21) -> 0 | BM22: 0 | BN22: 0 | BO22: 0 | BP22: 0 | BQ22: 0 | BR22: 0 | BT22: =SUM(BT7:BT21) -> 0 | BU22: =SUM(BU7:BU21) -> 0 | BV22: =SUM(BV7:BV21) -> 0 | BW22: =SUM(BW7:BW21) -> 0 | BX22: =SUM(BX7:BX21) -> 0 | BY22: =SUM(BY7:BY21) -> 0 | BZ22: =SUM(BZ7:BZ21) -> 0 | CA22: =SUM(CA7:CA21) -> 0 | CB22: =SUM(CB7:CB21) -> 0 | CC22: =SUM(CC7:CC21) -> 0 | CE22: =SUM(CE7:CE21) -> 0 | CF22: =SUM(CF7:CF21) -> 0 | CG22: =SUM(CG7:CG21) -> 0 | CH22: =SUM(CH7:CH21) -> 0 | CI22: =SUM(CI7:CI21) -> 0 | CJ22: =SUM(CJ7:CJ21) -> 0 | CK22: =SUM(CK7:CK21) -> 0 | CL22: =SUM(CL7:CL21) -> 0 | CM22: =SUM(CM7:CM21) -> 0 | CN22: =SUM(CN7:CN21) -> 0 | CP22: =SUM(CP7:CP21) -> 0 | CQ22: 0 | CR22: 0 | CS22: 0 | CT22: 0 | CU22: 0 | CV22: 0 | CW22: 0 | CX22: 0 | CY22: 0 | DA22: =SUM(DA7:DA21) -> 0 | DB22: 0 | DC22: 0 | DD22: 0 | DE22: 0 | DF22: 0 | DG22: 0 | DH22: 0 | DI22: 0 | DJ22: 0
D268: Totals

Sheet 2025-2026
B1: Project Costs in 2025-2026
G4: Total Cost £K | R4: Funding source % | AB4: Licensee Compulsory Contribution/Direct Benefits | AM4: ABB | AX4: Siemens | BI4: GE | BT4: Vodafone | CE4: PNDC | CP4: Licensee Extra Contribution | DA4: Outstanding Funding Required
G5: Labour | H5: Equipment | I5: Contractors | J5: IT | K5: IPR Costs | L5: Travel & Expenses | M5: Payments to users | N5: Contingency | O5: Decommissioning | P5: Other | R5: Licensee Compulsory Contribution /Direct Benefits | S5: ABB | T5: Siemens | U5: GE | V5: Vodafone | W5: PNDC | X5: Licensee Extra Contribution | Y5: Oustanding Funding Required | Z5: Total | AB5: Labour | AC5: Equipment | AD5: Contractors | AE5: IT | AF5: IPR Costs | AG5: Travel & Expenses | AH5: Payments to users | AI5: Contingency | AJ5: Decommissioning | AK5: Other | AM5: Labour | AN5: Equipment | AO5: Contractors | AP5: IT | AQ5: IPR Costs | AR5: Travel & Expenses | AS5: Payments to users | AT5: Contingency | AU5: Decommissioning | AV5: Other | AX5: Labour | AY5: Equipment | AZ5: Contractors | BA5: IT | BB5: IPR Costs | BC5: Travel & Expenses | BD5: Payments to users | BE5: Contingency | BF5: Decommissioning | BG5: Other | BI5: Labour | BJ5: Equipment | BK5: Contractors | BL5: IT | BM5: IPR Costs | BN5: Travel & Expenses | BO5: Payments to users | BP5: Contingency | BQ5: Decommissioning | BR5: Other | BT5: Labour | BU5: Equipment | BV5: Contractors | BW5: IT | BX5: IPR Costs | BY5: Travel & Expenses | BZ5: Payments to users | CA5: Contingency | CB5: Decommissioning | CC5: Other | CE5: Labour | CF5: Equipment | CG5: Contractors | CH5: IT | CI5: IPR Costs | CJ5: Travel & Expenses | CK5: Payments to users | CL5: Contingency | CM5: Decommissioning | CN5: Other | CP5: Labour | CQ5: Equipment | CR5: Contractors | CS5: IT | CT5: IPR Costs | CU5: Travel & Expenses | CV5: Payments to users | CW5: Contingency | CX5: Decommissioning | CY5: Other | DA5: Labour | DB5: Equipment | DC5: Contractors | DD5: IT | DE5: IPR Costs | DF5: Travel & Expenses | DG5: Payments to users | DH5: Contingency | DI5: Decommissioning | DJ5: Other
B6: Description | C6: Task | D6: Project Workstream
B7: Solution design and approval | C7: Details of the system design and architecture for protection and control on a substation with local intelligence | D7: Workstreams 1 and 2 | Z7: =SUM(R7:Y7) -> 0 | AB7: =$R7*G7 -> 0 | AC7: 0 | AD7: 0 | AE7: 0 | AF7: 0 | AG7: 0 | AH7: 0 | AI7: 0 | AJ7: 0 | AK7: 0 | AM7: =$S7*G7 -> 0 | AN7: 0 | AO7: 0 | AP7: 0 | AQ7: 0 | AR7: 0 | AS7: 0 | AT7: 0 | AU7: 0 | AV7: 0 | AX7: =$T7*G7 -> 0 | AY7: 0 | AZ7: 0 | BA7: 0 | BB7: 0 | BC7: 0 | BD7: 0 | BE7: 0 | BF7: 0 | BG7: 0 | BI7: =$U7*G7 -> 0 | BJ7: 0 | BK7: 0 | BL7: 0 | BM7: 0 | BN7: 0 | BO7: 0 | BP7: 0 | BQ7: 0 | BR7: 0 | BT7: =$V7*G7 -> 0 | BU7: =$V7*H7 -> 0 | BV7: 0 | BW7: 0 | BX7: 0 | BY7: 0 | BZ7: 0 | CA7: 0 | CB7: 0 | CC7: 0 | CE7: =$W7*G7 -> 0 | CF7: =$W7*H7 -> 0 | CG7: 0 | CH7: 0 | CI7: 0 | CJ7: 0 | CK7: 0 | CL7: 0 | CM7: 0 | CN7: 0 | CP7: =$X7*G7 -> 0 | CQ7: 0 | CR7: 0 | CS7: 0 | CT7: 0 | CU7: 0 | CV7: 0 | CW7: 0 | CX7: 0 | CY7: 0 | DA7: =$Y7*G7 -> 0 | DB7: 0 | DC7: 0 | DD7: 0 | DE7: 0 | DF7: 0 | DG7: 0 | DH7: 0 | DI7: 0 | DJ7: 0
B8: Trial design and site selection | C8: Description of the trial design and site selection criteria process | D8: Workstreams 2 and 3 | Z8: =SUM(R8:Y8) -> 0 | AB8: =$R8*G8 -> 0 | AC8: =$R8*H8 -> 0 | AD8: =$R8*I8 -> 0 | AE8: =$R8*J8 -> 0 | AF8: =$R8*K8 -> 0 | AG8: =$R8*L8 -> 0 | AH8: =$R8*M8 -> 0 | AI8: =$R8*N8 -> 0 | AJ8: =$R8*O8 -> 0 | AK8: =$R8*P8 -> 0 | AM8: =$S8*G8 -> 0 | AN8: =$S8*H8 -> 0 | AO8: =$S8*I8 -> 0 | AP8: =$S8*J8 -> 0 | AQ8: =$S8*K8 -> 0 | AR8: =$S8*L8 -> 0 | AS8: =$S8*M8 -> 0 | AT8: =$S8*N8 -> 0 | AU8: =$S8*O8 -> 0 | AV8: =$S8*P8 -> 0 | AX8: =$T8*G8 -> 0 | AY8: =$T8*H8 -> 0 | AZ8: =$T8*I8 -> 0 | BA8: =$T8*J8 -> 0 | BB8: =$T8*K8 -> 0 | BC8: =$T8*L8 -> 0 | BD8: =$T8*M8 -> 0 | BE8: =$T8*N8 -> 0 | BF8: =$T8*O8 -> 0 | BG8: =$T8*P8 -> 0 | BI8: =$U8*G8 -> 0 | BJ8: =$U8*H8 -> 0 | BK8: =$U8*I8 -> 0 | BL8: =$U8*J8 -> 0 | BM8: =$U8*K8 -> 0 | BN8: =$U8*L8 -> 0 | BO8: =$U8*M8 -> 0 | BP8: =$U8*N8 -> 0 | BQ8: =$U8*O8 -> 0 | BR8: =$U8*P8 -> 0 | BT8: =$V8*G8 -> 0 | BU8: =$V8*H8 -> 0 | BV8: =$V8*I8 -> 0 | BW8: =$V8*J8 -> 0 | BX8: =$V8*K8 -> 0 | BY8: =$V8*L8 -> 0 | BZ8: =$V8*M8 -> 0 | CA8: =$V8*N8 -> 0 | CB8: =$V8*O8 -> 0 | CC8: =$V8*P8 -> 0 | CE8: =$W8*G8 -> 0 | CF8: =$W8*H8 -> 0 | CG8: =$W8*I8 -> 0 | CH8: =$W8*J8 -> 0 | CI8: =$W8*K8 -> 0 | CJ8: =$W8*L8 -> 0 | CK8: =$W8*M8 -> 0 | CL8: =$W8*N8 -> 0 | CM8: =$W8*O8 -> 0 | CN8: =$W8*P8 -> 0 | CP8: =$X8*G8 -> 0 | CQ8: =$X8*H8 -> 0 | CR8: =$X8*I8 -> 0 | CS8: =$X8*J8 -> 0 | CT8: =$X8*K8 -> 0 | CU8: =$X8*L8 -> 0 | CV8: =$X8*M8 -> 0 | CW8: =$X8*N8 -> 0 | CX8: =$X8*O8 -> 0 | CY8: =$X8*P8 -> 0 | DA8: =$Y8*G8 -> 0 | DB8: =$Y8*H8 -> 0 | DC8: =$Y8*I8 -> 0 | DD8: =$Y8*J8 -> 0 | DE8: =$Y8*K8 -> 0 | DF8: =$Y8*L8 -> 0 | DG8: =$Y8*M8 -> 0 | DH8: =$Y8*N8 -> 0 | DI8: =$Y8*O8 -> 0 | DJ8: =$Y8*P8 -> 0
B9: Equipment specification and purchase | C9: Description of the trial design and site selection criteria process | D9: Workstream 2 | Z9: 0 | AB9: 0 | AC9: 0 | AD9: 0 | AE9: 0 | AF9: 0 | AG9: 0 | AH9: 0 | AI9: 0 | AJ9: 0 | AK9: 0 | AM9: 0 | AN9: 0 | AO9: 0 | AP9: 0 | AQ9: 0 | AR9: 0 | AS9: 0 | AT9: 0 | AU9: 0 | AV9: 0 | AX9: 0 | AY9: 0 | AZ9: 0 | BA9: 0 | BB9: 0 | BC9: 0 | BD9: 0 | BE9: 0 | BF9: 0 | BG9: 0 | BI9: 0 | BJ9: 0 | BK9: 0 | BL9: 0 | BM9: 0 | BN9: 0 | BO9: 0 | BP9: 0 | BQ9: 0 | BR9: 0 | BT9: 0 | BU9: 0 | BV9: 0 | BW9: 0 | BX9: 0 | BY9: 0 | BZ9: 0 | CA9: 0 | CB9: 0 | CC9: 0 | CE9: 0 | CF9: 0 | CG9: 0 | CH9: 0 | CI9: 0 | CJ9: 0 | CK9: 0 | CL9: 0 | CM9: 0 | CN9: 0 | CP9: 0 | CQ9: 0 | CR9: 0 | CS9: 0 | CT9: 0 | CU9: 0 | CV9: 0 | CW9: 0 | CX9: 0 | CY9: 0 | DA9: 0 | DB9: 0 | DC9: 0 | DD9: 0 | DE9: 0 | DF9: 0 | DG9: 0 | DH9: 0 | DI9: 0 | DJ9: 0
B10: Solution development and approval | C10: Initial learning from off-network PNDC trial, and learning from functionality development, virtualisation | D10: Workstreams 1 and 2 | Z10: 0 | AB10: 0 | AC10: 0 | AD10: 0 | AE10: 0 | AF10: 0 | AG10: 0 | AH10: 0 | AI10: 0 | AJ10: 0 | AK10: 0 | AM10: 0 | AN10: 0 | AO10: 0 | AP10: 0 | AQ10: 0 | AR10: 0 | AS10: 0 | AT10: 0 | AU10: 0 | AV10: 0 | AX10: 0 | AY10: 0 | AZ10: 0 | BA10: 0 | BB10: 0 | BC10: 0 | BD10: 0 | BE10: 0 | BF10: 0 | BG10: 0 | BI10: 0 | BJ10: 0 | BK10: 0 | BL10: 0 | BM10: 0 | BN10: 0 | BO10: 0 | BP10: 0 | BQ10: 0 | BR10: 0 | BT10: 0 | BU10: 0 | BV10: 0 | BW10: 0 | BX10: 0 | BY10: 0 | BZ10: 0 | CA10: 0 | CB10: 0 | CC10: 0 | CE10: 0 | CF10: 0 | CG10: 0 | CH10: 0 | CI10: 0 | CJ10: 0 | CK10: 0 | CL10: 0 | CM10: 0 | CN10: 0 | CP10: 0 | CQ10: 0 | CR10: 0 | CS10: 0 | CT10: 0 | CU10: 0 | CV10: 0 | CW10: 0 | CX10: 0 | CY10: 0 | DA10: 0 | DB10: 0 | DC10: 0 | DD10: 0 | DE10: 0 | DF10: 0 | DG10: 0 | DH10: 0 | DI10: 0 | DJ10: 0
B11: Initial validation and off-network installation and testing | C11: Initial learning from off-network PNDC trial, and learning from functionality development, virtualisation | D11: Workstream 3 | Z11: 0 | AB11: 0 | AC11: 0 | AD11: 0 | AE11: 0 | AF11: 0 | AG11: 0 | AH11: 0 | AI11: 0 | AJ11: 0 | AK11: 0 | AM11: 0 | AN11: 0 | AO11: 0 | AP11: 0 | AQ11: 0 | AR11: 0 | AS11: 0 | AT11: 0 | AU11: 0 | AV11: 0 | AX11: 0 | AY11: 0 | AZ11: 0 | BA11: 0 | BB11: 0 | BC11: 0 | BD11: 0 | BE11: 0 | BF11: 0 | BG11: 0 | BI11: 0 | BJ11: 0 | BK11: 0 | BL11: 0 | BM11: 0 | BN11: 0 | BO11: 0 | BP11: 0 | BQ11: 0 | BR11: 0 | BT11: 0 | BU11: 0 | BV11: 0 | BW11: 0 | BX11: 0 | BY11: 0 | BZ11: 0 | CA11: 0 | CB11: 0 | CC11: 0 | CE11: 0 | CF11: 0 | CG11: 0 | CH11: 0 | CI11: 0 | CJ11: 0 | CK11: 0 | CL11: 0 | CM11: 0 | CN11: 0 | CP11: 0 | CQ11: 0 | CR11: 0 | CS11: 0 | CT11: 0 | CU11: 0 | CV11: 0 | CW11: 0 | CX11: 0 | CY11: 0 | DA11: 0 | DB11: 0 | DC11: 0 | DD11: 0 | DE11: 0 | DF11: 0 | DG11: 0 | DH11: 0 | DI11: 0 | DJ11: 0
B12: Trial site preparation: design, installation and commissioning | C12: Review of site installation and learning from mid trial passive network demonstration | D12: Workstream 2 | Z12: 0 | AB12: 0 | AC12: 0 | AD12: 0 | AE12: 0 | AF12: 0 | AG12: 0 | AH12: 0 | AI12: 0 | AJ12: 0 | AK12: 0 | AM12: 0 | AN12: 0 | AO12: 0 | AP12: 0 | AQ12: 0 | AR12: 0 | AS12: 0 | AT12: 0 | AU12: 0 | AV12: 0 | AX12: 0 | AY12: 0 | AZ12: 0 | BA12: 0 | BB12: 0 | BC12: 0 | BD12: 0 | BE12: 0 | BF12: 0 | BG12: 0 | BI12: 0 | BJ12: 0 | BK12: 0 | BL12: 0 | BM12: 0 | BN12: 0 | BO12: 0 | BP12: 0 | BQ12: 0 | BR12: 0 | BT12: 0 | BU12: 0 | BV12: 0 | BW12: 0 | BX12: 0 | BY12: 0 | BZ12: 0 | CA12: 0 | CB12: 0 | CC12: 0 | CE12: 0 | CF12: 0 | CG12: 0 | CH12: 0 | CI12: 0 | CJ12: 0 | CK12: 0 | CL12: 0 | CM12: 0 | CN12: 0 | CP12: 0 | CQ12: 0 | CR12: 0 | CS12: 0 | CT12: 0 | CU12: 0 | CV12: 0 | CW12: 0 | CX12: 0 | CY12: 0 | DA12: 0 | DB12: 0 | DC12: 0 | DD12: 0 | DE12: 0 | DF12: 0 | DG12: 0 | DH12: 0 | DI12: 0 | DJ12: 0
B13: Site acceptance testing and solution reiterations | C13: Review of site installation and learning from mid trial passive network demonstration | D13: Workstream 3 | Z13: 0 | AB13: 0 | AC13: 0 | AD13: 0 | AE13: 0 | AF13: 0 | AG13: 0 | AH13: 0 | AI13: 0 | AJ13: 0 | AK13: 0 | AM13: 0 | AN13: 0 | AO13: 0 | AP13: 0 | AQ13: 0 | AR13: 0 | AS13: 0 | AT13: 0 | AU13: 0 | AV13: 0 | AX13: 0 | AY13: 0 | AZ13: 0 | BA13: 0 | BB13: 0 | BC13: 0 | BD13: 0 | BE13: 0 | BF13: 0 | BG13: 0 | BI13: 0 | BJ13: 0 | BK13: 0 | BL13: 0 | BM13: 0 | BN13: 0 | BO13: 0 | BP13: 0 | BQ13: 0 | BR13: 0 | BT13: 0 | BU13: 0 | BV13: 0 | BW13: 0 | BX13: 0 | BY13: 0 | BZ13: 0 | CA13: 0 | CB13: 0 | CC13: 0 | CE13: 0 | CF13: 0 | CG13: 0 | CH13: 0 | CI13: 0 | CJ13: 0 | CK13: 0 | CL13: 0 | CM13: 0 | CN13: 0 | CP13: 0 | CQ13: 0 | CR13: 0 | CS13: 0 | CT13: 0 | CU13: 0 | CV13: 0 | CW13: 0 | CX13: 0 | CY13: 0 | DA13: 0 | DB13: 0 | DC13: 0 | DD13: 0 | DE13: 0 | DF13: 0 | DG13: 0 | DH13: 0 | DI13: 0 | DJ13: 0
B14: Transition from PNDC to live network | C14: Review of site installation and learning from mid trial passive network demonstration | D14: Workstream 3 | Z14: 0 | AB14: 0 | AC14: 0 | AD14: 0 | AE14: 0 | AF14: 0 | AG14: 0 | AH14: 0 | AI14: 0 | AJ14: 0 | AK14: 0 | AM14: 0 | AN14: 0 | AO14: 0 | AP14: 0 | AQ14: 0 | AR14: 0 | AS14: 0 | AT14: 0 | AU14: 0 | AV14: 0 | AX14: 0 | AY14: 0 | AZ14: 0 | BA14: 0 | BB14: 0 | BC14: 0 | BD14: 0 | BE14: 0 | BF14: 0 | BG14: 0 | BI14: 0 | BJ14: 0 | BK14: 0 | BL14: 0 | BM14: 0 | BN14: 0 | BO14: 0 | BP14: 0 | BQ14: 0 | BR14: 0 | BT14: 0 | BU14: 0 | BV14: 0 | BW14: 0 | BX14: 0 | BY14: 0 | BZ14: 0 | CA14: 0 | CB14: 0 | CC14: 0 | CE14: 0 | CF14: 0 | CG14: 0 | CH14: 0 | CI14: 0 | CJ14: 0 | CK14: 0 | CL14: 0 | CM14: 0 | CN14: 0 | CP14: 0 | CQ14: 0 | CR14: 0 | CS14: 0 | CT14: 0 | CU14: 0 | CV14: 0 | CW14: 0 | CX14: 0 | CY14: 0 | DA14: 0 | DB14: 0 | DC14: 0 | DD14: 0 | DE14: 0 | DF14: 0 | DG14: 0 | DH14: 0 | DI14: 0 | DJ14: 0
B15: Plan, launch, publicise and select OIC participants | C15: Learning from the innovation competition process | D15: Workstream 4 | Z15: 0 | AB15: 0 | AC15: 0 | AD15: 0 | AE15: 0 | AF15: 0 | AG15: 0 | AH15: 0 | AI15: 0 | AJ15: 0 | AK15: 0 | AM15: 0 | AN15: 0 | AO15: 0 | AP15: 0 | AQ15: 0 | AR15: 0 | AS15: 0 | AT15: 0 | AU15: 0 | AV15: 0 | AX15: 0 | AY15: 0 | AZ15: 0 | BA15: 0 | BB15: 0 | BC15: 0 | BD15: 0 | BE15: 0 | BF15: 0 | BG15: 0 | BI15: 0 | BJ15: 0 | BK15: 0 | BL15: 0 | BM15: 0 | BN15: 0 | BO15: 0 | BP15: 0 | BQ15: 0 | BR15: 0 | BT15: 0 | BU15: 0 | BV15: 0 | BW15: 0 | BX15: 0 | BY15: 0 | BZ15: 0 | CA15: 0 | CB15: 0 | CC15: 0 | CE15: 0 | CF15: 0 | CG15: 0 | CH15: 0 | CI15: 0 | CJ15: 0 | CK15: 0 | CL15: 0 | CM15: 0 | CN15: 0 | CP15: 0 | CQ15: 0 | CR15: 0 | CS15: 0 | CT15: 0 | CU15: 0 | CV15: 0 | CW15: 0 | CX15: 0 | CY15: 0 | DA15: 0 | DB15: 0 | DC15: 0 | DD15: 0 | DE15: 0 | DF15: 0 | DG15: 0 | DH15: 0 | DI15: 0 | DJ15: 0
B16: Incubate, test and deploy as network trial | C16: Learning from the innovation competition process | D16: Workstream 4 | Z16: 0 | AB16: 0 | AC16: 0 | AD16: 0 | AE16: 0 | AF16: 0 | AG16: 0 | AH16: 0 | AI16: 0 | AJ16: 0 | AK16: 0 | AM16: 0 | AN16: 0 | AO16: 0 | AP16: 0 | AQ16: 0 | AR16: 0 | AS16: 0 | AT16: 0 | AU16: 0 | AV16: 0 | AX16: 0 | AY16: 0 | AZ16: 0 | BA16: 0 | BB16: 0 | BC16: 0 | BD16: 0 | BE16: 0 | BF16: 0 | BG16: 0 | BI16: 0 | BJ16: 0 | BK16: 0 | BL16: 0 | BM16: 0 | BN16: 0 | BO16: 0 | BP16: 0 | BQ16: 0 | BR16: 0 | BT16: 0 | BU16: 0 | BV16: 0 | BW16: 0 | BX16: 0 | BY16: 0 | BZ16: 0 | CA16: 0 | CB16: 0 | CC16: 0 | CE16: 0 | CF16: 0 | CG16: 0 | CH16: 0 | CI16: 0 | CJ16: 0 | CK16: 0 | CL16: 0 | CM16: 0 | CN16: 0 | CP16: 0 | CQ16: 0 | CR16: 0 | CS16: 0 | CT16: 0 | CU16: 0 | CV16: 0 | CW16: 0 | CX16: 0 | CY16: 0 | DA16: 0 | DB16: 0 | DC16: 0 | DD16: 0 | DE16: 0 | DF16: 0 | DG16: 0 | DH16: 0 | DI16: 0 | DJ16: 0
B17: Launch academic research and review deliverables | C17: Learning from academic insights and the governance required to prepare for the future world of distributed & autonomous network operation | D17: Workstream 5 | Z17: 0 | AB17: 0 | AC17: 0 | AD17: 0 | AE17: 0 | AF17: 0 | AG17: 0 | AH17: 0 | AI17: 0 | AJ17: 0 | AK17: 0 | AM17: 0 | AN17: 0 | AO17: 0 | AP17: 0 | AQ17: 0 | AR17: 0 | AS17: 0 | AT17: 0 | AU17: 0 | AV17: 0 | AX17: 0 | AY17: 0 | AZ17: 0 | BA17: 0 | BB17: 0 | BC17: 0 | BD17: 0 | BE17: 0 | BF17: 0 | BG17: 0 | BI17: 0 | BJ17: 0 | BK17: 0 | BL17: 0 | BM17: 0 | BN17: 0 | BO17: 0 | BP17: 0 | BQ17: 0 | BR17: 0 | BT17: 0 | BU17: 0 | BV17: 0 | BW17: 0 | BX17: 0 | BY17: 0 | BZ17: 0 | CA17: 0 | CB17: 0 | CC17: 0 | CE17: 0 | CF17: 0 | CG17: 0 | CH17: 0 | CI17: 0 | CJ17: 0 | CK17: 0 | CL17: 0 | CM17: 0 | CN17: 0 | CP17: 0 | CQ17: 0 | CR17: 0 | CS17: 0 | CT17: 0 | CU17: 0 | CV17: 0 | CW17: 0 | CX17: 0 | CY17: 0 | DA17: 0 | DB17: 0 | DC17: 0 | DD17: 0 | DE17: 0 | DF17: 0 | DG17: 0 | DH17: 0 | DI17: 0 | DJ17: 0
B18: Data gathering and engineering support for network trials | C18: Presentation of findings from project trials and innovation competition trial | D18: Workstream 3 | Z18: 0 | AB18: 0 | AC18: 0 | AD18: 0 | AE18: 0 | AF18: 0 | AG18: 0 | AH18: 0 | AI18: 0 | AJ18: 0 | AK18: 0 | AM18: 0 | AN18: 0 | AO18: 0 | AP18: 0 | AQ18: 0 | AR18: 0 | AS18: 0 | AT18: 0 | AU18: 0 | AV18: 0 | AX18: 0 | AY18: 0 | AZ18: 0 | BA18: 0 | BB18: 0 | BC18: 0 | BD18: 0 | BE18: 0 | BF18: 0 | BG18: 0 | BI18: 0 | BJ18: 0 | BK18: 0 | BL18: 0 | BM18: 0 | BN18: 0 | BO18: 0 | BP18: 0 | BQ18: 0 | BR18: 0 | BT18: 0 | BU18: 0 | BV18: 0 | BW18: 0 | BX18: 0 | BY18: 0 | BZ18: 0 | CA18: 0 | CB18: 0 | CC18: 0 | CE18: 0 | CF18: 0 | CG18: 0 | CH18: 0 | CI18: 0 | CJ18: 0 | CK18: 0 | CL18: 0 | CM18: 0 | CN18: 0 | CP18: 0 | CQ18: 0 | CR18: 0 | CS18: 0 | CT18: 0 | CU18: 0 | CV18: 0 | CW18: 0 | CX18: 0 | CY18: 0 | DA18: 0 | DB18: 0 | DC18: 0 | DD18: 0 | DE18: 0 | DF18: 0 | DG18: 0 | DH18: 0 | DI18: 0 | DJ18: 0
B19: Communications, training, dissemination and events | C19: Presentation of findings from project trials and innovation competition trial | D19: Workstream 6 | Z19: 0 | AB19: 0 | AC19: 0 | AD19: 0 | AE19: 0 | AF19: 0 | AG19: 0 | AH19: 0 | AI19: 0 | AJ19: 0 | AK19: 0 | AM19: 0 | AN19: 0 | AO19: 0 | AP19: 0 | AQ19: 0 | AR19: 0 | AS19: 0 | AT19: 0 | AU19: 0 | AV19: 0 | AX19: 0 | AY19: 0 | AZ19: 0 | BA19: 0 | BB19: 0 | BC19: 0 | BD19: 0 | BE19: 0 | BF19: 0 | BG19: 0 | BI19: 0 | BJ19: 0 | BK19: 0 | BL19: 0 | BM19: 0 | BN19: 0 | BO19: 0 | BP19: 0 | BQ19: 0 | BR19: =$U19*P19 -> 0 | BT19: 0 | BU19: 0 | BV19: 0 | BW19: 0 | BX19: 0 | BY19: 0 | BZ19: 0 | CA19: 0 | CB19: 0 | CC19: 0 | CE19: 0 | CF19: 0 | CG19: 0 | CH19: 0 | CI19: 0 | CJ19: 0 | CK19: 0 | CL19: 0 | CM19: 0 | CN19: 0 | CP19: 0 | CQ19: 0 | CR19: 0 | CS19: 0 | CT19: 0 | CU19: 0 | CV19: 0 | CW19: 0 | CX19: 0 | CY19: 0 | DA19: 0 | DB19: 0 | DC19: 0 | DD19: 0 | DE19: 0 | DF19: 0 | DG19: 0 | DH19: 0 | DI19: 0 | DJ19: 0
B20: Project management and contingency | C20: Presentation of findings from project trials and innovation competition trial | D20: PM | Z20: 0 | AB20: 0 | AC20: 0 | AD20: 0 | AE20: 0 | AF20: 0 | AG20: 0 | AH20: 0 | AI20: 0 | AJ20: 0 | AK20: 0 | AM20: 0 | AN20: 0 | AO20: 0 | AP20: 0 | AQ20: 0 | AR20: 0 | AS20: 0 | AT20: 0 | AU20: 0 | AV20: 0 | AX20: 0 | AY20: 0 | AZ20: 0 | BA20: 0 | BB20: 0 | BC20: 0 | BD20: 0 | BE20: 0 | BF20: 0 | BG20: 0 | BI20: 0 | BJ20: 0 | BK20: 0 | BL20: 0 | BM20: 0 | BN20: 0 | BO20: 0 | BP20: 0 | BQ20: 0 | BR20: 0 | BT20: 0 | BU20: 0 | BV20: 0 | BW20: 0 | BX20: 0 | BY20: 0 | BZ20: 0 | CA20: 0 | CB20: 0 | CC20: 0 | CE20: 0 | CF20: 0 | CG20: 0 | CH20: 0 | CI20: 0 | CJ20: 0 | CK20: 0 | CL20: 0 | CM20: 0 | CN20: 0 | CP20: 0 | CQ20: 0 | CR20: 0 | CS20: 0 | CT20: 0 | CU20: 0 | CV20: 0 | CW20: 0 | CX20: 0 | CY20: 0 | DA20: 0 | DB20: 0 | DC20: 0 | DD20: 0 | DE20: 0 | DF20: 0 | DG20: 0 | DH20: 0 | DI20: 0 | DJ20: 0
Q21: Total Cost | Z21: =SUM(R21:Y21) -> 0 | AB21: =$R21*G21 -> 0 | AC21: 0 | AD21: 0 | AE21: 0 | AF21: 0 | AG21: 0 | AH21: 0 | AI21: 0 | AJ21: 0 | AK21: 0 | AM21: =$S21*G21 -> 0 | AN21: 0 | AO21: 0 | AP21: 0 | AQ21: 0 | AR21: 0 | AS21: 0 | AT21: 0 | AU21: 0 | AV21: 0 | AX21: =$T21*G21 -> 0 | AY21: 0 | AZ21: 0 | BA21: 0 | BB21: 0 | BC21: 0 | BD21: 0 | BE21: 0 | BF21: 0 | BG21: 0 | BI21: =$U21*G21 -> 0 | BJ21: 0 | BK21: 0 | BL21: 0 | BM21: 0 | BN21: 0 | BO21: 0 | BP21: 0 | BQ21: 0 | BR21: 0 | BT21: 0 | BU21: 0 | BV21: 0 | BW21: 0 | BX21: 0 | BY21: 0 | BZ21: 0 | CA21: 0 | CB21: 0 | CC21: 0 | CE21: 0 | CF21: 0 | CG21: 0 | CH21: 0 | CI21: 0 | CJ21: 0 | CK21: 0 | CL21: 0 | CM21: 0 | CN21: 0 | CP21: =$X21*G21 -> 0 | CQ21: 0 | CR21: 0 | CS21: 0 | CT21: 0 | CU21: 0 | CV21: 0 | CW21: 0 | CX21: 0 | CY21: 0 | DA21: =$Y21*G21 -> 0 | DB21: 0 | DC21: 0 | DD21: 0 | DE21: 0 | DF21: 0 | DG21: 0 | DH21: 0 | DI21: 0 | DJ21: 0
B22: Total | G22: =SUM(G7:G21) -> 0 | H22: 0 | I22: 0 | J22: 0 | K22: 0 | L22: 0 | M22: 0 | N22: 0 | O22: 0 | P22: 0 | Q22: =SUM(G22:P22) -> 0 | AB22: =SUM(AB7:AB21) -> 0 | AC22: 0 | AD22: 0 | AE22: 0 | AF22: 0 | AG22: 0 | AH22: 0 | AI22: 0 | AJ22: 0 | AK22: 0 | AM22: =SUM(AM7:AM21) -> 0 | AN22: 0 | AO22: 0 | AP22: 0 | AQ22: 0 | AR22: 0 | AS22: 0 | AT22: 0 | AU22: 0 | AV22: 0 | AX22: =SUM(AX7:AX21) -> 0 | AY22: 0 | AZ22: 0 | BA22: 0 | BB22: 0 | BC22: 0 | BD22: 0 | BE22: 0 | BF22: 0 | BG22: 0 | BI22: =SUM(BI7:BI21) -> 0 | BJ22: 0 | BK22: 0 | BL22: 0 | BM22: 0 | BN22: 0 | BO22: 0 | BP22: 0 | BQ22: 0 | BR22: 0 | BT22: =SUM(BT7:BT21) -> 0 | BU22: =SUM(BU7:BU21) -> 0 | BV22: =SUM(BV7:BV21) -> 0 | BW22: =SUM(BW7:BW21) -> 0 | BX22: =SUM(BX7:BX21) -> 0 | BY22: =SUM(BY7:BY21) -> 0 | BZ22: =SUM(BZ7:BZ21) -> 0 | CA22: =SUM(CA7:CA21) -> 0 | CB22: =SUM(CB7:CB21) -> 0 | CC22: =SUM(CC7:CC21) -> 0 | CE22: =SUM(CE7:CE21) -> 0 | CF22: =SUM(CF7:CF21) -> 0 | CG22: =SUM(CG7:CG21) -> 0 | CH22: =SUM(CH7:CH21) -> 0 | CI22: =SUM(CI7:CI21) -> 0 | CJ22: =SUM(CJ7:CJ21) -> 0 | CK22: =SUM(CK7:CK21) -> 0 | CL22: =SUM(CL7:CL21) -> 0 | CM22: =SUM(CM7:CM21) -> 0 | CN22: =SUM(CN7:CN21) -> 0 | CP22: =SUM(CP7:CP21) -> 0 | CQ22: 0 | CR22: 0 | CS22: 0 | CT22: 0 | CU22: 0 | CV22: 0 | CW22: 0 | CX22: 0 | CY22: 0 | DA22: =SUM(DA7:DA21) -> 0 | DB22: 0 | DC22: 0 | DD22: 0 | DE22: 0 | DF22: 0 | DG22: 0 | DH22: 0 | DI22: 0 | DJ22: 0
D268: Totals

Sheet 2026-2027
B1: Project Costs in 2026-2027
G4: Total Cost £K | R4: Funding source % | Z4: Licensee Compulsory Contribution/Direct Benefits | AK4: Project Partner 1 | AV4: Project Partner 2 | BG4: Project Partner 3 | BR4: Licensee Extra Contribution | CC4: Outstanding Funding Required
G5: Labour | H5: Equipment | I5: Contractors | J5: IT | K5: IPR Costs | L5: Travel & Expenses | M5: Payments to users | N5: Contingency | O5: Decommissioning | P5: Other | R5: Licensee Compulsory Contribution /Direct Benefits | S5: Project Partner 1 | T5: Project Partner 2 | U5: Project Partner 3 | V5: Licensee Extra Contribution | W5: Oustanding Funding Required | X5: Total | Z5: Labour | AA5: Equipment | AB5: Contractors | AC5: IT | AD5: IPR Costs | AE5: Travel & Expenses | AF5: Payments to users | AG5: Contingency | AH5: Decommissioning | AI5: Other | AK5: Labour | AL5: Equipment | AM5: Contractors | AN5: IT | AO5: IPR Costs | AP5: Travel & Expenses | AQ5: Payments to users | AR5: Contingency | AS5: Decommissioning | AT5: Other | AV5: Labour | AW5: Equipment | AX5: Contractors | AY5: IT | AZ5: IPR Costs | BA5: Travel & Expenses | BB5: Payments to users | BC5: Contingency | BD5: Decommissioning | BE5: Other | BG5: Labour | BH5: Equipment | BI5: Contractors | BJ5: IT | BK5: IPR Costs | BL5: Travel & Expenses | BM5: Payments to users | BN5: Contingency | BO5: Decommissioning | BP5: Other | BR5: Labour | BS5: Equipment | BT5: Contractors | BU5: IT | BV5: IPR Costs | BW5: Travel & Expenses | BX5: Payments to users | BY5: Contingency | BZ5: Decommissioning | CA5: Other | CC5: Labour | CD5: Equipment | CE5: Contractors | CF5: IT | CG5: IPR Costs | CH5: Travel & Expenses | CI5: Payments to users | CJ5: Contingency | CK5: Decommissioning | CL5: Other
B6: Description | C6: Task | D6: Project Workstream
X7: =SUM(R7:W7) -> 0 | Z7: =$R7*G7 -> 0 | AA7: 0 | AB7: 0 | AC7: 0 | AD7: 0 | AE7: 0 | AF7: 0 | AG7: 0 | AH7: 0 | AI7: 0 | AK7: =$S7*G7 -> 0 | AL7: 0 | AM7: 0 | AN7: 0 | AO7: 0 | AP7: 0 | AQ7: 0 | AR7: 0 | AS7: 0 | AT7: 0 | AV7: =$T7*G7 -> 0 | AW7: 0 | AX7: 0 | AY7: 0 | AZ7: 0 | BA7: 0 | BB7: 0 | BC7: 0 | BD7: 0 | BE7: 0 | BG7: =$U7*G7 -> 0 | BH7: 0 | BI7: 0 | BJ7: 0 | BK7: 0 | BL7: 0 | BM7: 0 | BN7: 0 | BO7: 0 | BP7: 0 | BR7: =$V7*G7 -> 0 | BS7: 0 | BT7: 0 | BU7: 0 | BV7: 0 | BW7: 0 | BX7: 0 | BY7: 0 | BZ7: 0 | CA7: 0 | CC7: =$W7*G7 -> 0 | CD7: 0 | CE7: 0 | CF7: 0 | CG7: 0 | CH7: 0 | CI7: 0 | CJ7: 0 | CK7: 0 | CL7: 0
Q8: Total Cost | X8: =SUM(R8:W8) -> 0 | Z8: 0 | AA8: 0 | AB8: 0 | AC8: 0 | AD8: 0 | AE8: 0 | AF8: 0 | AG8: 0 | AH8: 0 | AI8: 0 | AK8: 0 | AL8: 0 | AM8: 0 | AN8: 0 | AO8: 0 | AP8: 0 | AQ8: 0 | AR8: 0 | AS8: 0 | AT8: 0 | AV8: 0 | AW8: 0 | AX8: 0 | AY8: 0 | AZ8: 0 | BA8: 0 | BB8: 0 | BC8: 0 | BD8: 0 | BE8: 0 | BG8: 0 | BH8: 0 | BI8: 0 | BJ8: 0 | BK8: 0 | BL8: 0 | BM8: 0 | BN8: 0 | BO8: 0 | BP8: 0 | BR8: 0 | BS8: 0 | BT8: 0 | BU8: 0 | BV8: 0 | BW8: 0 | BX8: 0 | BY8: 0 | BZ8: 0 | CA8: 0 | CC8: 0 | CD8: 0 | CE8: 0 | CF8: 0 | CG8: 0 | CH8: 0 | CI8: 0 | CJ8: 0 | CK8: 0 | CL8: 0
B9: Total | G9: =SUM(G7:G8) -> 0 | H9: =SUM(H7:H8) -> 0 | I9: 0 | J9: 0 | K9: 0 | L9: 0 | M9: 0 | N9: 0 | O9: 0 | P9: 0 | Q9: =SUM(G9:P9) -> 0 | Z9: =SUM(Z7:Z8) -> 0 | AA9: =SUM(AA7:AA8) -> 0 | AB9: 0 | AC9: 0 | AD9: 0 | AE9: 0 | AF9: 0 | AG9: 0 | AH9: 0 | AI9: 0 | AK9: =SUM(AK7:AK8) -> 0 | AL9: =SUM(AL7:AL8) -> 0 | AM9: 0 | AN9: 0 | AO9: 0 | AP9: 0 | AQ9: 0 | AR9: 0 | AS9: 0 | AT9: 0 | AV9: =SUM(AV7:AV8) -> 0 | AW9: =SUM(AW7:AW8) -> 0 | AX9: 0 | AY9: 0 | AZ9: 0 | BA9: 0 | BB9: 0 | BC9: 0 | BD9: 0 | BE9: 0 | BG9: =SUM(BG7:BG8) -> 0 | BH9: =SUM(BH7:BH8) -> 0 | BI9: 0 | BJ9: 0 | BK9: 0 | BL9: 0 | BM9: 0 | BN9: 0 | BO9: 0 | BP9: 0 | BR9: =SUM(BR7:BR8) -> 0 | BS9: =SUM(BS7:BS8) -> 0 | BT9: 0 | BU9: 0 | BV9: 0 | BW9: 0 | BX9: 0 | BY9: 0 | BZ9: 0 | CA9: 0 | CC9: =SUM(CC7:CC8) -> 0 | CD9: =SUM(CD7:CD8) -> 0 | CE9: 0 | CF9: 0 | CG9: 0 | CH9: 0 | CI9: 0 | CJ9: 0 | CK9: 0 | CL9: 0
D255: Totals

Sheet Whole project
B1: Whole Project
G4: Total Cost £K | R4: Funding source % | AB4: Licensee Compulsory Contribution/Direct Benefits | AM4: ABB | AX4: Siemens | BI4: GE | BT4: Vodafone | CE4: PNDC | CP4: Licensee Extra Contribution | DA4: Outstanding Funding Required
G5: Labour | H5: Equipment | I5: Contractors | J5: IT | K5: IPR Costs | L5: Travel & Expenses | M5: Payments to users | N5: Contingency | O5: Decommissioning | P5: Other | R5: Licensee Compulsory Contribution /Direct Benefits | S5: ABB | T5: Siemens | U5: GE | V5: Vodafone | W5: PNDC | X5: Licensee Extra Contribution | Y5: Oustanding Funding Required | Z5: Total | AB5: Labour | AC5: Equipment | AD5: Contractors | AE5: IT | AF5: IPR Costs | AG5: Travel & Expenses | AH5: Payments to users | AI5: Contingency | AJ5: Decommissioning | AK5: Other | AM5: Labour | AN5: Equipment | AO5: Contractors | AP5: IT | AQ5: IPR Costs | AR5: Travel & Expenses | AS5: Payments to users | AT5: Contingency | AU5: Decommissioning | AV5: Other | AX5: Labour | AY5: Equipment | AZ5: Contractors | BA5: IT | BB5: IPR Costs | BC5: Travel & Expenses | BD5: Payments to users | BE5: Contingency | BF5: Decommissioning | BG5: Other | BI5: Labour | BJ5: Equipment | BK5: Contractors | BL5: IT | BM5: IPR Costs | BN5: Travel & Expenses | BO5: Payments to users | BP5: Contingency | BQ5: Decommissioning | BR5: Other | BT5: Labour | BU5: Equipment | BV5: Contractors | BW5: IT | BX5: IPR Costs | BY5: Travel & Expenses | BZ5: Payments to users | CA5: Contingency | CB5: Decommissioning | CC5: Other | CE5: Labour | CF5: Equipment | CG5: Contractors | CH5: IT | CI5: IPR Costs | CJ5: Travel & Expenses | CK5: Payments to users | CL5: Contingency | CM5: Decommissioning | CN5: Other | CP5: Labour | CQ5: Equipment | CR5: Contractors | CS5: IT | CT5: IPR Costs | CU5: Travel & Expenses | CV5: Payments to users | CW5: Contingency | CX5: Decommissioning | CY5: Other | DA5: Labour | DB5: Equipment | DC5: Contractors | DD5: IT | DE5: IPR Costs | DF5: Travel & Expenses | DG5: Payments to users | DH5: Contingency | DI5: Decommissioning | DJ5: Other
B6: Description | C6: Task | D6: Project Workstream | E6: Cost breakdown | F6: Comments
B7: Solution design and approval | C7: Details of the system design and architecture for protection and control on a substation with local intelligence | D7: Workstreams 1 and 2 | Z7: =SUM(R7:Y7) -> 0 | AB7: =$R7*G7 -> 0 | AC7: 0 | AD7: 0 | AE7: 0 | AF7: 0 | AG7: 0 | AH7: 0 | AI7: 0 | AJ7: 0 | AK7: 0 | AM7: =$S7*G7 -> 0 | AN7: 0 | AO7: 0 | AP7: 0 | AQ7: 0 | AR7: 0 | AS7: 0 | AT7: 0 | AU7: 0 | AV7: 0 | AX7: =$T7*G7 -> 0 | AY7: 0 | AZ7: 0 | BA7: 0 | BB7: 0 | BC7: 0 | BD7: 0 | BE7: 0 | BF7: 0 | BG7: 0 | BI7: =$U7*G7 -> 0 | BJ7: 0 | BK7: 0 | BL7: 0 | BM7: 0 | BN7: 0 | BO7: 0 | BP7: 0 | BQ7: 0 | BR7: 0 | BT7: =$V7*G7 -> 0 | BU7: =$V7*H7 -> 0 | BV7: 0 | BW7: 0 | BX7: 0 | BY7: 0 | BZ7: 0 | CA7: 0 | CB7: 0 | CC7: 0 | CE7: =$W7*G7 -> 0 | CF7: =$W7*H7 -> 0 | CG7: 0 | CH7: 0 | CI7: 0 | CJ7: 0 | CK7: 0 | CL7: 0 | CM7: 0 | CN7: =$W7*P7 -> 0 | CP7: =$X7*G7 -> 0 | CQ7: 0 | CR7: 0 | CS7: 0 | CT7: 0 | CU7: 0 | CV7: 0 | CW7: 0 | CX7: 0 | CY7: 0 | DA7: =$Y7*G7 -> 0 | DB7: 0 | DC7: 0 | DD7: 0 | DE7: 0 | DF7: 0 | DG7: 0 | DH7: 0 | DI7: 0 | DJ7: 0
B8: Trial design and site selection | C8: Description of the trial design and site selection criteria process | D8: Workstreams 2 and 3 | Z8: =SUM(R8:Y8) -> 0 | AB8: =$R8*G8 -> 0 | AC8: =$R8*H8 -> 0 | AD8: =$R8*I8 -> 0 | AE8: =$R8*J8 -> 0 | AF8: =$R8*K8 -> 0 | AG8: =$R8*L8 -> 0 | AH8: =$R8*M8 -> 0 | AI8: =$R8*N8 -> 0 | AJ8: =$R8*O8 -> 0 | AK8: =$R8*P8 -> 0 | AM8: =$S8*G8 -> 0 | AN8: =$S8*H8 -> 0 | AO8: =$S8*I8 -> 0 | AP8: =$S8*J8 -> 0 | AQ8: =$S8*K8 -> 0 | AR8: =$S8*L8 -> 0 | AS8: =$S8*M8 -> 0 | AT8: =$S8*N8 -> 0 | AU8: =$S8*O8 -> 0 | AV8: =$S8*P8 -> 0 | AX8: =$T8*G8 -> 0 | AY8: =$T8*H8 -> 0 | AZ8: =$T8*I8 -> 0 | BA8: =$T8*J8 -> 0 | BB8: =$T8*K8 -> 0 | BC8: =$T8*L8 -> 0 | BD8: =$T8*M8 -> 0 | BE8: =$T8*N8 -> 0 | BF8: =$T8*O8 -> 0 | BG8: =$T8*P8 -> 0 | BI8: =$U8*G8 -> 0 | BJ8: =$U8*H8 -> 0 | BK8: =$U8*I8 -> 0 | BL8: =$U8*J8 -> 0 | BM8: =$U8*K8 -> 0 | BN8: =$U8*L8 -> 0 | BO8: =$U8*M8 -> 0 | BP8: =$U8*N8 -> 0 | BQ8: =$U8*O8 -> 0 | BR8: =$U8*P8 -> 0 | BT8: =$V8*G8 -> 0 | BU8: =$V8*H8 -> 0 | BV8: =$V8*I8 -> 0 | BW8: =$V8*J8 -> 0 | BX8: =$V8*K8 -> 0 | BY8: =$V8*L8 -> 0 | BZ8: =$V8*M8 -> 0 | CA8: =$V8*N8 -> 0 | CB8: =$V8*O8 -> 0 | CC8: =$V8*P8 -> 0 | CE8: =$W8*G8 -> 0 | CF8: =$W8*H8 -> 0 | CG8: =$W8*I8 -> 0 | CH8: =$W8*J8 -> 0 | CI8: =$W8*K8 -> 0 | CJ8: =$W8*L8 -> 0 | CK8: =$W8*M8 -> 0 | CL8: =$W8*N8 -> 0 | CM8: =$W8*O8 -> 0 | CN8: =$W8*P8 -> 0 | CP8: =$X8*G8 -> 0 | CQ8: =$X8*H8 -> 0 | CR8: =$X8*I8 -> 0 | CS8: =$X8*J8 -> 0 | CT8: =$X8*K8 -> 0 | CU8: =$X8*L8 -> 0 | CV8: =$X8*M8 -> 0 | CW8: =$X8*N8 -> 0 | CX8: =$X8*O8 -> 0 | CY8: =$X8*P8 -> 0 | DA8: =$Y8*G8 -> 0 | DB8: =$Y8*H8 -> 0 | DC8: =$Y8*I8 -> 0 | DD8: =$Y8*J8 -> 0 | DE8: =$Y8*K8 -> 0 | DF8: =$Y8*L8 -> 0 | DG8: =$Y8*M8 -> 0 | DH8: =$Y8*N8 -> 0 | DI8: =$Y8*O8 -> 0 | DJ8: =$Y8*P8 -> 0
B9: Equipment specification and purchase | C9: Description of the trial design and site selection criteria process | D9: Workstream 2 | Z9: 0 | AB9: 0 | AC9: 0 | AD9: 0 | AE9: 0 | AF9: 0 | AG9: 0 | AH9: 0 | AI9: 0 | AJ9: 0 | AK9: 0 | AM9: 0 | AN9: 0 | AO9: 0 | AP9: 0 | AQ9: 0 | AR9: 0 | AS9: 0 | AT9: 0 | AU9: 0 | AV9: 0 | AX9: 0 | AY9: 0 | AZ9: 0 | BA9: 0 | BB9: 0 | BC9: 0 | BD9: 0 | BE9: 0 | BF9: 0 | BG9: 0 | BI9: 0 | BJ9: 0 | BK9: 0 | BL9: 0 | BM9: 0 | BN9: 0 | BO9: 0 | BP9: 0 | BQ9: 0 | BR9: 0 | BT9: 0 | BU9: 0 | BV9: 0 | BW9: 0 | BX9: 0 | BY9: 0 | BZ9: 0 | CA9: 0 | CB9: 0 | CC9: 0 | CE9: 0 | CF9: 0 | CG9: 0 | CH9: 0 | CI9: 0 | CJ9: 0 | CK9: 0 | CL9: 0 | CM9: 0 | CN9: 0 | CP9: 0 | CQ9: 0 | CR9: 0 | CS9: 0 | CT9: 0 | CU9: 0 | CV9: 0 | CW9: 0 | CX9: 0 | CY9: 0 | DA9: 0 | DB9: 0 | DC9: 0 | DD9: 0 | DE9: 0 | DF9: 0 | DG9: 0 | DH9: 0 | DI9: 0 | DJ9: 0
B10: Solution development and approval | C10: Initial learning from off-network PNDC trial, and learning from functionality development, virtualisation | D10: Workstreams 1 and 2 | Z10: 0 | AB10: 0 | AC10: 0 | AD10: 0 | AE10: 0 | AF10: 0 | AG10: 0 | AH10: 0 | AI10: 0 | AJ10: 0 | AK10: 0 | AM10: 0 | AN10: 0 | AO10: 0 | AP10: 0 | AQ10: 0 | AR10: 0 | AS10: 0 | AT10: 0 | AU10: 0 | AV10: 0 | AX10: 0 | AY10: 0 | AZ10: 0 | BA10: 0 | BB10: 0 | BC10: 0 | BD10: 0 | BE10: 0 | BF10: 0 | BG10: 0 | BI10: 0 | BJ10: 0 | BK10: 0 | BL10: 0 | BM10: 0 | BN10: 0 | BO10: 0 | BP10: 0 | BQ10: 0 | BR10: 0 | BT10: 0 | BU10: 0 | BV10: 0 | BW10: 0 | BX10: 0 | BY10: 0 | BZ10: 0 | CA10: 0 | CB10: 0 | CC10: 0 | CE10: 0 | CF10: 0 | CG10: 0 | CH10: 0 | CI10: 0 | CJ10: 0 | CK10: 0 | CL10: 0 | CM10: 0 | CN10: 0 | CP10: 0 | CQ10: 0 | CR10: 0 | CS10: 0 | CT10: 0 | CU10: 0 | CV10: 0 | CW10: 0 | CX10: 0 | CY10: 0 | DA10: 0 | DB10: 0 | DC10: 0 | DD10: 0 | DE10: 0 | DF10: 0 | DG10: 0 | DH10: 0 | DI10: 0 | DJ10: 0
B11: Initial validation and off-network installation and testing | C11: Initial learning from off-network PNDC trial, and learning from functionality development, virtualisation | D11: Workstream 3 | Z11: 0 | AB11: 0 | AC11: 0 | AD11: 0 | AE11: 0 | AF11: 0 | AG11: 0 | AH11: 0 | AI11: 0 | AJ11: 0 | AK11: 0 | AM11: 0 | AN11: 0 | AO11: 0 | AP11: 0 | AQ11: 0 | AR11: 0 | AS11: 0 | AT11: 0 | AU11: 0 | AV11: 0 | AX11: 0 | AY11: 0 | AZ11: 0 | BA11: 0 | BB11: 0 | BC11: 0 | BD11: 0 | BE11: 0 | BF11: 0 | BG11: 0 | BI11: 0 | BJ11: 0 | BK11: 0 | BL11: 0 | BM11: 0 | BN11: 0 | BO11: 0 | BP11: 0 | BQ11: 0 | BR11: 0 | BT11: 0 | BU11: 0 | BV11: 0 | BW11: 0 | BX11: 0 | BY11: 0 | BZ11: 0 | CA11: 0 | CB11: 0 | CC11: 0 | CE11: 0 | CF11: 0 | CG11: 0 | CH11: 0 | CI11: 0 | CJ11: 0 | CK11: 0 | CL11: 0 | CM11: 0 | CN11: 0 | CP11: 0 | CQ11: 0 | CR11: 0 | CS11: 0 | CT11: 0 | CU11: 0 | CV11: 0 | CW11: 0 | CX11: 0 | CY11: 0 | DA11: 0 | DB11: 0 | DC11: 0 | DD11: 0 | DE11: 0 | DF11: 0 | DG11: 0 | DH11: 0 | DI11: 0 | DJ11: 0
B12: Trial site preparation: design, installation and commissioning | C12: Review of site installation and learning from mid trial passive network demonstration | D12: Workstream 2 | Z12: 0 | AB12: 0 | AC12: 0 | AD12: 0 | AE12: 0 | AF12: 0 | AG12: 0 | AH12: 0 | AI12: 0 | AJ12: 0 | AK12: 0 | AM12: 0 | AN12: 0 | AO12: 0 | AP12: 0 | AQ12: 0 | AR12: 0 | AS12: 0 | AT12: 0 | AU12: 0 | AV12: 0 | AX12: 0 | AY12: 0 | AZ12: 0 | BA12: 0 | BB12: 0 | BC12: 0 | BD12: 0 | BE12: 0 | BF12: 0 | BG12: 0 | BI12: 0 | BJ12: 0 | BK12: 0 | BL12: 0 | BM12: 0 | BN12: 0 | BO12: 0 | BP12: 0 | BQ12: 0 | BR12: 0 | BT12: 0 | BU12: 0 | BV12: 0 | BW12: 0 | BX12: 0 | BY12: 0 | BZ12: 0 | CA12: 0 | CB12: 0 | CC12: 0 | CE12: 0 | CF12: 0 | CG12: 0 | CH12: 0 | CI12: 0 | CJ12: 0 | CK12: 0 | CL12: 0 | CM12: 0 | CN12: 0 | CP12: 0 | CQ12: 0 | CR12: 0 | CS12: 0 | CT12: 0 | CU12: 0 | CV12: 0 | CW12: 0 | CX12: 0 | CY12: 0 | DA12: 0 | DB12: 0 | DC12: 0 | DD12: 0 | DE12: 0 | DF12: 0 | DG12: 0 | DH12: 0 | DI12: 0 | DJ12: 0
B13: Site acceptance testing and solution reiterations | C13: Review of site installation and learning from mid trial passive network demonstration | D13: Workstream 3 | Z13: 0 | AB13: 0 | AC13: 0 | AD13: 0 | AE13: 0 | AF13: 0 | AG13: 0 | AH13: 0 | AI13: 0 | AJ13: 0 | AK13: 0 | AM13: 0 | AN13: 0 | AO13: 0 | AP13: 0 | AQ13: 0 | AR13: 0 | AS13: 0 | AT13: 0 | AU13: 0 | AV13: 0 | AX13: 0 | AY13: 0 | AZ13: 0 | BA13: 0 | BB13: 0 | BC13: 0 | BD13: 0 | BE13: 0 | BF13: 0 | BG13: 0 | BI13: 0 | BJ13: 0 | BK13: 0 | BL13: 0 | BM13: 0 | BN13: 0 | BO13: 0 | BP13: 0 | BQ13: 0 | BR13: 0 | BT13: 0 | BU13: 0 | BV13: 0 | BW13: 0 | BX13: 0 | BY13: 0 | BZ13: 0 | CA13: 0 | CB13: 0 | CC13: 0 | CE13: 0 | CF13: 0 | CG13: 0 | CH13: 0 | CI13: 0 | CJ13: 0 | CK13: 0 | CL13: 0 | CM13: 0 | CN13: 0 | CP13: 0 | CQ13: 0 | CR13: 0 | CS13: 0 | CT13: 0 | CU13: 0 | CV13: 0 | CW13: 0 | CX13: 0 | CY13: 0 | DA13: 0 | DB13: 0 | DC13: 0 | DD13: 0 | DE13: 0 | DF13: 0 | DG13: 0 | DH13: 0 | DI13: 0 | DJ13: 0
B14: Transition from PNDC to live network | C14: Review of site installation and learning from mid trial passive network demonstration | D14: Workstream 3 | Z14: 0 | AB14: 0 | AC14: 0 | AD14: 0 | AE14: 0 | AF14: 0 | AG14: 0 | AH14: 0 | AI14: 0 | AJ14: 0 | AK14: 0 | AM14: 0 | AN14: 0 | AO14: 0 | AP14: 0 | AQ14: 0 | AR14: 0 | AS14: 0 | AT14: 0 | AU14: 0 | AV14: 0 | AX14: 0 | AY14: 0 | AZ14: 0 | BA14: 0 | BB14: 0 | BC14: 0 | BD14: 0 | BE14: 0 | BF14: 0 | BG14: 0 | BI14: 0 | BJ14: 0 | BK14: 0 | BL14: 0 | BM14: 0 | BN14: 0 | BO14: 0 | BP14: 0 | BQ14: 0 | BR14: 0 | BT14: 0 | BU14: 0 | BV14: 0 | BW14: 0 | BX14: 0 | BY14: 0 | BZ14: 0 | CA14: 0 | CB14: 0 | CC14: 0 | CE14: 0 | CF14: 0 | CG14: 0 | CH14: 0 | CI14: 0 | CJ14: 0 | CK14: 0 | CL14: 0 | CM14: 0 | CN14: 0 | CP14: 0 | CQ14: 0 | CR14: 0 | CS14: 0 | CT14: 0 | CU14: 0 | CV14: 0 | CW14: 0 | CX14: 0 | CY14: 0 | DA14: 0 | DB14: 0 | DC14: 0 | DD14: 0 | DE14: 0 | DF14: 0 | DG14: 0 | DH14: 0 | DI14: 0 | DJ14: 0
B15: Plan, launch, publicise and select OIC participants | C15: Learning from the innovation competition process | D15: Workstream 4 | Z15: 0 | AB15: 0 | AC15: 0 | AD15: 0 | AE15: 0 | AF15: 0 | AG15: 0 | AH15: 0 | AI15: 0 | AJ15: 0 | AK15: 0 | AM15: 0 | AN15: 0 | AO15: 0 | AP15: 0 | AQ15: 0 | AR15: 0 | AS15: 0 | AT15: 0 | AU15: 0 | AV15: 0 | AX15: 0 | AY15: 0 | AZ15: 0 | BA15: 0 | BB15: 0 | BC15: 0 | BD15: 0 | BE15: 0 | BF15: 0 | BG15: 0 | BI15: 0 | BJ15: 0 | BK15: 0 | BL15: 0 | BM15: 0 | BN15: 0 | BO15: 0 | BP15: 0 | BQ15: 0 | BR15: 0 | BT15: 0 | BU15: 0 | BV15: 0 | BW15: 0 | BX15: 0 | BY15: 0 | BZ15: 0 | CA15: 0 | CB15: 0 | CC15: 0 | CE15: 0 | CF15: 0 | CG15: 0 | CH15: 0 | CI15: 0 | CJ15: 0 | CK15: 0 | CL15: 0 | CM15: 0 | CN15: 0 | CP15: 0 | CQ15: 0 | CR15: 0 | CS15: 0 | CT15: 0 | CU15: 0 | CV15: 0 | CW15: 0 | CX15: 0 | CY15: 0 | DA15: 0 | DB15: 0 | DC15: 0 | DD15: 0 | DE15: 0 | DF15: 0 | DG15: 0 | DH15: 0 | DI15: 0 | DJ15: 0
B16: Incubate, test and deploy as network trial | C16: Learning from the innovation competition process | D16: Workstream 4 | Z16: 0 | AB16: 0 | AC16: 0 | AD16: 0 | AE16: 0 | AF16: 0 | AG16: 0 | AH16: 0 | AI16: 0 | AJ16: 0 | AK16: 0 | AM16: 0 | AN16: 0 | AO16: 0 | AP16: 0 | AQ16: 0 | AR16: 0 | AS16: 0 | AT16: 0 | AU16: 0 | AV16: 0 | AX16: 0 | AY16: 0 | AZ16: 0 | BA16: 0 | BB16: 0 | BC16: 0 | BD16: 0 | BE16: 0 | BF16: 0 | BG16: 0 | BI16: 0 | BJ16: 0 | BK16: 0 | BL16: 0 | BM16: 0 | BN16: 0 | BO16: 0 | BP16: 0 | BQ16: 0 | BR16: 0 | BT16: 0 | BU16: 0 | BV16: 0 | BW16: 0 | BX16: 0 | BY16: 0 | BZ16: 0 | CA16: 0 | CB16: 0 | CC16: 0 | CE16: 0 | CF16: 0 | CG16: 0 | CH16: 0 | CI16: 0 | CJ16: 0 | CK16: 0 | CL16: 0 | CM16: 0 | CN16: 0 | CP16: 0 | CQ16: 0 | CR16: 0 | CS16: 0 | CT16: 0 | CU16: 0 | CV16: 0 | CW16: 0 | CX16: 0 | CY16: 0 | DA16: 0 | DB16: 0 | DC16: 0 | DD16: 0 | DE16: 0 | DF16: 0 | DG16: 0 | DH16: 0 | DI16: 0 | DJ16: 0
B17: Launch academic research and review deliverables | C17: Learning from academic insights and the governance required to prepare for the future world of distributed & autonomous network operation | D17: Workstream 5 | Z17: 0 | AB17: 0 | AC17: 0 | AD17: 0 | AE17: 0 | AF17: 0 | AG17: 0 | AH17: 0 | AI17: 0 | AJ17: 0 | AK17: 0 | AM17: 0 | AN17: 0 | AO17: 0 | AP17: 0 | AQ17: 0 | AR17: 0 | AS17: 0 | AT17: 0 | AU17: 0 | AV17: 0 | AX17: 0 | AY17: 0 | AZ17: 0 | BA17: 0 | BB17: 0 | BC17: 0 | BD17: 0 | BE17: 0 | BF17: 0 | BG17: 0 | BI17: 0 | BJ17: 0 | BK17: 0 | BL17: 0 | BM17: 0 | BN17: 0 | BO17: 0 | BP17: 0 | BQ17: 0 | BR17: 0 | BT17: 0 | BU17: 0 | BV17: 0 | BW17: 0 | BX17: 0 | BY17: 0 | BZ17: 0 | CA17: 0 | CB17: 0 | CC17: 0 | CE17: 0 | CF17: 0 | CG17: 0 | CH17: 0 | CI17: 0 | CJ17: 0 | CK17: 0 | CL17: 0 | CM17: 0 | CN17: 0 | CP17: 0 | CQ17: 0 | CR17: 0 | CS17: 0 | CT17: 0 | CU17: 0 | CV17: 0 | CW17: 0 | CX17: 0 | CY17: 0 | DA17: 0 | DB17: 0 | DC17: 0 | DD17: 0 | DE17: 0 | DF17: 0 | DG17: 0 | DH17: 0 | DI17: 0 | DJ17: 0
B18: Data gathering and engineering support for network trials | C18: Presentation of findings from project trials and innovation competition trial | D18: Workstream 3 | Z18: 0 | AB18: 0 | AC18: 0 | AD18: 0 | AE18: 0 | AF18: 0 | AG18: 0 | AH18: 0 | AI18: 0 | AJ18: 0 | AK18: 0 | AM18: 0 | AN18: 0 | AO18: 0 | AP18: 0 | AQ18: 0 | AR18: 0 | AS18: 0 | AT18: 0 | AU18: 0 | AV18: 0 | AX18: 0 | AY18: 0 | AZ18: 0 | BA18: 0 | BB18: 0 | BC18: 0 | BD18: 0 | BE18: 0 | BF18: 0 | BG18: 0 | BI18: 0 | BJ18: 0 | BK18: 0 | BL18: 0 | BM18: 0 | BN18: 0 | BO18: 0 | BP18: 0 | BQ18: 0 | BR18: 0 | BT18: 0 | BU18: 0 | BV18: 0 | BW18: 0 | BX18: 0 | BY18: 0 | BZ18: 0 | CA18: 0 | CB18: 0 | CC18: 0 | CE18: 0 | CF18: 0 | CG18: 0 | CH18: 0 | CI18: 0 | CJ18: 0 | CK18: 0 | CL18: 0 | CM18: 0 | CN18: 0 | CP18: 0 | CQ18: 0 | CR18: 0 | CS18: 0 | CT18: 0 | CU18: 0 | CV18: 0 | CW18: 0 | CX18: 0 | CY18: 0 | DA18: 0 | DB18: 0 | DC18: 0 | DD18: 0 | DE18: 0 | DF18: 0 | DG18: 0 | DH18: 0 | DI18: 0 | DJ18: 0
B19: Communications, training, dissemination and events | C19: Presentation of findings from project trials and innovation competition trial | D19: Workstream 6 | Z19: 0 | AB19: 0 | AC19: 0 | AD19: 0 | AE19: 0 | AF19: 0 | AG19: 0 | AH19: 0 | AI19: 0 | AJ19: 0 | AK19: 0 | AM19: 0 | AN19: 0 | AO19: 0 | AP19: 0 | AQ19: 0 | AR19: 0 | AS19: 0 | AT19: 0 | AU19: 0 | AV19: 0 | AX19: 0 | AY19: 0 | AZ19: 0 | BA19: 0 | BB19: 0 | BC19: 0 | BD19: 0 | BE19: 0 | BF19: 0 | BG19: 0 | BI19: 0 | BJ19: 0 | BK19: 0 | BL19: 0 | BM19: 0 | BN19: 0 | BO19: 0 | BP19: 0 | BQ19: 0 | BR19: 0 | BT19: 0 | BU19: 0 | BV19: 0 | BW19: 0 | BX19: 0 | BY19: 0 | BZ19: 0 | CA19: 0 | CB19: 0 | CC19: 0 | CE19: 0 | CF19: 0 | CG19: 0 | CH19: 0 | CI19: 0 | CJ19: 0 | CK19: 0 | CL19: 0 | CM19: 0 | CN19: 0 | CP19: 0 | CQ19: 0 | CR19: 0 | CS19: 0 | CT19: 0 | CU19: 0 | CV19: 0 | CW19: 0 | CX19: 0 | CY19: 0 | DA19: 0 | DB19: 0 | DC19: 0 | DD19: 0 | DE19: 0 | DF19: 0 | DG19: 0 | DH19: 0 | DI19: 0 | DJ19: 0
B20: Project management and contingency | C20: Presentation of findings from project trials and innovation competition trial | D20: PM | Z20: 0 | AB20: 0 | AC20: 0 | AD20: 0 | AE20: 0 | AF20: 0 | AG20: 0 | AH20: 0 | AI20: 0 | AJ20: 0 | AK20: 0 | AM20: 0 | AN20: 0 | AO20: 0 | AP20: 0 | AQ20: 0 | AR20: 0 | AS20: 0 | AT20: 0 | AU20: 0 | AV20: 0 | AX20: 0 | AY20: 0 | AZ20: 0 | BA20: 0 | BB20: 0 | BC20: 0 | BD20: 0 | BE20: 0 | BF20: 0 | BG20: 0 | BI20: 0 | BJ20: 0 | BK20: 0 | BL20: 0 | BM20: 0 | BN20: 0 | BO20: 0 | BP20: 0 | BQ20: 0 | BR20: 0 | BT20: 0 | BU20: 0 | BV20: 0 | BW20: 0 | BX20: 0 | BY20: 0 | BZ20: 0 | CA20: 0 | CB20: 0 | CC20: 0 | CE20: 0 | CF20: 0 | CG20: 0 | CH20: 0 | CI20: 0 | CJ20: 0 | CK20: 0 | CL20: 0 | CM20: 0 | CN20: 0 | CP20: 0 | CQ20: 0 | CR20: 0 | CS20: 0 | CT20: 0 | CU20: 0 | CV20: 0 | CW20: 0 | CX20: 0 | CY20: 0 | DA20: 0 | DB20: 0 | DC20: 0 | DD20: 0 | DE20: 0 | DF20: 0 | DG20: 0 | DH20: 0 | DI20: 0 | DJ20: 0
Q21: Total Cost | Z21: =SUM(R21:Y21) -> 0 | AB21: =$R21*G21 -> 0 | AC21: 0 | AD21: 0 | AE21: 0 | AF21: 0 | AG21: 0 | AH21: 0 | AI21: 0 | AJ21: 0 | AK21: 0 | AM21: =$S21*G21 -> 0 | AN21: 0 | AO21: 0 | AP21: 0 | AQ21: 0 | AR21: 0 | AS21: 0 | AT21: 0 | AU21: 0 | AV21: 0 | AX21: =$T21*G21 -> 0 | AY21: 0 | AZ21: 0 | BA21: 0 | BB21: 0 | BC21: 0 | BD21: 0 | BE21: 0 | BF21: 0 | BG21: 0 | BI21: =$U21*G21 -> 0 | BJ21: 0 | BK21: 0 | BL21: 0 | BM21: 0 | BN21: 0 | BO21: 0 | BP21: 0 | BQ21: 0 | BR21: 0 | BT21: 0 | BU21: 0 | BV21: 0 | BW21: 0 | BX21: 0 | BY21: 0 | BZ21: 0 | CA21: 0 | CB21: 0 | CC21: 0 | CE21: 0 | CF21: 0 | CG21: 0 | CH21: 0 | CI21: 0 | CJ21: 0 | CK21: 0 | CL21: 0 | CM21: 0 | CN21: 0 | CP21: =$X21*G21 -> 0 | CQ21: 0 | CR21: 0 | CS21: 0 | CT21: 0 | CU21: 0 | CV21: 0 | CW21: 0 | CX21: 0 | CY21: 0 | DA21: =$Y21*G21 -> 0 | DB21: 0 | DC21: 0 | DD21: 0 | DE21: 0 | DF21: 0 | DG21: 0 | DH21: 0 | DI21: 0 | DJ21: 0
B22: Total | G22: =SUM(G7:G21) -> 0 | H22: 0 | I22: 0 | J22: 0 | K22: 0 | L22: 0 | M22: 0 | N22: 0 | O22: 0 | P22: 0 | Q22: =SUM(G22:P22) -> 0 | AB22: =SUM(AB7:AB21) -> 0 | AC22: 0 | AD22: 0 | AE22: 0 | AF22: 0 | AG22: 0 | AH22: 0 | AI22: 0 | AJ22: 0 | AK22: 0 | AM22: =SUM(AM7:AM21) -> 0 | AN22: 0 | AO22: 0 | AP22: 0 | AQ22: 0 | AR22: 0 | AS22: 0 | AT22: 0 | AU22: 0 | AV22: 0 | AX22: =SUM(AX7:AX21) -> 0 | AY22: 0 | AZ22: 0 | BA22: 0 | BB22: 0 | BC22: 0 | BD22: 0 | BE22: 0 | BF22: 0 | BG22: 0 | BI22: =SUM(BI7:BI21) -> 0 | BJ22: 0 | BK22: 0 | BL22: 0 | BM22: 0 | BN22: 0 | BO22: 0 | BP22: 0 | BQ22: 0 | BR22: 0 | BT22: =SUM(BT7:BT21) -> 0 | BU22: =SUM(BU7:BU21) -> 0 | BV22: =SUM(BV7:BV21) -> 0 | BW22: =SUM(BW7:BW21) -> 0 | BX22: =SUM(BX7:BX21) -> 0 | BY22: =SUM(BY7:BY21) -> 0 | BZ22: =SUM(BZ7:BZ21) -> 0 | CA22: =SUM(CA7:CA21) -> 0 | CB22: =SUM(CB7:CB21) -> 0 | CC22: =SUM(CC7:CC21) -> 0 | CE22: =SUM(CE7:CE21) -> 0 | CF22: =SUM(CF7:CF21) -> 0 | CG22: =SUM(CG7:CG21) -> 0 | CH22: =SUM(CH7:CH21) -> 0 | CI22: =SUM(CI7:CI21) -> 0 | CJ22: =SUM(CJ7:CJ21) -> 0 | CK22: =SUM(CK7:CK21) -> 0 | CL22: =SUM(CL7:CL21) -> 0 | CM22: =SUM(CM7:CM21) -> 0 | CN22: =SUM(CN7:CN21) -> 0 | CP22: =SUM(CP7:CP21) -> 0 | CQ22: 0 | CR22: 0 | CS22: 0 | CT22: 0 | CU22: 0 | CV22: 0 | CW22: 0 | CX22: 0 | CY22: 0 | DA22: =SUM(DA7:DA21) -> 0 | DB22: 0 | DC22: 0 | DD22: 0 | DE22: 0 | DF22: 0 | DG22: 0 | DH22: 0 | DI22: 0 | DJ22: 0
D268: Totals

Sheet Project Direction
C4: Cost Category | D4: Cost
C5: Labour
D6: 1929.988015
C7: Equipment
D8: 2023.016231
C9: Contractors
D10: 4384.298071
C11: IT
D12: 6358.917463
C13: IPR Costs
D14: 0
C15: Travel & Expenses
D16: 134.4618879
C17: Payments to users
D18: 0
C19: Contingency
D20: 1369.498095
C21: Decommissioning
D22: 0
C23: Other
D24: 73.03989838 | E24: Check that = to Total Outstanding Funding Required + Licensee Compulsory Contribution + Licensee Extra Contribution
C25: Total | D25: =SUM(D6:D24) -> 16273.21966 | E25: =IF(D25=('NIC Funding Request'!J79+'NIC Funding Request'!J37+'NIC Funding Request'!J66),"OK", "ERROR") -> OK
